Workbook

Sheet PAHs in PDMS
A1: PAH PRC CALIBRATION MODEL FOR PDMS SAMPLER
A2: Shen, X., & Reible, D. (2019). An analytical model for the fate and transport of performance reference compounds and target compounds around cylindrical passive samplers. Chemosphere.
A3: Version 1.7
A4: 2021-08-05 | G4: Brief techical note
G5: 1. The 'Fss' values refer to the fractional approach to steady state, which is the 1-C/C0 for PRCs and C/Ceq for target compounds
A6: Parameters | B6: Symbol | C6: Value | D6: Unit | G6: 2. The 'Kpw' values refer to the PDMS-water partition coefficients, and can be estimated from octanol-water coefficients Kow using the correlations
A7: Inner radius | B7: Li | C7: 0.02485 | D7: cm | H7: Log Kpw = 0.725 * Log Kow + 0.049 | J7: (Ghosh et al., 2014)
A8: Outer radius | B8: Lo | C8: 0.02835 | D8: cm | G8: 3. The fitting process is to find parameters for the following correlation between sediment retardation factor R and Kow at given effective diffusivities D
A9: Sampling time | B9: t | C9: 14 | D9: days | H9: Log R = α * Log Kow + β
G10: 4. The fitted parameters (Row 28) is automatically derived by maximizing r2 from simulated results at different Ds
A11: Number of PRCs | B11: 4 | G11: 5. The ‘Nonlinear’ in 'Option' is set to minimize the difference in Fss from calibrated to measurements, 'Linearized' is to minimuze the calibrated R values
A12: PRC # | B12: =PRCNumber(1,$B$11) -> 1 | C12: =PRCNumber(2,$B$11) -> 2 | D12: =PRCNumber(3,$B$11) -> 3 | E12: =PRCNumber(4,$B$11) -> 4 | F12: =PRCNumber(5,$B$11) ->  | G12: 6. The alpha value of the above correlation could be fixed to a given constant | K12: =PRCNumber(13,$B$11) ->  | L12: =PRCNumber(14,$B$11) ->  | M12: =PRCNumber(15,$B$11) ->  | N12: =PRCNumber(16,$B$11) ->  | O12: =PRCNumber(14,$B$11) ->  | P12: =PRCNumber(15,$B$11) ->  | Q12: =PRCNumber(16,$B$11) ->  | R12: =PRCNumber(17,$B$11) ->  | S12: =PRCNumber(18,$B$11) ->  | T12: =PRCNumber(19,$B$11) ->  | U12: =PRCNumber(20,$B$11) ->  | V12: =PRCNumber(21,$B$11) ->  | W12: =PRCNumber(22,$B$11) ->  | X12: =PRCNumber(23,$B$11) ->  | Y12: =PRCNumber(24,$B$11) ->  | Z12: =PRCNumber(25,$B$11) -> 
A13: PRC name | B13: C13-phenanthrene | C13: C13-fluoranthene | D13: C13-chrysene | E13: C13-indeno[1,2,3-CD]pyrene
A14: Log Kow | B14: 4.74 | C14: 5.29 | D14: 5.9 | E14: 7.09 | G14: Procedure
A15: Log Kpw | B15: 3.9155 | C15: 4.31425 | D15: 4.7565 | E15: 5.61925 | G15: 1. Update the properties of sampler and PRCs on this sheet in Green
A16: Measured PRC Fss | B16: 0.6 | C16: 0.5 | D16: 0.4 | E16: 0.2 | G16: 2. Input a list of desired effective diffusivity (D) in column A starting row 33.
G17: 3. Start the fitting by clicking on "Fit fss Data"
G18: 4. Check the fitted results (parameters in Row 28, results in the following figure), if it is not desired, change the list of D
G19: 5. View model results in the following figure, the returned data are in cyl_fitted_plot
G21: Database of frequently used PRCs
G23: PRCs set 1
G24: PRC name | H24: C13-phenanthrene | I24: C13-fluoranthene | J24: C13-chrysene | K24: C13-indeno[1,2,3-CD]pyrene
G25: Log Kow | H25: 4.74 | I25: 5.29 | J25: 5.9 | K25: 7.09
G26: Log Kpw | H26: 3.9155 | I26: 4.31425 | J26: 4.7565 | K26: 5.61925
A27: Results
A28: Cylindrical diffusion model | B28: Log R = α * Log Kow + β
A29: D | B29: 1e-07
A30: α | B30: 0.8775866101
A31: β | B31: -0.3334781729
A32: r2 | B32: 0.9994962171
A35: Model prediction
A36: Target Compound | B36: Log Kow | C36: Log Kpw | D36: Log R | E36: ξ | F36: τ | G36: ω | H36: fss
A37: naphthalene | B37: 3.41 | C37: =B37*0.725+0.479 -> 2.95125 | D37: =B37*$B$30+$B$31 -> 2.659092168 | E37: =10^C37*($C$8^2-$C$7^2)/10^D37/$C$8^2 -> 0.4539744201 | F37: =$B$29*$C$9*86400/10^D37/$C$8^2 -> 0.3299464683 | G37: =IF(E37>1,(1/E37-1/E37^2)^0.5,(1/E37^2-1/E37)^0.5) -> 1.627702805 | H37: =IFERROR(IF(E37>1,1-(EXP((1/E37^2-G37^2)*F37)*((COS(G37/E37*F37*2)*(1-erfzR(1/E37*F37^0.5,G37*F37^0.5))-SIN(G37/E37*F37*2)*(-erfzI(1/E37*F37^0.5,G37*F37^0.5)))+(COS(G37/E37*F37*2)*(-erfzI(1/E37*F37^0.5,G37*F37^0.5))+SIN(G37/E37*F37*2)*(1-erfzR(1/E37*F37^0.5,G37*F37^0.5)))/E37/G37)),1-((1/E37+G37)*EXP((1/E37+G37)^2*F37)*ERFC((1/E37+G37)*F37^0.5)-(1/E37-G37)*EXP((1/E37-G37)^2*F37)*ERFC((1/E37-G37)*F37^0.5))/2/G37),1) -> 0.8489849313
A38: acenaphthylene | B38: 4 | C38: =B38*0.725+0.479 -> 3.379 | D38: 3.176868268 | E38: =10^C38*($C$8^2-$C$7^2)/10^D38/$C$8^2 -> 0.3689820867 | F38: 0.100153789 | G38: =IF(E38>1,(1/E38-1/E38^2)^0.5,(1/E38^2-1/E38)^0.5) -> 2.152858874 | H38: =IFERROR(IF(E38>1,1-(EXP((1/E38^2-G38^2)*F38)*((COS(G38/E38*F38*2)*(1-erfzR(1/E38*F38^0.5,G38*F38^0.5))-SIN(G38/E38*F38*2)*(-erfzI(1/E38*F38^0.5,G38*F38^0.5)))+(COS(G38/E38*F38*2)*(-erfzI(1/E38*F38^0.5,G38*F38^0.5))+SIN(G38/E38*F38*2)*(1-erfzR(1/E38*F38^0.5,G38*F38^0.5)))/E38/G38)),1-((1/E38+G38)*EXP((1/E38+G38)^2*F38)*ERFC((1/E38+G38)*F38^0.5)-(1/E38-G38)*EXP((1/E38-G38)^2*F38)*ERFC((1/E38-G38)*F38^0.5))/2/G38),1) -> 0.751092661
A39: acenaphthene | B39: 4.06 | C39: 3.4225 | D39: 3.229523464 | E39: 0.3612851292 | F39: 0.08871809084 | G39: 2.212093237 | H39: =IFERROR(IF(E39>1,1-(EXP((1/E39^2-G39^2)*F39)*((COS(G39/E39*F39*2)*(1-erfzR(1/E39*F39^0.5,G39*F39^0.5))-SIN(G39/E39*F39*2)*(-erfzI(1/E39*F39^0.5,G39*F39^0.5)))+(COS(G39/E39*F39*2)*(-erfzI(1/E39*F39^0.5,G39*F39^0.5))+SIN(G39/E39*F39*2)*(1-erfzR(1/E39*F39^0.5,G39*F39^0.5)))/E39/G39)),1-((1/E39+G39)*EXP((1/E39+G39)^2*F39)*ERFC((1/E39+G39)*F39^0.5)-(1/E39-G39)*EXP((1/E39-G39)^2*F39)*ERFC((1/E39-G39)*F39^0.5))/2/G39),1) -> 0.7401359033
A40: fluorene | B40: 4.2 | C40: 3.524 | D40: 3.35238559 | E40: 0.3439441765 | F40: 0.06685748908 | G40: 2.354954046 | H40: =IFERROR(IF(E40>1,1-(EXP((1/E40^2-G40^2)*F40)*((COS(G40/E40*F40*2)*(1-erfzR(1/E40*F40^0.5,G40*F40^0.5))-SIN(G40/E40*F40*2)*(-erfzI(1/E40*F40^0.5,G40*F40^0.5)))+(COS(G40/E40*F40*2)*(-erfzI(1/E40*F40^0.5,G40*F40^0.5))+SIN(G40/E40*F40*2)*(1-erfzR(1/E40*F40^0.5,G40*F40^0.5)))/E40/G40)),1-((1/E40+G40)*EXP((1/E40+G40)^2*F40)*ERFC((1/E40+G40)*F40^0.5)-(1/E40-G40)*EXP((1/E40-G40)^2*F40)*ERFC((1/E40-G40)*F40^0.5))/2/G40),1) -> 0.7140208855
A41: phenanthrene | B41: 4.74 | C41: 3.9155 | D41: 3.826282359 | E41: 0.2845058436 | F41: 0.02245191 | G41: 2.973116003 | H41: =IFERROR(IF(E41>1,1-(EXP((1/E41^2-G41^2)*F41)*((COS(G41/E41*F41*2)*(1-erfzR(1/E41*F41^0.5,G41*F41^0.5))-SIN(G41/E41*F41*2)*(-erfzI(1/E41*F41^0.5,G41*F41^0.5)))+(COS(G41/E41*F41*2)*(-erfzI(1/E41*F41^0.5,G41*F41^0.5))+SIN(G41/E41*F41*2)*(1-erfzR(1/E41*F41^0.5,G41*F41^0.5)))/E41/G41)),1-((1/E41+G41)*EXP((1/E41+G41)^2*F41)*ERFC((1/E41+G41)*F41^0.5)-(1/E41-G41)*EXP((1/E41-G41)^2*F41)*ERFC((1/E41-G41)*F41^0.5))/2/G41),1) -> 0.6083559419
A42: anthracene | B42: 4.69 | C42: 3.87925 | D42: 3.782403029 | E42: 0.2895479681 | F42: 0.0248389151 | G42: 2.911031191 | H42: =IFERROR(IF(E42>1,1-(EXP((1/E42^2-G42^2)*F42)*((COS(G42/E42*F42*2)*(1-erfzR(1/E42*F42^0.5,G42*F42^0.5))-SIN(G42/E42*F42*2)*(-erfzI(1/E42*F42^0.5,G42*F42^0.5)))+(COS(G42/E42*F42*2)*(-erfzI(1/E42*F42^0.5,G42*F42^0.5))+SIN(G42/E42*F42*2)*(1-erfzR(1/E42*F42^0.5,G42*F42^0.5)))/E42/G42)),1-((1/E42+G42)*EXP((1/E42+G42)^2*F42)*ERFC((1/E42+G42)*F42^0.5)-(1/E42-G42)*EXP((1/E42-G42)^2*F42)*ERFC((1/E42-G42)*F42^0.5))/2/G42),1) -> 0.6183368824
A43: fluoranthene | B43: 5.29 | C43: 4.31425 | D43: 4.308954995 | E43: 0.2345138818 | F43: 0.007388914769 | G43: 3.730783988 | H43: =IFERROR(IF(E43>1,1-(EXP((1/E43^2-G43^2)*F43)*((COS(G43/E43*F43*2)*(1-erfzR(1/E43*F43^0.5,G43*F43^0.5))-SIN(G43/E43*F43*2)*(-erfzI(1/E43*F43^0.5,G43*F43^0.5)))+(COS(G43/E43*F43*2)*(-erfzI(1/E43*F43^0.5,G43*F43^0.5))+SIN(G43/E43*F43*2)*(1-erfzR(1/E43*F43^0.5,G43*F43^0.5)))/E43/G43)),1-((1/E43+G43)*EXP((1/E43+G43)^2*F43)*ERFC((1/E43+G43)*F43^0.5)-(1/E43-G43)*EXP((1/E43-G43)^2*F43)*ERFC((1/E43-G43)*F43^0.5))/2/G43),1) -> 0.4989964724
A44: pyrene | B44: 5.25 | C44: 4.28525 | D44: 4.27385153 | E44: 0.2378329484 | F44: 0.00801095185 | G44: 3.670735275 | H44: =IFERROR(IF(E44>1,1-(EXP((1/E44^2-G44^2)*F44)*((COS(G44/E44*F44*2)*(1-erfzR(1/E44*F44^0.5,G44*F44^0.5))-SIN(G44/E44*F44*2)*(-erfzI(1/E44*F44^0.5,G44*F44^0.5)))+(COS(G44/E44*F44*2)*(-erfzI(1/E44*F44^0.5,G44*F44^0.5))+SIN(G44/E44*F44*2)*(1-erfzR(1/E44*F44^0.5,G44*F44^0.5)))/E44/G44)),1-((1/E44+G44)*EXP((1/E44+G44)^2*F44)*ERFC((1/E44+G44)*F44^0.5)-(1/E44-G44)*EXP((1/E44-G44)^2*F44)*ERFC((1/E44-G44)*F44^0.5))/2/G44),1) -> 0.5068291082
A45: benz(a)anthracene | B45: 5.85 | C45: 4.72025 | D45: 4.800403496 | E45: 0.1926282831 | F45: 0.002383044517 | G45: 4.664624747 | H45: =IFERROR(IF(E45>1,1-(EXP((1/E45^2-G45^2)*F45)*((COS(G45/E45*F45*2)*(1-erfzR(1/E45*F45^0.5,G45*F45^0.5))-SIN(G45/E45*F45*2)*(-erfzI(1/E45*F45^0.5,G45*F45^0.5)))+(COS(G45/E45*F45*2)*(-erfzI(1/E45*F45^0.5,G45*F45^0.5))+SIN(G45/E45*F45*2)*(1-erfzR(1/E45*F45^0.5,G45*F45^0.5)))/E45/G45)),1-((1/E45+G45)*EXP((1/E45+G45)^2*F45)*ERFC((1/E45+G45)*F45^0.5)-(1/E45-G45)*EXP((1/E45-G45)^2*F45)*ERFC((1/E45-G45)*F45^0.5))/2/G45),1) -> 0.3940504116
A46: chrysene | B46: 5.9 | C46: 4.7565 | D46: 4.844282827 | E46: 0.1892738967 | F46: 0.002154035343 | G46: 4.757144625 | H46: =IFERROR(IF(E46>1,1-(EXP((1/E46^2-G46^2)*F46)*((COS(G46/E46*F46*2)*(1-erfzR(1/E46*F46^0.5,G46*F46^0.5))-SIN(G46/E46*F46*2)*(-erfzI(1/E46*F46^0.5,G46*F46^0.5)))+(COS(G46/E46*F46*2)*(-erfzI(1/E46*F46^0.5,G46*F46^0.5))+SIN(G46/E46*F46*2)*(1-erfzR(1/E46*F46^0.5,G46*F46^0.5)))/E46/G46)),1-((1/E46+G46)*EXP((1/E46+G46)^2*F46)*ERFC((1/E46+G46)*F46^0.5)-(1/E46-G46)*EXP((1/E46-G46)^2*F46)*ERFC((1/E46-G46)*F46^0.5))/2/G46),1) -> 0.3852268796
A47: benzo(b)fluoranthene | B47: 6.58 | C47: 5.2495 | D47: 5.441041722 | E47: 0.1490499478 | F47: 0.0005451222765 | G47: 6.18899606 | H47: =IFERROR(IF(E47>1,1-(EXP((1/E47^2-G47^2)*F47)*((COS(G47/E47*F47*2)*(1-erfzR(1/E47*F47^0.5,G47*F47^0.5))-SIN(G47/E47*F47*2)*(-erfzI(1/E47*F47^0.5,G47*F47^0.5)))+(COS(G47/E47*F47*2)*(-erfzI(1/E47*F47^0.5,G47*F47^0.5))+SIN(G47/E47*F47*2)*(1-erfzR(1/E47*F47^0.5,G47*F47^0.5)))/E47/G47)),1-((1/E47+G47)*EXP((1/E47+G47)^2*F47)*ERFC((1/E47+G47)*F47^0.5)-(1/E47-G47)*EXP((1/E47-G47)^2*F47)*ERFC((1/E47-G47)*F47^0.5))/2/G47),1) -> 0.2768031096
A48: benzo(k)fluoranthene | B48: 6.5 | C48: 5.1915 | D48: 5.370834793 | E48: 0.1532988007 | F48: 0.0006407680646 | G48: 6.002419305 | H48: =IFERROR(IF(E48>1,1-(EXP((1/E48^2-G48^2)*F48)*((COS(G48/E48*F48*2)*(1-erfzR(1/E48*F48^0.5,G48*F48^0.5))-SIN(G48/E48*F48*2)*(-erfzI(1/E48*F48^0.5,G48*F48^0.5)))+(COS(G48/E48*F48*2)*(-erfzI(1/E48*F48^0.5,G48*F48^0.5))+SIN(G48/E48*F48*2)*(1-erfzR(1/E48*F48^0.5,G48*F48^0.5)))/E48/G48)),1-((1/E48+G48)*EXP((1/E48+G48)^2*F48)*ERFC((1/E48+G48)*F48^0.5)-(1/E48-G48)*EXP((1/E48-G48)^2*F48)*ERFC((1/E48-G48)*F48^0.5))/2/G48),1) -> 0.2883617033
A49: benzo(a)pyrene | B49: 6.54 | C49: 5.2205 | D49: 5.405938257 | E49: 0.1511594464 | F49: 0.0005910134906 | G49: 6.09505694 | H49: =IFERROR(IF(E49>1,1-(EXP((1/E49^2-G49^2)*F49)*((COS(G49/E49*F49*2)*(1-erfzR(1/E49*F49^0.5,G49*F49^0.5))-SIN(G49/E49*F49*2)*(-erfzI(1/E49*F49^0.5,G49*F49^0.5)))+(COS(G49/E49*F49*2)*(-erfzI(1/E49*F49^0.5,G49*F49^0.5))+SIN(G49/E49*F49*2)*(1-erfzR(1/E49*F49^0.5,G49*F49^0.5)))/E49/G49)),1-((1/E49+G49)*EXP((1/E49+G49)^2*F49)*ERFC((1/E49+G49)*F49^0.5)-(1/E49-G49)*EXP((1/E49-G49)^2*F49)*ERFC((1/E49-G49)*F49^0.5))/2/G49),1) -> 0.2825408909
A50: indeno(123-cd)pyrene | B50: 7.09 | C50: 5.61925 | D50: 5.888610893 | E50: 0.124598455 | F50: 0.0001945023078 | G50: 7.509153759 | H50: =IFERROR(IF(E50>1,1-(EXP((1/E50^2-G50^2)*F50)*((COS(G50/E50*F50*2)*(1-erfzR(1/E50*F50^0.5,G50*F50^0.5))-SIN(G50/E50*F50*2)*(-erfzI(1/E50*F50^0.5,G50*F50^0.5)))+(COS(G50/E50*F50*2)*(-erfzI(1/E50*F50^0.5,G50*F50^0.5))+SIN(G50/E50*F50*2)*(1-erfzR(1/E50*F50^0.5,G50*F50^0.5)))/E50/G50)),1-((1/E50+G50)*EXP((1/E50+G50)^2*F50)*ERFC((1/E50+G50)*F50^0.5)-(1/E50-G50)*EXP((1/E50-G50)^2*F50)*ERFC((1/E50-G50)*F50^0.5))/2/G50),1) -> 0.2109542709
A51: dibenzo(ah)anthracene | B51: 7.39 | C51: 5.83675 | D51: 6.151886876 | E51: 0.1121338347 | F51: 0.0001060837286 | G51: 8.403052539 | H51: =IFERROR(IF(E51>1,1-(EXP((1/E51^2-G51^2)*F51)*((COS(G51/E51*F51*2)*(1-erfzR(1/E51*F51^0.5,G51*F51^0.5))-SIN(G51/E51*F51*2)*(-erfzI(1/E51*F51^0.5,G51*F51^0.5)))+(COS(G51/E51*F51*2)*(-erfzI(1/E51*F51^0.5,G51*F51^0.5))+SIN(G51/E51*F51*2)*(1-erfzR(1/E51*F51^0.5,G51*F51^0.5)))/E51/G51)),1-((1/E51+G51)*EXP((1/E51+G51)^2*F51)*ERFC((1/E51+G51)*F51^0.5)-(1/E51-G51)*EXP((1/E51-G51)^2*F51)*ERFC((1/E51-G51)*F51^0.5))/2/G51),1) -> 0.1784174279
A52: benzo(ghi)perylene | B52: 7.04 | C52: 5.583 | D52: 5.844731562 | E52: 0.1268066378 | F52: 0.0002151810831 | G52: 7.369079215 | H52: =IFERROR(IF(E52>1,1-(EXP((1/E52^2-G52^2)*F52)*((COS(G52/E52*F52*2)*(1-erfzR(1/E52*F52^0.5,G52*F52^0.5))-SIN(G52/E52*F52*2)*(-erfzI(1/E52*F52^0.5,G52*F52^0.5)))+(COS(G52/E52*F52*2)*(-erfzI(1/E52*F52^0.5,G52*F52^0.5))+SIN(G52/E52*F52*2)*(1-erfzR(1/E52*F52^0.5,G52*F52^0.5)))/E52/G52)),1-((1/E52+G52)*EXP((1/E52+G52)^2*F52)*ERFC((1/E52+G52)*F52^0.5)-(1/E52-G52)*EXP((1/E52-G52)^2*F52)*ERFC((1/E52-G52)*F52^0.5))/2/G52),1) -> 0.2168148914
A97: =A96*10^0.02 -> 0 | B97: 1 | C97: 14.88303474 | D97: 0.9871031895
A98: 0 | B98: 1 | C98: -81.52211188 | D98: 0.9865915747
A99: =A98*10^0.02 -> 0 | B99: 1 | C99: 17.53485008 | D99: 0.9853833743

Sheet PCBs in PDMS
A1: PCB PRC CALIBRATION MODEL FOR PDMS SAMPLER
A2: Shen, X., & Reible, D. (2019). An analytical model for the fate and transport of performance reference compounds and target compounds around cylindrical passive samplers. Chemosphere.
A3: Version 1.7
A4: 2021-08-05 | J4: Brief techical note
J5: 1. The 'Fss' values refer to the fractional approach to steady state, which is the 1-C/C0 for PRCs and C/Ceq for target compounds
A6: Parameters | B6: Symbol | C6: Value | D6: Unit | J6: 2. The 'Kpw' values refer to the PDMS-water partition coefficients, and can be estimated from octanol-water coefficients Kow using the correlations
A7: Inner radius | B7: Li | C7: 0.02485 | D7: cm | K7: Log Kpw = 0.947 * Log Kow-0.017 | M7: (Ghosh et al., 2014)
A8: Outer radius | B8: Lo | C8: 0.02835 | D8: cm | J8: 3. The fitting process is to find parameters for the following correlation between sediment retardation factor R and Kow at given effective diffusivities D
A9: Sampling time | B9: t | C9: 30 | D9: days | K9: Log R = α * Log Kow + β
J10: 4. The fitted parameters (Row 28) is automatically derived by maximizing r2 from simulated results at different Ds
A11: Number of PRCs | B11: 7 | J11: 5. The ‘Nonlinear’ in 'Option' is set to minimize the difference in Fss from calibrated to measurements, 'Linearized' is to minimuze the calibrated R values
A12: PRC # | B12: =PRCNumber(1,$B$11) -> 1 | C12: =PRCNumber(2,$B$11) -> 2 | D12: =PRCNumber(3,$B$11) -> 3 | E12: =PRCNumber(4,$B$11) -> 4 | F12: =PRCNumber(5,$B$11) -> 5 | G12: =PRCNumber(6,$B$11) -> 6 | H12: =PRCNumber(7,$B$11) -> 7 | J12: 6. The alpha value of the above correlation could be fixed to a given constant | N12: =PRCNumber(13,$B$11) ->  | O12: =PRCNumber(14,$B$11) ->  | P12: =PRCNumber(15,$B$11) ->  | Q12: =PRCNumber(16,$B$11) -> 
A13: PRC name | B13: 13C-PCB28 | C13: 13C-PCB47 | D13: 13C-PCB70 | E13: 13C-PCB80 | F13: 13C-PCB111 | G13: 13C-PCB141 | H13: 13C-PCB182
A14: Log Kow | B14: 5.67 | C14: 5.85 | D14: 6.2 | E14: 6.48 | F14: 6.76 | G14: 6.82 | H14: 7.2 | J14: Procedure
A15: Log Kpw | B15: 5.35249 | C15: 5.52295 | D15: 5.8544 | E15: 6.11956 | F15: 6.38472 | G15: 6.44154 | H15: 6.8014 | J15: 1. Update the properties of sampler and PRCs on this sheet in Green
A16: Measured PRC Fss | B16: 0.9 | C16: 0.8 | D16: 0.7 | E16: 0.6 | F16: 0.5 | G16: 0.4 | H16: 0.3 | J16: 2. Input a list of desired effective diffusivity (D) in column A starting row 33.
J17: 3. Start the fitting by clicking on "Fit fss Data"
J18: 4. Check the fitted results (parameters in Row 28, results in the following figure), if it is not desired, change the list of D
J19: 5. View model results in the following figure, the returned data are in cyl_fitted_plot
J22: Database of frequently used PRCs
J23: High sensitivity group
J24: PRC name | K24: 13C-PCB28 | L24: 13C-PCB47 | M24: 13C-PCB70 | N24: 13C-PCB80 | O24: 13C-PCB111 | P24: 13C-PCB141 | Q24: 13C-PCB182
J25: Log Kow | K25: 5.67 | L25: 5.85 | M25: 6.2 | N25: 6.48 | O25: 6.76 | P25: 6.82 | Q25: 7.2
J26: Log Kpw | K26: =K25*0.947-0.017 -> 5.35249 | L26: 5.52295 | M26: 5.8544 | N26: 6.11956 | O26: 6.38472 | P26: 6.44154 | Q26: 6.8014
A27: Results
A28: Cylindrical diffusion model | B28: Log R = α * Log Kow + β | J28: Low sensitivity group
A29: D | B29: 9.701723378e-06 | J29: PRC name | K29: 13C-PCB 37 | L29: 13C-PCB 47 | M29: 13C-PCB 54 | N29: 13C-PCB 111 | O29: 13C-PCB 138 | P29: 13C-PCB 178
A30: α | B30: 0.5701570624 | J30: Log Kow | K30: 5.83 | L30: 5.85 | M30: 5.21 | N30: 6.76 | O30: 6.83 | P30: 7.14
A31: β | B31: 2.138824967 | J31: Log Kpw | K31: =K30*0.947-0.017 -> 5.50401 | L31: 5.52295 | M31: 4.91687 | N31: 6.38472 | O31: 6.45101 | P31: 6.74458
A32: r2 | B32: 0.9983670191
A35: Model prediction
A36: Target Compound | B36: Log Kow | C36: Log Kpw | D36: Log R | E36: ξ | F36: τ | G36: ω | H36: fss
A37: PCB 1 | B37: 4.46 | C37: =B37*0.947-0.017 -> 4.20662 | D37: =B37*$B$30+$B$31 -> 4.681725465 | E37: =10^C37*($C$8^2-$C$7^2)/10^D37/$C$8^2 -> 0.07758327083 | F37: =$B$29*$C$9*86400/10^D37/$C$8^2 -> 0.6511068932 | G37: =IF(E37>1,(1/E37-1/E37^2)^0.5,(1/E37^2-1/E37)^0.5) -> 12.37928326 | H37: =IFERROR(IF(E37>1,1-(EXP((1/E37^2-G37^2)*F37)*((COS(G37/E37*F37*2)*(1-erfzR(1/E37*F37^0.5,G37*F37^0.5))-SIN(G37/E37*F37*2)*(-erfzI(1/E37*F37^0.5,G37*F37^0.5)))+(COS(G37/E37*F37*2)*(-erfzI(1/E37*F37^0.5,G37*F37^0.5))+SIN(G37/E37*F37*2)*(1-erfzR(1/E37*F37^0.5,G37*F37^0.5)))/E37/G37)),1-((1/E37+G37)*EXP((1/E37+G37)^2*F37)*ERFC((1/E37+G37)*F37^0.5)-(1/E37-G37)*EXP((1/E37-G37)^2*F37)*ERFC((1/E37-G37)*F37^0.5))/2/G37),1) -> 0.9854730831
A38: PCB 2 | B38: 4.69 | C38: =B38*0.947-0.017 -> 4.42443 | D38: =B38*$B$30+$B$31 -> 4.81286159 | E38: =10^C38*($C$8^2-$C$7^2)/10^D38/$C$8^2 -> 0.09472005917 | F38: =$B$29*$C$9*86400/10^D38/$C$8^2 -> 0.4814111767 | G38: =IF(E38>1,(1/E38-1/E38^2)^0.5,(1/E38^2-1/E38)^0.5) -> 10.04498952 | H38: =IFERROR(IF(E38>1,1-(EXP((1/E38^2-G38^2)*F38)*((COS(G38/E38*F38*2)*(1-erfzR(1/E38*F38^0.5,G38*F38^0.5))-SIN(G38/E38*F38*2)*(-erfzI(1/E38*F38^0.5,G38*F38^0.5)))+(COS(G38/E38*F38*2)*(-erfzI(1/E38*F38^0.5,G38*F38^0.5))+SIN(G38/E38*F38*2)*(1-erfzR(1/E38*F38^0.5,G38*F38^0.5)))/E38/G38)),1-((1/E38+G38)*EXP((1/E38+G38)^2*F38)*ERFC((1/E38+G38)*F38^0.5)-(1/E38-G38)*EXP((1/E38-G38)^2*F38)*ERFC((1/E38-G38)*F38^0.5))/2/G38),1) -> 0.9774265573
A39: PCB 3 | B39: 4.69 | C39: 4.42443 | D39: 4.81286159 | E39: 0.09472005917 | F39: 0.4814111767 | G39: 10.04498952 | H39: =IFERROR(IF(E39>1,1-(EXP((1/E39^2-G39^2)*F39)*((COS(G39/E39*F39*2)*(1-erfzR(1/E39*F39^0.5,G39*F39^0.5))-SIN(G39/E39*F39*2)*(-erfzI(1/E39*F39^0.5,G39*F39^0.5)))+(COS(G39/E39*F39*2)*(-erfzI(1/E39*F39^0.5,G39*F39^0.5))+SIN(G39/E39*F39*2)*(1-erfzR(1/E39*F39^0.5,G39*F39^0.5)))/E39/G39)),1-((1/E39+G39)*EXP((1/E39+G39)^2*F39)*ERFC((1/E39+G39)*F39^0.5)-(1/E39-G39)*EXP((1/E39-G39)^2*F39)*ERFC((1/E39-G39)*F39^0.5))/2/G39),1) -> 0.9774265573
A40: PCB 4 | B40: 4.65 | C40: 4.38655 | D40: 4.790055307 | E40: 0.09148886571 | F40: 0.5073672743 | G40: 10.4183006 | H40: =IFERROR(IF(E40>1,1-(EXP((1/E40^2-G40^2)*F40)*((COS(G40/E40*F40*2)*(1-erfzR(1/E40*F40^0.5,G40*F40^0.5))-SIN(G40/E40*F40*2)*(-erfzI(1/E40*F40^0.5,G40*F40^0.5)))+(COS(G40/E40*F40*2)*(-erfzI(1/E40*F40^0.5,G40*F40^0.5))+SIN(G40/E40*F40*2)*(1-erfzR(1/E40*F40^0.5,G40*F40^0.5)))/E40/G40)),1-((1/E40+G40)*EXP((1/E40+G40)^2*F40)*ERFC((1/E40+G40)*F40^0.5)-(1/E40-G40)*EXP((1/E40-G40)^2*F40)*ERFC((1/E40-G40)*F40^0.5))/2/G40),1) -> 0.9790776845
A41: PCB 5 | B41: 4.97 | C41: 4.68959 | D41: 4.972505567 | E41: 0.1207696988 | F41: 0.3333283031 | G41: 7.764139685 | H41: =IFERROR(IF(E41>1,1-(EXP((1/E41^2-G41^2)*F41)*((COS(G41/E41*F41*2)*(1-erfzR(1/E41*F41^0.5,G41*F41^0.5))-SIN(G41/E41*F41*2)*(-erfzI(1/E41*F41^0.5,G41*F41^0.5)))+(COS(G41/E41*F41*2)*(-erfzI(1/E41*F41^0.5,G41*F41^0.5))+SIN(G41/E41*F41*2)*(1-erfzR(1/E41*F41^0.5,G41*F41^0.5)))/E41/G41)),1-((1/E41+G41)*EXP((1/E41+G41)^2*F41)*ERFC((1/E41+G41)*F41^0.5)-(1/E41-G41)*EXP((1/E41-G41)^2*F41)*ERFC((1/E41-G41)*F41^0.5))/2/G41),1) -> 0.9618904995
A42: PCB 6 | B42: 5.06 | C42: =B42*0.947-0.017 -> 4.77482 | D42: =B42*$B$30+$B$31 -> 5.023819703 | E42: 0.1305791531 | F42: 0.296181587 | G42: 7.140706405 | H42: =IFERROR(IF(E42>1,1-(EXP((1/E42^2-G42^2)*F42)*((COS(G42/E42*F42*2)*(1-erfzR(1/E42*F42^0.5,G42*F42^0.5))-SIN(G42/E42*F42*2)*(-erfzI(1/E42*F42^0.5,G42*F42^0.5)))+(COS(G42/E42*F42*2)*(-erfzI(1/E42*F42^0.5,G42*F42^0.5))+SIN(G42/E42*F42*2)*(1-erfzR(1/E42*F42^0.5,G42*F42^0.5)))/E42/G42)),1-((1/E42+G42)*EXP((1/E42+G42)^2*F42)*ERFC((1/E42+G42)*F42^0.5)-(1/E42-G42)*EXP((1/E42-G42)^2*F42)*ERFC((1/E42-G42)*F42^0.5))/2/G42),1) -> 0.9550397333
A43: PCB 7 | B43: 5.07 | C43: 4.78429 | D43: 5.029521273 | E43: 0.1317171354 | F43: 0.2923186236 | G43: 7.074379251 | H43: =IFERROR(IF(E43>1,1-(EXP((1/E43^2-G43^2)*F43)*((COS(G43/E43*F43*2)*(1-erfzR(1/E43*F43^0.5,G43*F43^0.5))-SIN(G43/E43*F43*2)*(-erfzI(1/E43*F43^0.5,G43*F43^0.5)))+(COS(G43/E43*F43*2)*(-erfzI(1/E43*F43^0.5,G43*F43^0.5))+SIN(G43/E43*F43*2)*(1-erfzR(1/E43*F43^0.5,G43*F43^0.5)))/E43/G43)),1-((1/E43+G43)*EXP((1/E43+G43)^2*F43)*ERFC((1/E43+G43)*F43^0.5)-(1/E43-G43)*EXP((1/E43-G43)^2*F43)*ERFC((1/E43-G43)*F43^0.5))/2/G43),1) -> 0.9542105641
A44: PCB 8 | B44: 5.07 | C44: 4.78429 | D44: 5.029521273 | E44: 0.1317171354 | F44: 0.2923186236 | G44: 7.074379251 | H44: =IFERROR(IF(E44>1,1-(EXP((1/E44^2-G44^2)*F44)*((COS(G44/E44*F44*2)*(1-erfzR(1/E44*F44^0.5,G44*F44^0.5))-SIN(G44/E44*F44*2)*(-erfzI(1/E44*F44^0.5,G44*F44^0.5)))+(COS(G44/E44*F44*2)*(-erfzI(1/E44*F44^0.5,G44*F44^0.5))+SIN(G44/E44*F44*2)*(1-erfzR(1/E44*F44^0.5,G44*F44^0.5)))/E44/G44)),1-((1/E44+G44)*EXP((1/E44+G44)^2*F44)*ERFC((1/E44+G44)*F44^0.5)-(1/E44-G44)*EXP((1/E44-G44)^2*F44)*ERFC((1/E44-G44)*F44^0.5))/2/G44),1) -> 0.9542105641
A45: PCB 9 | B45: 5.06 | C45: 4.77482 | D45: 5.023819703 | E45: 0.1305791531 | F45: 0.296181587 | G45: 7.140706405 | H45: =IFERROR(IF(E45>1,1-(EXP((1/E45^2-G45^2)*F45)*((COS(G45/E45*F45*2)*(1-erfzR(1/E45*F45^0.5,G45*F45^0.5))-SIN(G45/E45*F45*2)*(-erfzI(1/E45*F45^0.5,G45*F45^0.5)))+(COS(G45/E45*F45*2)*(-erfzI(1/E45*F45^0.5,G45*F45^0.5))+SIN(G45/E45*F45*2)*(1-erfzR(1/E45*F45^0.5,G45*F45^0.5)))/E45/G45)),1-((1/E45+G45)*EXP((1/E45+G45)^2*F45)*ERFC((1/E45+G45)*F45^0.5)-(1/E45-G45)*EXP((1/E45-G45)^2*F45)*ERFC((1/E45-G45)*F45^0.5))/2/G45),1) -> 0.9550397333
A46: PCB 10 | B46: 4.84 | C46: 4.56648 | D46: 4.898385149 | E46: 0.1078868222 | F46: 0.3953598921 | G46: 8.754706196 | H46: =IFERROR(IF(E46>1,1-(EXP((1/E46^2-G46^2)*F46)*((COS(G46/E46*F46*2)*(1-erfzR(1/E46*F46^0.5,G46*F46^0.5))-SIN(G46/E46*F46*2)*(-erfzI(1/E46*F46^0.5,G46*F46^0.5)))+(COS(G46/E46*F46*2)*(-erfzI(1/E46*F46^0.5,G46*F46^0.5))+SIN(G46/E46*F46*2)*(1-erfzR(1/E46*F46^0.5,G46*F46^0.5)))/E46/G46)),1-((1/E46+G46)*EXP((1/E46+G46)^2*F46)*ERFC((1/E46+G46)*F46^0.5)-(1/E46-G46)*EXP((1/E46-G46)^2*F46)*ERFC((1/E46-G46)*F46^0.5))/2/G46),1) -> 0.9700639413
A47: PCB 11 | B47: 5.28 | C47: 4.98316 | D47: 5.149254256 | E47: 0.1580444662 | F47: 0.2218827307 | G47: 5.805842952 | H47: =IFERROR(IF(E47>1,1-(EXP((1/E47^2-G47^2)*F47)*((COS(G47/E47*F47*2)*(1-erfzR(1/E47*F47^0.5,G47*F47^0.5))-SIN(G47/E47*F47*2)*(-erfzI(1/E47*F47^0.5,G47*F47^0.5)))+(COS(G47/E47*F47*2)*(-erfzI(1/E47*F47^0.5,G47*F47^0.5))+SIN(G47/E47*F47*2)*(1-erfzR(1/E47*F47^0.5,G47*F47^0.5)))/E47/G47)),1-((1/E47+G47)*EXP((1/E47+G47)^2*F47)*ERFC((1/E47+G47)*F47^0.5)-(1/E47-G47)*EXP((1/E47-G47)^2*F47)*ERFC((1/E47-G47)*F47^0.5))/2/G47),1) -> 0.9331044922
A48: PCB 12 | B48: 5.22 | C48: 4.92634 | D48: 5.115044833 | E48: 0.1500267556 | F48: 0.2400672545 | G48: 6.145170116 | H48: =IFERROR(IF(E48>1,1-(EXP((1/E48^2-G48^2)*F48)*((COS(G48/E48*F48*2)*(1-erfzR(1/E48*F48^0.5,G48*F48^0.5))-SIN(G48/E48*F48*2)*(-erfzI(1/E48*F48^0.5,G48*F48^0.5)))+(COS(G48/E48*F48*2)*(-erfzI(1/E48*F48^0.5,G48*F48^0.5))+SIN(G48/E48*F48*2)*(1-erfzR(1/E48*F48^0.5,G48*F48^0.5)))/E48/G48)),1-((1/E48+G48)*EXP((1/E48+G48)^2*F48)*ERFC((1/E48+G48)*F48^0.5)-(1/E48-G48)*EXP((1/E48-G48)^2*F48)*ERFC((1/E48-G48)*F48^0.5))/2/G48),1) -> 0.9399138357
A49: PCB 13 | B49: 5.29 | C49: 4.99263 | D49: 5.154955827 | E49: 0.1594218055 | F49: 0.2189888139 | G49: 5.750973105 | H49: =IFERROR(IF(E49>1,1-(EXP((1/E49^2-G49^2)*F49)*((COS(G49/E49*F49*2)*(1-erfzR(1/E49*F49^0.5,G49*F49^0.5))-SIN(G49/E49*F49*2)*(-erfzI(1/E49*F49^0.5,G49*F49^0.5)))+(COS(G49/E49*F49*2)*(-erfzI(1/E49*F49^0.5,G49*F49^0.5))+SIN(G49/E49*F49*2)*(1-erfzR(1/E49*F49^0.5,G49*F49^0.5)))/E49/G49)),1-((1/E49+G49)*EXP((1/E49+G49)^2*F49)*ERFC((1/E49+G49)*F49^0.5)-(1/E49-G49)*EXP((1/E49-G49)^2*F49)*ERFC((1/E49-G49)*F49^0.5))/2/G49),1) -> 0.9319022876
A50: PCB 14 | B50: 5.28 | C50: 4.98316 | D50: 5.149254256 | E50: 0.1580444662 | F50: 0.2218827307 | G50: 5.805842952 | H50: =IFERROR(IF(E50>1,1-(EXP((1/E50^2-G50^2)*F50)*((COS(G50/E50*F50*2)*(1-erfzR(1/E50*F50^0.5,G50*F50^0.5))-SIN(G50/E50*F50*2)*(-erfzI(1/E50*F50^0.5,G50*F50^0.5)))+(COS(G50/E50*F50*2)*(-erfzI(1/E50*F50^0.5,G50*F50^0.5))+SIN(G50/E50*F50*2)*(1-erfzR(1/E50*F50^0.5,G50*F50^0.5)))/E50/G50)),1-((1/E50+G50)*EXP((1/E50+G50)^2*F50)*ERFC((1/E50+G50)*F50^0.5)-(1/E50-G50)*EXP((1/E50-G50)^2*F50)*ERFC((1/E50-G50)*F50^0.5))/2/G50),1) -> 0.9331044922
A51: PCB 15 | B51: 5.3 | C51: 5.0021 | D51: 5.160657398 | E51: 0.1608111481 | F51: 0.2161326413 | G51: 5.696573435 | H51: =IFERROR(IF(E51>1,1-(EXP((1/E51^2-G51^2)*F51)*((COS(G51/E51*F51*2)*(1-erfzR(1/E51*F51^0.5,G51*F51^0.5))-SIN(G51/E51*F51*2)*(-erfzI(1/E51*F51^0.5,G51*F51^0.5)))+(COS(G51/E51*F51*2)*(-erfzI(1/E51*F51^0.5,G51*F51^0.5))+SIN(G51/E51*F51*2)*(1-erfzR(1/E51*F51^0.5,G51*F51^0.5)))/E51/G51)),1-((1/E51+G51)*EXP((1/E51+G51)^2*F51)*ERFC((1/E51+G51)*F51^0.5)-(1/E51-G51)*EXP((1/E51-G51)^2*F51)*ERFC((1/E51-G51)*F51^0.5))/2/G51),1) -> 0.9306801183
A52: PCB 16 | B52: 5.16 | C52: 4.86952 | D52: 5.080835409 | E52: 0.1424157894 | F52: 0.2597421012 | G52: 6.502498293 | H52: =IFERROR(IF(E52>1,1-(EXP((1/E52^2-G52^2)*F52)*((COS(G52/E52*F52*2)*(1-erfzR(1/E52*F52^0.5,G52*F52^0.5))-SIN(G52/E52*F52*2)*(-erfzI(1/E52*F52^0.5,G52*F52^0.5)))+(COS(G52/E52*F52*2)*(-erfzI(1/E52*F52^0.5,G52*F52^0.5))+SIN(G52/E52*F52*2)*(1-erfzR(1/E52*F52^0.5,G52*F52^0.5)))/E52/G52)),1-((1/E52+G52)*EXP((1/E52+G52)^2*F52)*ERFC((1/E52+G52)*F52^0.5)-(1/E52-G52)*EXP((1/E52-G52)^2*F52)*ERFC((1/E52-G52)*F52^0.5))/2/G52),1) -> 0.9460724852
A53: PCB 17 | B53: 5.25 | C53: 4.95475 | D53: 5.132149544 | E53: 0.1539834358 | F53: 0.2307959661 | G53: 5.973315133 | H53: =IFERROR(IF(E53>1,1-(EXP((1/E53^2-G53^2)*F53)*((COS(G53/E53*F53*2)*(1-erfzR(1/E53*F53^0.5,G53*F53^0.5))-SIN(G53/E53*F53*2)*(-erfzI(1/E53*F53^0.5,G53*F53^0.5)))+(COS(G53/E53*F53*2)*(-erfzI(1/E53*F53^0.5,G53*F53^0.5))+SIN(G53/E53*F53*2)*(1-erfzR(1/E53*F53^0.5,G53*F53^0.5)))/E53/G53)),1-((1/E53+G53)*EXP((1/E53+G53)^2*F53)*ERFC((1/E53+G53)*F53^0.5)-(1/E53-G53)*EXP((1/E53-G53)^2*F53)*ERFC((1/E53-G53)*F53^0.5))/2/G53),1) -> 0.9365940784
A54: PCB 18 | B54: 5.24 | C54: 4.94528 | D54: 5.126447974 | E54: 0.1526530818 | F54: 0.2338459133 | G54: 6.030107448 | H54: =IFERROR(IF(E54>1,1-(EXP((1/E54^2-G54^2)*F54)*((COS(G54/E54*F54*2)*(1-erfzR(1/E54*F54^0.5,G54*F54^0.5))-SIN(G54/E54*F54*2)*(-erfzI(1/E54*F54^0.5,G54*F54^0.5)))+(COS(G54/E54*F54*2)*(-erfzI(1/E54*F54^0.5,G54*F54^0.5))+SIN(G54/E54*F54*2)*(1-erfzR(1/E54*F54^0.5,G54*F54^0.5)))/E54/G54)),1-((1/E54+G54)*EXP((1/E54+G54)^2*F54)*ERFC((1/E54+G54)*F54^0.5)-(1/E54-G54)*EXP((1/E54-G54)^2*F54)*ERFC((1/E54-G54)*F54^0.5))/2/G54),1) -> 0.9377191748
A55: PCB 19 | B55: 5.02 | C55: 4.73694 | D55: 5.00101342 | E55: 0.1261246953 | F55: 0.312150718 | G55: 7.411815554 | H55: =IFERROR(IF(E55>1,1-(EXP((1/E55^2-G55^2)*F55)*((COS(G55/E55*F55*2)*(1-erfzR(1/E55*F55^0.5,G55*F55^0.5))-SIN(G55/E55*F55*2)*(-erfzI(1/E55*F55^0.5,G55*F55^0.5)))+(COS(G55/E55*F55*2)*(-erfzI(1/E55*F55^0.5,G55*F55^0.5))+SIN(G55/E55*F55*2)*(1-erfzR(1/E55*F55^0.5,G55*F55^0.5)))/E55/G55)),1-((1/E55+G55)*EXP((1/E55+G55)^2*F55)*ERFC((1/E55+G55)*F55^0.5)-(1/E55-G55)*EXP((1/E55-G55)^2*F55)*ERFC((1/E55-G55)*F55^0.5))/2/G55),1) -> 0.9582168899
A56: PCB 20 | B56: 5.57 | C56: 5.25779 | D56: 5.314599804 | E56: 0.2032655343 | F56: 0.1516274928 | G56: 4.391299482 | H56: =IFERROR(IF(E56>1,1-(EXP((1/E56^2-G56^2)*F56)*((COS(G56/E56*F56*2)*(1-erfzR(1/E56*F56^0.5,G56*F56^0.5))-SIN(G56/E56*F56*2)*(-erfzI(1/E56*F56^0.5,G56*F56^0.5)))+(COS(G56/E56*F56*2)*(-erfzI(1/E56*F56^0.5,G56*F56^0.5))+SIN(G56/E56*F56*2)*(1-erfzR(1/E56*F56^0.5,G56*F56^0.5)))/E56/G56)),1-((1/E56+G56)*EXP((1/E56+G56)^2*F56)*ERFC((1/E56+G56)*F56^0.5)-(1/E56-G56)*EXP((1/E56-G56)^2*F56)*ERFC((1/E56-G56)*F56^0.5))/2/G56),1) -> 0.8890895986
A57: PCB 21 | B57: 5.51 | C57: 5.20097 | D57: 5.280390381 | E57: 0.1929537261 | F57: 0.1640542092 | G57: 4.655818577 | H57: =IFERROR(IF(E57>1,1-(EXP((1/E57^2-G57^2)*F57)*((COS(G57/E57*F57*2)*(1-erfzR(1/E57*F57^0.5,G57*F57^0.5))-SIN(G57/E57*F57*2)*(-erfzI(1/E57*F57^0.5,G57*F57^0.5)))+(COS(G57/E57*F57*2)*(-erfzI(1/E57*F57^0.5,G57*F57^0.5))+SIN(G57/E57*F57*2)*(1-erfzR(1/E57*F57^0.5,G57*F57^0.5)))/E57/G57)),1-((1/E57+G57)*EXP((1/E57+G57)^2*F57)*ERFC((1/E57+G57)*F57^0.5)-(1/E57-G57)*EXP((1/E57-G57)^2*F57)*ERFC((1/E57-G57)*F57^0.5))/2/G57),1) -> 0.8998976478
A58: PCB 22 | B58: 5.58 | C58: 5.26726 | D58: 5.320301375 | E58: 0.2050369699 | F58: 0.1496498836 | G58: 4.348518188 | H58: =IFERROR(IF(E58>1,1-(EXP((1/E58^2-G58^2)*F58)*((COS(G58/E58*F58*2)*(1-erfzR(1/E58*F58^0.5,G58*F58^0.5))-SIN(G58/E58*F58*2)*(-erfzI(1/E58*F58^0.5,G58*F58^0.5)))+(COS(G58/E58*F58*2)*(-erfzI(1/E58*F58^0.5,G58*F58^0.5))+SIN(G58/E58*F58*2)*(1-erfzR(1/E58*F58^0.5,G58*F58^0.5)))/E58/G58)),1-((1/E58+G58)*EXP((1/E58+G58)^2*F58)*ERFC((1/E58+G58)*F58^0.5)-(1/E58-G58)*EXP((1/E58-G58)^2*F58)*ERFC((1/E58-G58)*F58^0.5))/2/G58),1) -> 0.8871919144
A59: PCB 23 | B59: 5.57 | C59: 5.25779 | D59: 5.314599804 | E59: 0.2032655343 | F59: 0.1516274928 | G59: 4.391299482 | H59: =IFERROR(IF(E59>1,1-(EXP((1/E59^2-G59^2)*F59)*((COS(G59/E59*F59*2)*(1-erfzR(1/E59*F59^0.5,G59*F59^0.5))-SIN(G59/E59*F59*2)*(-erfzI(1/E59*F59^0.5,G59*F59^0.5)))+(COS(G59/E59*F59*2)*(-erfzI(1/E59*F59^0.5,G59*F59^0.5))+SIN(G59/E59*F59*2)*(1-erfzR(1/E59*F59^0.5,G59*F59^0.5)))/E59/G59)),1-((1/E59+G59)*EXP((1/E59+G59)^2*F59)*ERFC((1/E59+G59)*F59^0.5)-(1/E59-G59)*EXP((1/E59-G59)^2*F59)*ERFC((1/E59-G59)*F59^0.5))/2/G59),1) -> 0.8890895986
A60: PCB 24 | B60: 5.51 | C60: 5.20097 | D60: 5.280390381 | E60: 0.1929537261 | F60: 0.1640542092 | G60: 4.655818577 | H60: =IFERROR(IF(E60>1,1-(EXP((1/E60^2-G60^2)*F60)*((COS(G60/E60*F60*2)*(1-erfzR(1/E60*F60^0.5,G60*F60^0.5))-SIN(G60/E60*F60*2)*(-erfzI(1/E60*F60^0.5,G60*F60^0.5)))+(COS(G60/E60*F60*2)*(-erfzI(1/E60*F60^0.5,G60*F60^0.5))+SIN(G60/E60*F60*2)*(1-erfzR(1/E60*F60^0.5,G60*F60^0.5)))/E60/G60)),1-((1/E60+G60)*EXP((1/E60+G60)^2*F60)*ERFC((1/E60+G60)*F60^0.5)-(1/E60-G60)*EXP((1/E60-G60)^2*F60)*ERFC((1/E60-G60)*F60^0.5))/2/G60),1) -> 0.8998976478
A61: PCB 25 | B61: 5.58 | C61: 5.26726 | D61: 5.320301375 | E61: 0.2050369699 | F61: 0.1496498836 | G61: 4.348518188 | H61: =IFERROR(IF(E61>1,1-(EXP((1/E61^2-G61^2)*F61)*((COS(G61/E61*F61*2)*(1-erfzR(1/E61*F61^0.5,G61*F61^0.5))-SIN(G61/E61*F61*2)*(-erfzI(1/E61*F61^0.5,G61*F61^0.5)))+(COS(G61/E61*F61*2)*(-erfzI(1/E61*F61^0.5,G61*F61^0.5))+SIN(G61/E61*F61*2)*(1-erfzR(1/E61*F61^0.5,G61*F61^0.5)))/E61/G61)),1-((1/E61+G61)*EXP((1/E61+G61)^2*F61)*ERFC((1/E61+G61)*F61^0.5)-(1/E61-G61)*EXP((1/E61-G61)^2*F61)*ERFC((1/E61-G61)*F61^0.5))/2/G61),1) -> 0.8871919144
A62: PCB 26 | B62: 5.57 | C62: 5.25779 | D62: 5.314599804 | E62: 0.2032655343 | F62: 0.1516274928 | G62: 4.391299482 | H62: =IFERROR(IF(E62>1,1-(EXP((1/E62^2-G62^2)*F62)*((COS(G62/E62*F62*2)*(1-erfzR(1/E62*F62^0.5,G62*F62^0.5))-SIN(G62/E62*F62*2)*(-erfzI(1/E62*F62^0.5,G62*F62^0.5)))+(COS(G62/E62*F62*2)*(-erfzI(1/E62*F62^0.5,G62*F62^0.5))+SIN(G62/E62*F62*2)*(1-erfzR(1/E62*F62^0.5,G62*F62^0.5)))/E62/G62)),1-((1/E62+G62)*EXP((1/E62+G62)^2*F62)*ERFC((1/E62+G62)*F62^0.5)-(1/E62-G62)*EXP((1/E62-G62)^2*F62)*ERFC((1/E62-G62)*F62^0.5))/2/G62),1) -> 0.8890895986
A63: PCB 27 | B63: 5.35 | C63: 5.04945 | D63: 5.189165251 | E63: 0.1679416051 | F63: 0.2024009319 | G63: 5.431485242 | H63: =IFERROR(IF(E63>1,1-(EXP((1/E63^2-G63^2)*F63)*((COS(G63/E63*F63*2)*(1-erfzR(1/E63*F63^0.5,G63*F63^0.5))-SIN(G63/E63*F63*2)*(-erfzI(1/E63*F63^0.5,G63*F63^0.5)))+(COS(G63/E63*F63*2)*(-erfzI(1/E63*F63^0.5,G63*F63^0.5))+SIN(G63/E63*F63*2)*(1-erfzR(1/E63*F63^0.5,G63*F63^0.5)))/E63/G63)),1-((1/E63+G63)*EXP((1/E63+G63)^2*F63)*ERFC((1/E63+G63)*F63^0.5)-(1/E63-G63)*EXP((1/E63-G63)^2*F63)*ERFC((1/E63-G63)*F63^0.5))/2/G63),1) -> 0.9242599887
A64: PCB 28 | B64: 5.67 | C64: 5.35249 | D64: 5.371615511 | E64: 0.2216909884 | F64: 0.1329726267 | G64: 3.979495243 | H64: =IFERROR(IF(E64>1,1-(EXP((1/E64^2-G64^2)*F64)*((COS(G64/E64*F64*2)*(1-erfzR(1/E64*F64^0.5,G64*F64^0.5))-SIN(G64/E64*F64*2)*(-erfzI(1/E64*F64^0.5,G64*F64^0.5)))+(COS(G64/E64*F64*2)*(-erfzI(1/E64*F64^0.5,G64*F64^0.5))+SIN(G64/E64*F64*2)*(1-erfzR(1/E64*F64^0.5,G64*F64^0.5)))/E64/G64)),1-((1/E64+G64)*EXP((1/E64+G64)^2*F64)*ERFC((1/E64+G64)*F64^0.5)-(1/E64-G64)*EXP((1/E64-G64)^2*F64)*ERFC((1/E64-G64)*F64^0.5))/2/G64),1) -> 0.8688097329
A65: PCB 29 | B65: 5.66 | C65: 5.34302 | D65: 5.36591394 | E65: 0.2197756687 | F65: 0.1347298475 | G65: 4.019112239 | H65: =IFERROR(IF(E65>1,1-(EXP((1/E65^2-G65^2)*F65)*((COS(G65/E65*F65*2)*(1-erfzR(1/E65*F65^0.5,G65*F65^0.5))-SIN(G65/E65*F65*2)*(-erfzI(1/E65*F65^0.5,G65*F65^0.5)))+(COS(G65/E65*F65*2)*(-erfzI(1/E65*F65^0.5,G65*F65^0.5))+SIN(G65/E65*F65*2)*(1-erfzR(1/E65*F65^0.5,G65*F65^0.5)))/E65/G65)),1-((1/E65+G65)*EXP((1/E65+G65)^2*F65)*ERFC((1/E65+G65)*F65^0.5)-(1/E65-G65)*EXP((1/E65-G65)^2*F65)*ERFC((1/E65-G65)*F65^0.5))/2/G65),1) -> 0.8709710677
A66: PCB 30 | B66: 5.44 | C66: 5.13468 | D66: 5.240479386 | E66: 0.1815825723 | F66: 0.1798450016 | G66: 4.982109523 | H66: =IFERROR(IF(E66>1,1-(EXP((1/E66^2-G66^2)*F66)*((COS(G66/E66*F66*2)*(1-erfzR(1/E66*F66^0.5,G66*F66^0.5))-SIN(G66/E66*F66*2)*(-erfzI(1/E66*F66^0.5,G66*F66^0.5)))+(COS(G66/E66*F66*2)*(-erfzI(1/E66*F66^0.5,G66*F66^0.5))+SIN(G66/E66*F66*2)*(1-erfzR(1/E66*F66^0.5,G66*F66^0.5)))/E66/G66)),1-((1/E66+G66)*EXP((1/E66+G66)^2*F66)*ERFC((1/E66+G66)*F66^0.5)-(1/E66-G66)*EXP((1/E66-G66)^2*F66)*ERFC((1/E66-G66)*F66^0.5))/2/G66),1) -> 0.9113147059
A67: PCB 31 | B67: 5.67 | C67: 5.35249 | D67: 5.371615511 | E67: 0.2216909884 | F67: 0.1329726267 | G67: 3.979495243 | H67: =IFERROR(IF(E67>1,1-(EXP((1/E67^2-G67^2)*F67)*((COS(G67/E67*F67*2)*(1-erfzR(1/E67*F67^0.5,G67*F67^0.5))-SIN(G67/E67*F67*2)*(-erfzI(1/E67*F67^0.5,G67*F67^0.5)))+(COS(G67/E67*F67*2)*(-erfzI(1/E67*F67^0.5,G67*F67^0.5))+SIN(G67/E67*F67*2)*(1-erfzR(1/E67*F67^0.5,G67*F67^0.5)))/E67/G67)),1-((1/E67+G67)*EXP((1/E67+G67)^2*F67)*ERFC((1/E67+G67)*F67^0.5)-(1/E67-G67)*EXP((1/E67-G67)^2*F67)*ERFC((1/E67-G67)*F67^0.5))/2/G67),1) -> 0.8688097329
A68: PCB 32 | B68: 5.44 | C68: 5.13468 | D68: 5.240479386 | E68: 0.1815825723 | F68: 0.1798450016 | G68: 4.982109523 | H68: =IFERROR(IF(E68>1,1-(EXP((1/E68^2-G68^2)*F68)*((COS(G68/E68*F68*2)*(1-erfzR(1/E68*F68^0.5,G68*F68^0.5))-SIN(G68/E68*F68*2)*(-erfzI(1/E68*F68^0.5,G68*F68^0.5)))+(COS(G68/E68*F68*2)*(-erfzI(1/E68*F68^0.5,G68*F68^0.5))+SIN(G68/E68*F68*2)*(1-erfzR(1/E68*F68^0.5,G68*F68^0.5)))/E68/G68)),1-((1/E68+G68)*EXP((1/E68+G68)^2*F68)*ERFC((1/E68+G68)*F68^0.5)-(1/E68-G68)*EXP((1/E68-G68)^2*F68)*ERFC((1/E68-G68)*F68^0.5))/2/G68),1) -> 0.9113147059
A69: PCB 33 | B69: 5.6 | C69: 5.2862 | D69: 5.331704516 | E69: 0.2086262895 | F69: 0.1457717079 | G69: 4.264044963 | H69: =IFERROR(IF(E69>1,1-(EXP((1/E69^2-G69^2)*F69)*((COS(G69/E69*F69*2)*(1-erfzR(1/E69*F69^0.5,G69*F69^0.5))-SIN(G69/E69*F69*2)*(-erfzI(1/E69*F69^0.5,G69*F69^0.5)))+(COS(G69/E69*F69*2)*(-erfzI(1/E69*F69^0.5,G69*F69^0.5))+SIN(G69/E69*F69*2)*(1-erfzR(1/E69*F69^0.5,G69*F69^0.5)))/E69/G69)),1-((1/E69+G69)*EXP((1/E69+G69)^2*F69)*ERFC((1/E69+G69)*F69^0.5)-(1/E69-G69)*EXP((1/E69-G69)^2*F69)*ERFC((1/E69-G69)*F69^0.5))/2/G69),1) -> 0.8833114997
A70: PCB 34 | B70: 5.66 | C70: 5.34302 | D70: 5.36591394 | E70: 0.2197756687 | F70: 0.1347298475 | G70: 4.019112239 | H70: =IFERROR(IF(E70>1,1-(EXP((1/E70^2-G70^2)*F70)*((COS(G70/E70*F70*2)*(1-erfzR(1/E70*F70^0.5,G70*F70^0.5))-SIN(G70/E70*F70*2)*(-erfzI(1/E70*F70^0.5,G70*F70^0.5)))+(COS(G70/E70*F70*2)*(-erfzI(1/E70*F70^0.5,G70*F70^0.5))+SIN(G70/E70*F70*2)*(1-erfzR(1/E70*F70^0.5,G70*F70^0.5)))/E70/G70)),1-((1/E70+G70)*EXP((1/E70+G70)^2*F70)*ERFC((1/E70+G70)*F70^0.5)-(1/E70-G70)*EXP((1/E70-G70)^2*F70)*ERFC((1/E70-G70)*F70^0.5))/2/G70),1) -> 0.8709710677
A71: PCB 35 | B71: 5.82 | C71: 5.49454 | D71: 5.45713907 | E71: 0.2525076152 | F71: 0.1092040357 | G71: 3.423961763 | H71: =IFERROR(IF(E71>1,1-(EXP((1/E71^2-G71^2)*F71)*((COS(G71/E71*F71*2)*(1-erfzR(1/E71*F71^0.5,G71*F71^0.5))-SIN(G71/E71*F71*2)*(-erfzI(1/E71*F71^0.5,G71*F71^0.5)))+(COS(G71/E71*F71*2)*(-erfzI(1/E71*F71^0.5,G71*F71^0.5))+SIN(G71/E71*F71*2)*(1-erfzR(1/E71*F71^0.5,G71*F71^0.5)))/E71/G71)),1-((1/E71+G71)*EXP((1/E71+G71)^2*F71)*ERFC((1/E71+G71)*F71^0.5)-(1/E71-G71)*EXP((1/E71-G71)^2*F71)*ERFC((1/E71-G71)*F71^0.5))/2/G71),1) -> 0.8326138661
A72: PCB 36 | B72: 5.88 | C72: 5.55136 | D72: 5.491348494 | E72: 0.2660020946 | F72: 0.1009320896 | G72: 3.22078959 | H72: =IFERROR(IF(E72>1,1-(EXP((1/E72^2-G72^2)*F72)*((COS(G72/E72*F72*2)*(1-erfzR(1/E72*F72^0.5,G72*F72^0.5))-SIN(G72/E72*F72*2)*(-erfzI(1/E72*F72^0.5,G72*F72^0.5)))+(COS(G72/E72*F72*2)*(-erfzI(1/E72*F72^0.5,G72*F72^0.5))+SIN(G72/E72*F72*2)*(1-erfzR(1/E72*F72^0.5,G72*F72^0.5)))/E72/G72)),1-((1/E72+G72)*EXP((1/E72+G72)^2*F72)*ERFC((1/E72+G72)*F72^0.5)-(1/E72-G72)*EXP((1/E72-G72)^2*F72)*ERFC((1/E72-G72)*F72^0.5))/2/G72),1) -> 0.8160788038
A73: PCB 37 | B73: 5.83 | C73: 5.50401 | D73: 5.462840641 | E73: 0.25470819 | F73: 0.1077797366 | G73: 3.389380018 | H73: =IFERROR(IF(E73>1,1-(EXP((1/E73^2-G73^2)*F73)*((COS(G73/E73*F73*2)*(1-erfzR(1/E73*F73^0.5,G73*F73^0.5))-SIN(G73/E73*F73*2)*(-erfzI(1/E73*F73^0.5,G73*F73^0.5)))+(COS(G73/E73*F73*2)*(-erfzI(1/E73*F73^0.5,G73*F73^0.5))+SIN(G73/E73*F73*2)*(1-erfzR(1/E73*F73^0.5,G73*F73^0.5)))/E73/G73)),1-((1/E73+G73)*EXP((1/E73+G73)^2*F73)*ERFC((1/E73+G73)*F73^0.5)-(1/E73-G73)*EXP((1/E73-G73)^2*F73)*ERFC((1/E73-G73)*F73^0.5))/2/G73),1) -> 0.8299412575
A74: PCB 38 | B74: 5.76 | C74: 5.43772 | D74: 5.422929646 | E74: 0.2396977205 | F74: 0.1181539138 | G74: 3.637719786 | H74: =IFERROR(IF(E74>1,1-(EXP((1/E74^2-G74^2)*F74)*((COS(G74/E74*F74*2)*(1-erfzR(1/E74*F74^0.5,G74*F74^0.5))-SIN(G74/E74*F74*2)*(-erfzI(1/E74*F74^0.5,G74*F74^0.5)))+(COS(G74/E74*F74*2)*(-erfzI(1/E74*F74^0.5,G74*F74^0.5))+SIN(G74/E74*F74*2)*(1-erfzR(1/E74*F74^0.5,G74*F74^0.5)))/E74/G74)),1-((1/E74+G74)*EXP((1/E74+G74)^2*F74)*ERFC((1/E74+G74)*F74^0.5)-(1/E74-G74)*EXP((1/E74-G74)^2*F74)*ERFC((1/E74-G74)*F74^0.5))/2/G74),1) -> 0.8479586595
A75: PCB 39 | B75: 5.89 | C75: 5.56083 | D75: 5.497050064 | E75: 0.2683202722 | F75: 0.09961567773 | G75: 3.187917145 | H75: =IFERROR(IF(E75>1,1-(EXP((1/E75^2-G75^2)*F75)*((COS(G75/E75*F75*2)*(1-erfzR(1/E75*F75^0.5,G75*F75^0.5))-SIN(G75/E75*F75*2)*(-erfzI(1/E75*F75^0.5,G75*F75^0.5)))+(COS(G75/E75*F75*2)*(-erfzI(1/E75*F75^0.5,G75*F75^0.5))+SIN(G75/E75*F75*2)*(1-erfzR(1/E75*F75^0.5,G75*F75^0.5)))/E75/G75)),1-((1/E75+G75)*EXP((1/E75+G75)^2*F75)*ERFC((1/E75+G75)*F75^0.5)-(1/E75-G75)*EXP((1/E75-G75)^2*F75)*ERFC((1/E75-G75)*F75^0.5))/2/G75),1) -> 0.8132059974
A76: PCB 40 | B76: 5.66 | C76: 5.34302 | D76: 5.36591394 | E76: 0.2197756687 | F76: 0.1347298475 | G76: 4.019112239 | H76: =IFERROR(IF(E76>1,1-(EXP((1/E76^2-G76^2)*F76)*((COS(G76/E76*F76*2)*(1-erfzR(1/E76*F76^0.5,G76*F76^0.5))-SIN(G76/E76*F76*2)*(-erfzI(1/E76*F76^0.5,G76*F76^0.5)))+(COS(G76/E76*F76*2)*(-erfzI(1/E76*F76^0.5,G76*F76^0.5))+SIN(G76/E76*F76*2)*(1-erfzR(1/E76*F76^0.5,G76*F76^0.5)))/E76/G76)),1-((1/E76+G76)*EXP((1/E76+G76)^2*F76)*ERFC((1/E76+G76)*F76^0.5)-(1/E76-G76)*EXP((1/E76-G76)^2*F76)*ERFC((1/E76-G76)*F76^0.5))/2/G76),1) -> 0.8709710677
A77: PCB 41 | B77: 5.69 | C77: 5.37143 | D77: 5.383018652 | E77: 0.2255718484 | F77: 0.129526642 | G77: 3.901266941 | H77: =IFERROR(IF(E77>1,1-(EXP((1/E77^2-G77^2)*F77)*((COS(G77/E77*F77*2)*(1-erfzR(1/E77*F77^0.5,G77*F77^0.5))-SIN(G77/E77*F77*2)*(-erfzI(1/E77*F77^0.5,G77*F77^0.5)))+(COS(G77/E77*F77*2)*(-erfzI(1/E77*F77^0.5,G77*F77^0.5))+SIN(G77/E77*F77*2)*(1-erfzR(1/E77*F77^0.5,G77*F77^0.5)))/E77/G77)),1-((1/E77+G77)*EXP((1/E77+G77)^2*F77)*ERFC((1/E77+G77)*F77^0.5)-(1/E77-G77)*EXP((1/E77-G77)^2*F77)*ERFC((1/E77-G77)*F77^0.5))/2/G77),1) -> 0.864395278
A78: PCB 42 | B78: 5.76 | C78: 5.43772 | D78: 5.422929646 | E78: 0.2396977205 | F78: 0.1181539138 | G78: 3.637719786 | H78: =IFERROR(IF(E78>1,1-(EXP((1/E78^2-G78^2)*F78)*((COS(G78/E78*F78*2)*(1-erfzR(1/E78*F78^0.5,G78*F78^0.5))-SIN(G78/E78*F78*2)*(-erfzI(1/E78*F78^0.5,G78*F78^0.5)))+(COS(G78/E78*F78*2)*(-erfzI(1/E78*F78^0.5,G78*F78^0.5))+SIN(G78/E78*F78*2)*(1-erfzR(1/E78*F78^0.5,G78*F78^0.5)))/E78/G78)),1-((1/E78+G78)*EXP((1/E78+G78)^2*F78)*ERFC((1/E78+G78)*F78^0.5)-(1/E78-G78)*EXP((1/E78-G78)^2*F78)*ERFC((1/E78-G78)*F78^0.5))/2/G78),1) -> 0.8479586595
A79: PCB 43 | B79: 5.75 | C79: 5.42825 | D79: 5.417228076 | E79: 0.2376268301 | F79: 0.1197153068 | G79: 3.674416032 | H79: =IFERROR(IF(E79>1,1-(EXP((1/E79^2-G79^2)*F79)*((COS(G79/E79*F79*2)*(1-erfzR(1/E79*F79^0.5,G79*F79^0.5))-SIN(G79/E79*F79*2)*(-erfzI(1/E79*F79^0.5,G79*F79^0.5)))+(COS(G79/E79*F79*2)*(-erfzI(1/E79*F79^0.5,G79*F79^0.5))+SIN(G79/E79*F79*2)*(1-erfzR(1/E79*F79^0.5,G79*F79^0.5)))/E79/G79)),1-((1/E79+G79)*EXP((1/E79+G79)^2*F79)*ERFC((1/E79+G79)*F79^0.5)-(1/E79-G79)*EXP((1/E79-G79)^2*F79)*ERFC((1/E79-G79)*F79^0.5))/2/G79),1) -> 0.8504022248
A80: PCB 44 | B80: 5.75 | C80: 5.42825 | D80: 5.417228076 | E80: 0.2376268301 | F80: 0.1197153068 | G80: 3.674416032 | H80: =IFERROR(IF(E80>1,1-(EXP((1/E80^2-G80^2)*F80)*((COS(G80/E80*F80*2)*(1-erfzR(1/E80*F80^0.5,G80*F80^0.5))-SIN(G80/E80*F80*2)*(-erfzI(1/E80*F80^0.5,G80*F80^0.5)))+(COS(G80/E80*F80*2)*(-erfzI(1/E80*F80^0.5,G80*F80^0.5))+SIN(G80/E80*F80*2)*(1-erfzR(1/E80*F80^0.5,G80*F80^0.5)))/E80/G80)),1-((1/E80+G80)*EXP((1/E80+G80)^2*F80)*ERFC((1/E80+G80)*F80^0.5)-(1/E80-G80)*EXP((1/E80-G80)^2*F80)*ERFC((1/E80-G80)*F80^0.5))/2/G80),1) -> 0.8504022248
A81: PCB 45 | B81: 5.53 | C81: 5.21991 | D81: 5.291793522 | E81: 0.1963315197 | F81: 0.1598027455 | G81: 4.566131763 | H81: =IFERROR(IF(E81>1,1-(EXP((1/E81^2-G81^2)*F81)*((COS(G81/E81*F81*2)*(1-erfzR(1/E81*F81^0.5,G81*F81^0.5))-SIN(G81/E81*F81*2)*(-erfzI(1/E81*F81^0.5,G81*F81^0.5)))+(COS(G81/E81*F81*2)*(-erfzI(1/E81*F81^0.5,G81*F81^0.5))+SIN(G81/E81*F81*2)*(1-erfzR(1/E81*F81^0.5,G81*F81^0.5)))/E81/G81)),1-((1/E81+G81)*EXP((1/E81+G81)^2*F81)*ERFC((1/E81+G81)*F81^0.5)-(1/E81-G81)*EXP((1/E81-G81)^2*F81)*ERFC((1/E81-G81)*F81^0.5))/2/G81),1) -> 0.8964032118
A82: PCB 46 | B82: 5.53 | C82: 5.21991 | D82: 5.291793522 | E82: 0.1963315197 | F82: 0.1598027455 | G82: 4.566131763 | H82: =IFERROR(IF(E82>1,1-(EXP((1/E82^2-G82^2)*F82)*((COS(G82/E82*F82*2)*(1-erfzR(1/E82*F82^0.5,G82*F82^0.5))-SIN(G82/E82*F82*2)*(-erfzI(1/E82*F82^0.5,G82*F82^0.5)))+(COS(G82/E82*F82*2)*(-erfzI(1/E82*F82^0.5,G82*F82^0.5))+SIN(G82/E82*F82*2)*(1-erfzR(1/E82*F82^0.5,G82*F82^0.5)))/E82/G82)),1-((1/E82+G82)*EXP((1/E82+G82)^2*F82)*ERFC((1/E82+G82)*F82^0.5)-(1/E82-G82)*EXP((1/E82-G82)^2*F82)*ERFC((1/E82-G82)*F82^0.5))/2/G82),1) -> 0.8964032118
A83: PCB 47 | B83: 5.85 | C83: 5.52295 | D83: 5.474243782 | E83: 0.2591670399 | F83: 0.1049866254 | G83: 3.321087972 | H83: =IFERROR(IF(E83>1,1-(EXP((1/E83^2-G83^2)*F83)*((COS(G83/E83*F83*2)*(1-erfzR(1/E83*F83^0.5,G83*F83^0.5))-SIN(G83/E83*F83*2)*(-erfzI(1/E83*F83^0.5,G83*F83^0.5)))+(COS(G83/E83*F83*2)*(-erfzI(1/E83*F83^0.5,G83*F83^0.5))+SIN(G83/E83*F83*2)*(1-erfzR(1/E83*F83^0.5,G83*F83^0.5)))/E83/G83)),1-((1/E83+G83)*EXP((1/E83+G83)^2*F83)*ERFC((1/E83+G83)*F83^0.5)-(1/E83-G83)*EXP((1/E83-G83)^2*F83)*ERFC((1/E83-G83)*F83^0.5))/2/G83),1) -> 0.8244963798
A84: PCB 48 | B84: 5.78 | C84: 5.45666 | D84: 5.434332787 | E84: 0.2438938014 | F84: 0.115091956 | G84: 3.565255319 | H84: =IFERROR(IF(E84>1,1-(EXP((1/E84^2-G84^2)*F84)*((COS(G84/E84*F84*2)*(1-erfzR(1/E84*F84^0.5,G84*F84^0.5))-SIN(G84/E84*F84*2)*(-erfzI(1/E84*F84^0.5,G84*F84^0.5)))+(COS(G84/E84*F84*2)*(-erfzI(1/E84*F84^0.5,G84*F84^0.5))+SIN(G84/E84*F84*2)*(1-erfzR(1/E84*F84^0.5,G84*F84^0.5)))/E84/G84)),1-((1/E84+G84)*EXP((1/E84+G84)^2*F84)*ERFC((1/E84+G84)*F84^0.5)-(1/E84-G84)*EXP((1/E84-G84)^2*F84)*ERFC((1/E84-G84)*F84^0.5))/2/G84),1) -> 0.842974482
A85: PCB 49 | B85: 5.85 | C85: 5.52295 | D85: 5.474243782 | E85: 0.2591670399 | F85: 0.1049866254 | G85: 3.321087972 | H85: =IFERROR(IF(E85>1,1-(EXP((1/E85^2-G85^2)*F85)*((COS(G85/E85*F85*2)*(1-erfzR(1/E85*F85^0.5,G85*F85^0.5))-SIN(G85/E85*F85*2)*(-erfzI(1/E85*F85^0.5,G85*F85^0.5)))+(COS(G85/E85*F85*2)*(-erfzI(1/E85*F85^0.5,G85*F85^0.5))+SIN(G85/E85*F85*2)*(1-erfzR(1/E85*F85^0.5,G85*F85^0.5)))/E85/G85)),1-((1/E85+G85)*EXP((1/E85+G85)^2*F85)*ERFC((1/E85+G85)*F85^0.5)-(1/E85-G85)*EXP((1/E85-G85)^2*F85)*ERFC((1/E85-G85)*F85^0.5))/2/G85),1) -> 0.8244963798
A86: PCB 50 | B86: 5.63 | C86: 5.31461 | D86: 5.348809228 | E86: 0.2141284247 | F86: 0.1401420707 | G86: 4.140010745 | H86: =IFERROR(IF(E86>1,1-(EXP((1/E86^2-G86^2)*F86)*((COS(G86/E86*F86*2)*(1-erfzR(1/E86*F86^0.5,G86*F86^0.5))-SIN(G86/E86*F86*2)*(-erfzI(1/E86*F86^0.5,G86*F86^0.5)))+(COS(G86/E86*F86*2)*(-erfzI(1/E86*F86^0.5,G86*F86^0.5))+SIN(G86/E86*F86*2)*(1-erfzR(1/E86*F86^0.5,G86*F86^0.5)))/E86/G86)),1-((1/E86+G86)*EXP((1/E86+G86)^2*F86)*ERFC((1/E86+G86)*F86^0.5)-(1/E86-G86)*EXP((1/E86-G86)^2*F86)*ERFC((1/E86-G86)*F86^0.5))/2/G86),1) -> 0.8772742959
A87: PCB 51 | B87: 5.63 | C87: 5.31461 | D87: 5.348809228 | E87: 0.2141284247 | F87: 0.1401420707 | G87: 4.140010745 | H87: =IFERROR(IF(E87>1,1-(EXP((1/E87^2-G87^2)*F87)*((COS(G87/E87*F87*2)*(1-erfzR(1/E87*F87^0.5,G87*F87^0.5))-SIN(G87/E87*F87*2)*(-erfzI(1/E87*F87^0.5,G87*F87^0.5)))+(COS(G87/E87*F87*2)*(-erfzI(1/E87*F87^0.5,G87*F87^0.5))+SIN(G87/E87*F87*2)*(1-erfzR(1/E87*F87^0.5,G87*F87^0.5)))/E87/G87)),1-((1/E87+G87)*EXP((1/E87+G87)^2*F87)*ERFC((1/E87+G87)*F87^0.5)-(1/E87-G87)*EXP((1/E87-G87)^2*F87)*ERFC((1/E87-G87)*F87^0.5))/2/G87),1) -> 0.8772742959
A88: PCB 52 | B88: 5.84 | C88: 5.51348 | D88: 5.468542211 | E88: 0.2569279425 | F88: 0.1063740139 | G88: 3.355089627 | H88: =IFERROR(IF(E88>1,1-(EXP((1/E88^2-G88^2)*F88)*((COS(G88/E88*F88*2)*(1-erfzR(1/E88*F88^0.5,G88*F88^0.5))-SIN(G88/E88*F88*2)*(-erfzI(1/E88*F88^0.5,G88*F88^0.5)))+(COS(G88/E88*F88*2)*(-erfzI(1/E88*F88^0.5,G88*F88^0.5))+SIN(G88/E88*F88*2)*(1-erfzR(1/E88*F88^0.5,G88*F88^0.5)))/E88/G88)),1-((1/E88+G88)*EXP((1/E88+G88)^2*F88)*ERFC((1/E88+G88)*F88^0.5)-(1/E88-G88)*EXP((1/E88-G88)^2*F88)*ERFC((1/E88-G88)*F88^0.5))/2/G88),1) -> 0.8272354572
A89: PCB 53 | B89: 5.62 | C89: 5.30514 | D89: 5.343107657 | E89: 0.2122784426 | F89: 0.1419940351 | G89: 4.181002938 | H89: =IFERROR(IF(E89>1,1-(EXP((1/E89^2-G89^2)*F89)*((COS(G89/E89*F89*2)*(1-erfzR(1/E89*F89^0.5,G89*F89^0.5))-SIN(G89/E89*F89*2)*(-erfzI(1/E89*F89^0.5,G89*F89^0.5)))+(COS(G89/E89*F89*2)*(-erfzI(1/E89*F89^0.5,G89*F89^0.5))+SIN(G89/E89*F89*2)*(1-erfzR(1/E89*F89^0.5,G89*F89^0.5)))/E89/G89)),1-((1/E89+G89)*EXP((1/E89+G89)^2*F89)*ERFC((1/E89+G89)*F89^0.5)-(1/E89-G89)*EXP((1/E89-G89)^2*F89)*ERFC((1/E89-G89)*F89^0.5))/2/G89),1) -> 0.8793159209
A90: PCB 54 | B90: 5.21 | C90: 4.91687 | D90: 5.109343262 | E90: 0.1487305857 | F90: 0.2432397209 | G90: 6.203449149 | H90: =IFERROR(IF(E90>1,1-(EXP((1/E90^2-G90^2)*F90)*((COS(G90/E90*F90*2)*(1-erfzR(1/E90*F90^0.5,G90*F90^0.5))-SIN(G90/E90*F90*2)*(-erfzI(1/E90*F90^0.5,G90*F90^0.5)))+(COS(G90/E90*F90*2)*(-erfzI(1/E90*F90^0.5,G90*F90^0.5))+SIN(G90/E90*F90*2)*(1-erfzR(1/E90*F90^0.5,G90*F90^0.5)))/E90/G90)),1-((1/E90+G90)*EXP((1/E90+G90)^2*F90)*ERFC((1/E90+G90)*F90^0.5)-(1/E90-G90)*EXP((1/E90-G90)^2*F90)*ERFC((1/E90-G90)*F90^0.5))/2/G90),1) -> 0.9409839316
A91: PCB 55 | B91: 6.11 | C91: 5.76917 | D91: 5.622484618 | E91: 0.3247573075 | F91: 0.07462651146 | G91: 2.530294167 | H91: =IFERROR(IF(E91>1,1-(EXP((1/E91^2-G91^2)*F91)*((COS(G91/E91*F91*2)*(1-erfzR(1/E91*F91^0.5,G91*F91^0.5))-SIN(G91/E91*F91*2)*(-erfzI(1/E91*F91^0.5,G91*F91^0.5)))+(COS(G91/E91*F91*2)*(-erfzI(1/E91*F91^0.5,G91*F91^0.5))+SIN(G91/E91*F91*2)*(1-erfzR(1/E91*F91^0.5,G91*F91^0.5)))/E91/G91)),1-((1/E91+G91)*EXP((1/E91+G91)^2*F91)*ERFC((1/E91+G91)*F91^0.5)-(1/E91-G91)*EXP((1/E91-G91)^2*F91)*ERFC((1/E91-G91)*F91^0.5))/2/G91),1) -> 0.7416271157
A92: PCB 56 | B92: 6.11 | C92: 5.76917 | D92: 5.622484618 | E92: 0.3247573075 | F92: 0.07462651146 | G92: 2.530294167 | H92: =IFERROR(IF(E92>1,1-(EXP((1/E92^2-G92^2)*F92)*((COS(G92/E92*F92*2)*(1-erfzR(1/E92*F92^0.5,G92*F92^0.5))-SIN(G92/E92*F92*2)*(-erfzI(1/E92*F92^0.5,G92*F92^0.5)))+(COS(G92/E92*F92*2)*(-erfzI(1/E92*F92^0.5,G92*F92^0.5))+SIN(G92/E92*F92*2)*(1-erfzR(1/E92*F92^0.5,G92*F92^0.5)))/E92/G92)),1-((1/E92+G92)*EXP((1/E92+G92)^2*F92)*ERFC((1/E92+G92)*F92^0.5)-(1/E92-G92)*EXP((1/E92-G92)^2*F92)*ERFC((1/E92-G92)*F92^0.5))/2/G92),1) -> 0.7416271157
A93: PCB 57 | B93: 6.17 | C93: 5.82599 | D93: 5.656694042 | E93: 0.3421129457 | F93: 0.06897373062 | G93: 2.370861378 | H93: =IFERROR(IF(E93>1,1-(EXP((1/E93^2-G93^2)*F93)*((COS(G93/E93*F93*2)*(1-erfzR(1/E93*F93^0.5,G93*F93^0.5))-SIN(G93/E93*F93*2)*(-erfzI(1/E93*F93^0.5,G93*F93^0.5)))+(COS(G93/E93*F93*2)*(-erfzI(1/E93*F93^0.5,G93*F93^0.5))+SIN(G93/E93*F93*2)*(1-erfzR(1/E93*F93^0.5,G93*F93^0.5)))/E93/G93)),1-((1/E93+G93)*EXP((1/E93+G93)^2*F93)*ERFC((1/E93+G93)*F93^0.5)-(1/E93-G93)*EXP((1/E93-G93)^2*F93)*ERFC((1/E93-G93)*F93^0.5))/2/G93),1) -> 0.7194551959
A94: PCB 58 | B94: 6.17 | C94: 5.82599 | D94: 5.656694042 | E94: 0.3421129457 | F94: 0.06897373062 | G94: 2.370861378 | H94: =IFERROR(IF(E94>1,1-(EXP((1/E94^2-G94^2)*F94)*((COS(G94/E94*F94*2)*(1-erfzR(1/E94*F94^0.5,G94*F94^0.5))-SIN(G94/E94*F94*2)*(-erfzI(1/E94*F94^0.5,G94*F94^0.5)))+(COS(G94/E94*F94*2)*(-erfzI(1/E94*F94^0.5,G94*F94^0.5))+SIN(G94/E94*F94*2)*(1-erfzR(1/E94*F94^0.5,G94*F94^0.5)))/E94/G94)),1-((1/E94+G94)*EXP((1/E94+G94)^2*F94)*ERFC((1/E94+G94)*F94^0.5)-(1/E94-G94)*EXP((1/E94-G94)^2*F94)*ERFC((1/E94-G94)*F94^0.5))/2/G94),1) -> 0.7194551959
A95: PCB 59 | B95: 5.95 | C95: 5.61765 | D95: 5.531259488 | E95: 0.2826598096 | F95: 0.09207002695 | G95: 2.996391247 | H95: =IFERROR(IF(E95>1,1-(EXP((1/E95^2-G95^2)*F95)*((COS(G95/E95*F95*2)*(1-erfzR(1/E95*F95^0.5,G95*F95^0.5))-SIN(G95/E95*F95*2)*(-erfzI(1/E95*F95^0.5,G95*F95^0.5)))+(COS(G95/E95*F95*2)*(-erfzI(1/E95*F95^0.5,G95*F95^0.5))+SIN(G95/E95*F95*2)*(1-erfzR(1/E95*F95^0.5,G95*F95^0.5)))/E95/G95)),1-((1/E95+G95)*EXP((1/E95+G95)^2*F95)*ERFC((1/E95+G95)*F95^0.5)-(1/E95-G95)*EXP((1/E95-G95)^2*F95)*ERFC((1/E95-G95)*F95^0.5))/2/G95),1) -> 0.7952651783
A96: PCB 60 | B96: 6.11 | C96: 5.76917 | D96: 5.622484618 | E96: 0.3247573075 | F96: 0.07462651146 | G96: 2.530294167 | H96: =IFERROR(IF(E96>1,1-(EXP((1/E96^2-G96^2)*F96)*((COS(G96/E96*F96*2)*(1-erfzR(1/E96*F96^0.5,G96*F96^0.5))-SIN(G96/E96*F96*2)*(-erfzI(1/E96*F96^0.5,G96*F96^0.5)))+(COS(G96/E96*F96*2)*(-erfzI(1/E96*F96^0.5,G96*F96^0.5))+SIN(G96/E96*F96*2)*(1-erfzR(1/E96*F96^0.5,G96*F96^0.5)))/E96/G96)),1-((1/E96+G96)*EXP((1/E96+G96)^2*F96)*ERFC((1/E96+G96)*F96^0.5)-(1/E96-G96)*EXP((1/E96-G96)^2*F96)*ERFC((1/E96-G96)*F96^0.5))/2/G96),1) -> 0.7416271157
A97: PCB 61 | B97: 6.04 | C97: 5.70288 | D97: 5.582573624 | E97: 0.3056187017 | F97: 0.08180957465 | G97: 2.726585252 | H97: =IFERROR(IF(E97>1,1-(EXP((1/E97^2-G97^2)*F97)*((COS(G97/E97*F97*2)*(1-erfzR(1/E97*F97^0.5,G97*F97^0.5))-SIN(G97/E97*F97*2)*(-erfzI(1/E97*F97^0.5,G97*F97^0.5)))+(COS(G97/E97*F97*2)*(-erfzI(1/E97*F97^0.5,G97*F97^0.5))+SIN(G97/E97*F97*2)*(1-erfzR(1/E97*F97^0.5,G97*F97^0.5)))/E97/G97)),1-((1/E97+G97)*EXP((1/E97+G97)^2*F97)*ERFC((1/E97+G97)*F97^0.5)-(1/E97-G97)*EXP((1/E97-G97)^2*F97)*ERFC((1/E97-G97)*F97^0.5))/2/G97),1) -> 0.7661095314
A98: PCB 62 | B98: 5.89 | C98: 5.56083 | D98: 5.497050064 | E98: 0.2683202722 | F98: 0.09961567773 | G98: 3.187917145 | H98: =IFERROR(IF(E98>1,1-(EXP((1/E98^2-G98^2)*F98)*((COS(G98/E98*F98*2)*(1-erfzR(1/E98*F98^0.5,G98*F98^0.5))-SIN(G98/E98*F98*2)*(-erfzI(1/E98*F98^0.5,G98*F98^0.5)))+(COS(G98/E98*F98*2)*(-erfzI(1/E98*F98^0.5,G98*F98^0.5))+SIN(G98/E98*F98*2)*(1-erfzR(1/E98*F98^0.5,G98*F98^0.5)))/E98/G98)),1-((1/E98+G98)*EXP((1/E98+G98)^2*F98)*ERFC((1/E98+G98)*F98^0.5)-(1/E98-G98)*EXP((1/E98-G98)^2*F98)*ERFC((1/E98-G98)*F98^0.5))/2/G98),1) -> 0.8132059974
A99: PCB 63 | B99: 6.17 | C99: 5.82599 | D99: 5.656694042 | E99: 0.3421129457 | F99: 0.06897373062 | G99: 2.370861378 | H99: =IFERROR(IF(E99>1,1-(EXP((1/E99^2-G99^2)*F99)*((COS(G99/E99*F99*2)*(1-erfzR(1/E99*F99^0.5,G99*F99^0.5))-SIN(G99/E99*F99*2)*(-erfzI(1/E99*F99^0.5,G99*F99^0.5)))+(COS(G99/E99*F99*2)*(-erfzI(1/E99*F99^0.5,G99*F99^0.5))+SIN(G99/E99*F99*2)*(1-erfzR(1/E99*F99^0.5,G99*F99^0.5)))/E99/G99)),1-((1/E99+G99)*EXP((1/E99+G99)^2*F99)*ERFC((1/E99+G99)*F99^0.5)-(1/E99-G99)*EXP((1/E99-G99)^2*F99)*ERFC((1/E99-G99)*F99^0.5))/2/G99),1) -> 0.7194551959
A100: PCB 64 | B100: 5.95 | C100: 5.61765 | D100: 5.531259488 | E100: 0.2826598096 | F100: 0.09207002695 | G100: 2.996391247 | H100: =IFERROR(IF(E100>1,1-(EXP((1/E100^2-G100^2)*F100)*((COS(G100/E100*F100*2)*(1-erfzR(1/E100*F100^0.5,G100*F100^0.5))-SIN(G100/E100*F100*2)*(-erfzI(1/E100*F100^0.5,G100*F100^0.5)))+(COS(G100/E100*F100*2)*(-erfzI(1/E100*F100^0.5,G100*F100^0.5))+SIN(G100/E100*F100*2)*(1-erfzR(1/E100*F100^0.5,G100*F100^0.5)))/E100/G100)),1-((1/E100+G100)*EXP((1/E100+G100)^2*F100)*ERFC((1/E100+G100)*F100^0.5)-(1/E100-G100)*EXP((1/E100-G100)^2*F100)*ERFC((1/E100-G100)*F100^0.5))/2/G100),1) -> 0.7952651783
A101: PCB 65 | B101: 5.86 | C101: 5.53242 | D101: 5.479945352 | E101: 0.2614256507 | F101: 0.1036173321 | G101: 3.28737246 | H101: =IFERROR(IF(E101>1,1-(EXP((1/E101^2-G101^2)*F101)*((COS(G101/E101*F101*2)*(1-erfzR(1/E101*F101^0.5,G101*F101^0.5))-SIN(G101/E101*F101*2)*(-erfzI(1/E101*F101^0.5,G101*F101^0.5)))+(COS(G101/E101*F101*2)*(-erfzI(1/E101*F101^0.5,G101*F101^0.5))+SIN(G101/E101*F101*2)*(1-erfzR(1/E101*F101^0.5,G101*F101^0.5)))/E101/G101)),1-((1/E101+G101)*EXP((1/E101+G101)^2*F101)*ERFC((1/E101+G101)*F101^0.5)-(1/E101-G101)*EXP((1/E101-G101)^2*F101)*ERFC((1/E101-G101)*F101^0.5))/2/G101),1) -> 0.8217239512
A102: PCB 66 | B102: 6.2 | C102: =B102*0.947-0.017 -> 5.8544 | D102: =B102*$B$30+$B$31 -> 5.673798754 | E102: =10^C102*($C$8^2-$C$7^2)/10^D102/$C$8^2 -> 0.3511355464 | F102: =$B$29*$C$9*86400/10^D102/$C$8^2 -> 0.06630999645 | G102: =IF(E102>1,(1/E102-1/E102^2)^0.5,(1/E102^2-1/E102)^0.5) -> 2.294046385 | H102: =IFERROR(IF(E102>1,1-(EXP((1/E102^2-G102^2)*F102)*((COS(G102/E102*F102*2)*(1-erfzR(1/E102*F102^0.5,G102*F102^0.5))-SIN(G102/E102*F102*2)*(-erfzI(1/E102*F102^0.5,G102*F102^0.5)))+(COS(G102/E102*F102*2)*(-erfzI(1/E102*F102^0.5,G102*F102^0.5))+SIN(G102/E102*F102*2)*(1-erfzR(1/E102*F102^0.5,G102*F102^0.5)))/E102/G102)),1-((1/E102+G102)*EXP((1/E102+G102)^2*F102)*ERFC((1/E102+G102)*F102^0.5)-(1/E102-G102)*EXP((1/E102-G102)^2*F102)*ERFC((1/E102-G102)*F102^0.5))/2/G102),1) -> 0.707983329
A103: PCB 67 | B103: 6.2 | C103: 5.8544 | D103: 5.673798754 | E103: 0.3511355464 | F103: 0.06630999645 | G103: 2.294046385 | H103: =IFERROR(IF(E103>1,1-(EXP((1/E103^2-G103^2)*F103)*((COS(G103/E103*F103*2)*(1-erfzR(1/E103*F103^0.5,G103*F103^0.5))-SIN(G103/E103*F103*2)*(-erfzI(1/E103*F103^0.5,G103*F103^0.5)))+(COS(G103/E103*F103*2)*(-erfzI(1/E103*F103^0.5,G103*F103^0.5))+SIN(G103/E103*F103*2)*(1-erfzR(1/E103*F103^0.5,G103*F103^0.5)))/E103/G103)),1-((1/E103+G103)*EXP((1/E103+G103)^2*F103)*ERFC((1/E103+G103)*F103^0.5)-(1/E103-G103)*EXP((1/E103-G103)^2*F103)*ERFC((1/E103-G103)*F103^0.5))/2/G103),1) -> 0.707983329
A104: PCB 68 | B104: 6.26 | C104: 5.91122 | D104: 5.708008177 | E104: 0.3699008871 | F104: 0.06128717185 | G104: 2.145947344 | H104: =IFERROR(IF(E104>1,1-(EXP((1/E104^2-G104^2)*F104)*((COS(G104/E104*F104*2)*(1-erfzR(1/E104*F104^0.5,G104*F104^0.5))-SIN(G104/E104*F104*2)*(-erfzI(1/E104*F104^0.5,G104*F104^0.5)))+(COS(G104/E104*F104*2)*(-erfzI(1/E104*F104^0.5,G104*F104^0.5))+SIN(G104/E104*F104*2)*(1-erfzR(1/E104*F104^0.5,G104*F104^0.5)))/E104/G104)),1-((1/E104+G104)*EXP((1/E104+G104)^2*F104)*ERFC((1/E104+G104)*F104^0.5)-(1/E104-G104)*EXP((1/E104-G104)^2*F104)*ERFC((1/E104-G104)*F104^0.5))/2/G104),1) -> 0.6843261728
A105: PCB 69 | B105: 6.04 | C105: 5.70288 | D105: 5.582573624 | E105: 0.3056187017 | F105: 0.08180957465 | G105: 2.726585252 | H105: =IFERROR(IF(E105>1,1-(EXP((1/E105^2-G105^2)*F105)*((COS(G105/E105*F105*2)*(1-erfzR(1/E105*F105^0.5,G105*F105^0.5))-SIN(G105/E105*F105*2)*(-erfzI(1/E105*F105^0.5,G105*F105^0.5)))+(COS(G105/E105*F105*2)*(-erfzI(1/E105*F105^0.5,G105*F105^0.5))+SIN(G105/E105*F105*2)*(1-erfzR(1/E105*F105^0.5,G105*F105^0.5)))/E105/G105)),1-((1/E105+G105)*EXP((1/E105+G105)^2*F105)*ERFC((1/E105+G105)*F105^0.5)-(1/E105-G105)*EXP((1/E105-G105)^2*F105)*ERFC((1/E105-G105)*F105^0.5))/2/G105),1) -> 0.7661095314
A106: PCB 70 | B106: 6.2 | C106: 5.8544 | D106: 5.673798754 | E106: 0.3511355464 | F106: 0.06630999645 | G106: 2.294046385 | H106: =IFERROR(IF(E106>1,1-(EXP((1/E106^2-G106^2)*F106)*((COS(G106/E106*F106*2)*(1-erfzR(1/E106*F106^0.5,G106*F106^0.5))-SIN(G106/E106*F106*2)*(-erfzI(1/E106*F106^0.5,G106*F106^0.5)))+(COS(G106/E106*F106*2)*(-erfzI(1/E106*F106^0.5,G106*F106^0.5))+SIN(G106/E106*F106*2)*(1-erfzR(1/E106*F106^0.5,G106*F106^0.5)))/E106/G106)),1-((1/E106+G106)*EXP((1/E106+G106)^2*F106)*ERFC((1/E106+G106)*F106^0.5)-(1/E106-G106)*EXP((1/E106-G106)^2*F106)*ERFC((1/E106-G106)*F106^0.5))/2/G106),1) -> 0.707983329
A107: PCB 71 | B107: 5.98 | C107: 5.64606 | D107: 5.5483642 | E107: 0.2901144431 | F107: 0.0885143243 | G107: 2.904188624 | H107: =IFERROR(IF(E107>1,1-(EXP((1/E107^2-G107^2)*F107)*((COS(G107/E107*F107*2)*(1-erfzR(1/E107*F107^0.5,G107*F107^0.5))-SIN(G107/E107*F107*2)*(-erfzI(1/E107*F107^0.5,G107*F107^0.5)))+(COS(G107/E107*F107*2)*(-erfzI(1/E107*F107^0.5,G107*F107^0.5))+SIN(G107/E107*F107*2)*(1-erfzR(1/E107*F107^0.5,G107*F107^0.5)))/E107/G107)),1-((1/E107+G107)*EXP((1/E107+G107)^2*F107)*ERFC((1/E107+G107)*F107^0.5)-(1/E107-G107)*EXP((1/E107-G107)^2*F107)*ERFC((1/E107-G107)*F107^0.5))/2/G107),1) -> 0.7858435305
A108: PCB 72 | B108: 6.26 | C108: 5.91122 | D108: 5.708008177 | E108: 0.3699008871 | F108: 0.06128717185 | G108: 2.145947344 | H108: =IFERROR(IF(E108>1,1-(EXP((1/E108^2-G108^2)*F108)*((COS(G108/E108*F108*2)*(1-erfzR(1/E108*F108^0.5,G108*F108^0.5))-SIN(G108/E108*F108*2)*(-erfzI(1/E108*F108^0.5,G108*F108^0.5)))+(COS(G108/E108*F108*2)*(-erfzI(1/E108*F108^0.5,G108*F108^0.5))+SIN(G108/E108*F108*2)*(1-erfzR(1/E108*F108^0.5,G108*F108^0.5)))/E108/G108)),1-((1/E108+G108)*EXP((1/E108+G108)^2*F108)*ERFC((1/E108+G108)*F108^0.5)-(1/E108-G108)*EXP((1/E108-G108)^2*F108)*ERFC((1/E108-G108)*F108^0.5))/2/G108),1) -> 0.6843261728
A109: PCB 73 | B109: 6.04 | C109: 5.70288 | D109: 5.582573624 | E109: 0.3056187017 | F109: 0.08180957465 | G109: 2.726585252 | H109: =IFERROR(IF(E109>1,1-(EXP((1/E109^2-G109^2)*F109)*((COS(G109/E109*F109*2)*(1-erfzR(1/E109*F109^0.5,G109*F109^0.5))-SIN(G109/E109*F109*2)*(-erfzI(1/E109*F109^0.5,G109*F109^0.5)))+(COS(G109/E109*F109*2)*(-erfzI(1/E109*F109^0.5,G109*F109^0.5))+SIN(G109/E109*F109*2)*(1-erfzR(1/E109*F109^0.5,G109*F109^0.5)))/E109/G109)),1-((1/E109+G109)*EXP((1/E109+G109)^2*F109)*ERFC((1/E109+G109)*F109^0.5)-(1/E109-G109)*EXP((1/E109-G109)^2*F109)*ERFC((1/E109-G109)*F109^0.5))/2/G109),1) -> 0.7661095314
A110: PCB 74 | B110: 6.2 | C110: 5.8544 | D110: 5.673798754 | E110: 0.3511355464 | F110: 0.06630999645 | G110: 2.294046385 | H110: =IFERROR(IF(E110>1,1-(EXP((1/E110^2-G110^2)*F110)*((COS(G110/E110*F110*2)*(1-erfzR(1/E110*F110^0.5,G110*F110^0.5))-SIN(G110/E110*F110*2)*(-erfzI(1/E110*F110^0.5,G110*F110^0.5)))+(COS(G110/E110*F110*2)*(-erfzI(1/E110*F110^0.5,G110*F110^0.5))+SIN(G110/E110*F110*2)*(1-erfzR(1/E110*F110^0.5,G110*F110^0.5)))/E110/G110)),1-((1/E110+G110)*EXP((1/E110+G110)^2*F110)*ERFC((1/E110+G110)*F110^0.5)-(1/E110-G110)*EXP((1/E110-G110)^2*F110)*ERFC((1/E110-G110)*F110^0.5))/2/G110),1) -> 0.707983329
A111: PCB 75 | B111: 6.05 | C111: 5.71235 | D111: 5.588275194 | E111: 0.3082821335 | F111: 0.08074256913 | G111: 2.697839697 | H111: =IFERROR(IF(E111>1,1-(EXP((1/E111^2-G111^2)*F111)*((COS(G111/E111*F111*2)*(1-erfzR(1/E111*F111^0.5,G111*F111^0.5))-SIN(G111/E111*F111*2)*(-erfzI(1/E111*F111^0.5,G111*F111^0.5)))+(COS(G111/E111*F111*2)*(-erfzI(1/E111*F111^0.5,G111*F111^0.5))+SIN(G111/E111*F111*2)*(1-erfzR(1/E111*F111^0.5,G111*F111^0.5)))/E111/G111)),1-((1/E111+G111)*EXP((1/E111+G111)^2*F111)*ERFC((1/E111+G111)*F111^0.5)-(1/E111-G111)*EXP((1/E111-G111)^2*F111)*ERFC((1/E111-G111)*F111^0.5))/2/G111),1) -> 0.7627067935
A112: PCB 76 | B112: 6.13 | C112: 5.78811 | D112: 5.633887759 | E112: 0.3304424176 | F112: 0.07269256593 | G112: 2.476271022 | H112: =IFERROR(IF(E112>1,1-(EXP((1/E112^2-G112^2)*F112)*((COS(G112/E112*F112*2)*(1-erfzR(1/E112*F112^0.5,G112*F112^0.5))-SIN(G112/E112*F112*2)*(-erfzI(1/E112*F112^0.5,G112*F112^0.5)))+(COS(G112/E112*F112*2)*(-erfzI(1/E112*F112^0.5,G112*F112^0.5))+SIN(G112/E112*F112*2)*(1-erfzR(1/E112*F112^0.5,G112*F112^0.5)))/E112/G112)),1-((1/E112+G112)*EXP((1/E112+G112)^2*F112)*ERFC((1/E112+G112)*F112^0.5)-(1/E112-G112)*EXP((1/E112-G112)^2*F112)*ERFC((1/E112-G112)*F112^0.5))/2/G112),1) -> 0.7343543899
A113: PCB 77 | B113: 6.36 | C113: 6.00592 | D113: 5.765023884 | E113: 0.4034313714 | F113: 0.05374695625 | G113: 1.914522785 | H113: =IFERROR(IF(E113>1,1-(EXP((1/E113^2-G113^2)*F113)*((COS(G113/E113*F113*2)*(1-erfzR(1/E113*F113^0.5,G113*F113^0.5))-SIN(G113/E113*F113*2)*(-erfzI(1/E113*F113^0.5,G113*F113^0.5)))+(COS(G113/E113*F113*2)*(-erfzI(1/E113*F113^0.5,G113*F113^0.5))+SIN(G113/E113*F113*2)*(1-erfzR(1/E113*F113^0.5,G113*F113^0.5)))/E113/G113)),1-((1/E113+G113)*EXP((1/E113+G113)^2*F113)*ERFC((1/E113+G113)*F113^0.5)-(1/E113-G113)*EXP((1/E113-G113)^2*F113)*ERFC((1/E113-G113)*F113^0.5))/2/G113),1) -> 0.6430482203
A114: PCB 78 | B114: 6.35 | C114: 5.99645 | D114: 5.759322313 | E114: 0.3999458891 | F114: 0.05445721726 | G114: 1.936841003 | H114: =IFERROR(IF(E114>1,1-(EXP((1/E114^2-G114^2)*F114)*((COS(G114/E114*F114*2)*(1-erfzR(1/E114*F114^0.5,G114*F114^0.5))-SIN(G114/E114*F114*2)*(-erfzI(1/E114*F114^0.5,G114*F114^0.5)))+(COS(G114/E114*F114*2)*(-erfzI(1/E114*F114^0.5,G114*F114^0.5))+SIN(G114/E114*F114*2)*(1-erfzR(1/E114*F114^0.5,G114*F114^0.5)))/E114/G114)),1-((1/E114+G114)*EXP((1/E114+G114)^2*F114)*ERFC((1/E114+G114)*F114^0.5)-(1/E114-G114)*EXP((1/E114-G114)^2*F114)*ERFC((1/E114-G114)*F114^0.5))/2/G114),1) -> 0.6472669876
A115: PCB 79 | B115: 6.42 | C115: 6.06274 | D115: 5.799233307 | E115: 0.4249914988 | F115: 0.04967575208 | G115: 1.784254867 | H115: =IFERROR(IF(E115>1,1-(EXP((1/E115^2-G115^2)*F115)*((COS(G115/E115*F115*2)*(1-erfzR(1/E115*F115^0.5,G115*F115^0.5))-SIN(G115/E115*F115*2)*(-erfzI(1/E115*F115^0.5,G115*F115^0.5)))+(COS(G115/E115*F115*2)*(-erfzI(1/E115*F115^0.5,G115*F115^0.5))+SIN(G115/E115*F115*2)*(1-erfzR(1/E115*F115^0.5,G115*F115^0.5)))/E115/G115)),1-((1/E115+G115)*EXP((1/E115+G115)^2*F115)*ERFC((1/E115+G115)*F115^0.5)-(1/E115-G115)*EXP((1/E115-G115)^2*F115)*ERFC((1/E115-G115)*F115^0.5))/2/G115),1) -> 0.6173828836
A116: PCB 80 | B116: 6.48 | C116: 6.11956 | D116: 5.833442731 | E116: 0.4477038397 | F116: 0.04591293195 | G116: 1.659950712 | H116: =IFERROR(IF(E116>1,1-(EXP((1/E116^2-G116^2)*F116)*((COS(G116/E116*F116*2)*(1-erfzR(1/E116*F116^0.5,G116*F116^0.5))-SIN(G116/E116*F116*2)*(-erfzI(1/E116*F116^0.5,G116*F116^0.5)))+(COS(G116/E116*F116*2)*(-erfzI(1/E116*F116^0.5,G116*F116^0.5))+SIN(G116/E116*F116*2)*(1-erfzR(1/E116*F116^0.5,G116*F116^0.5)))/E116/G116)),1-((1/E116+G116)*EXP((1/E116+G116)^2*F116)*ERFC((1/E116+G116)*F116^0.5)-(1/E116-G116)*EXP((1/E116-G116)^2*F116)*ERFC((1/E116-G116)*F116^0.5))/2/G116),1) -> 0.5912202758
A117: PCB 81 | B117: 6.36 | C117: 6.00592 | D117: 5.765023884 | E117: 0.4034313714 | F117: 0.05374695625 | G117: 1.914522785 | H117: =IFERROR(IF(E117>1,1-(EXP((1/E117^2-G117^2)*F117)*((COS(G117/E117*F117*2)*(1-erfzR(1/E117*F117^0.5,G117*F117^0.5))-SIN(G117/E117*F117*2)*(-erfzI(1/E117*F117^0.5,G117*F117^0.5)))+(COS(G117/E117*F117*2)*(-erfzI(1/E117*F117^0.5,G117*F117^0.5))+SIN(G117/E117*F117*2)*(1-erfzR(1/E117*F117^0.5,G117*F117^0.5)))/E117/G117)),1-((1/E117+G117)*EXP((1/E117+G117)^2*F117)*ERFC((1/E117+G117)*F117^0.5)-(1/E117-G117)*EXP((1/E117-G117)^2*F117)*ERFC((1/E117-G117)*F117^0.5))/2/G117),1) -> 0.6430482203
A118: PCB 82 | B118: 6.2 | C118: 5.8544 | D118: 5.673798754 | E118: 0.3511355464 | F118: 0.06630999645 | G118: 2.294046385 | H118: =IFERROR(IF(E118>1,1-(EXP((1/E118^2-G118^2)*F118)*((COS(G118/E118*F118*2)*(1-erfzR(1/E118*F118^0.5,G118*F118^0.5))-SIN(G118/E118*F118*2)*(-erfzI(1/E118*F118^0.5,G118*F118^0.5)))+(COS(G118/E118*F118*2)*(-erfzI(1/E118*F118^0.5,G118*F118^0.5))+SIN(G118/E118*F118*2)*(1-erfzR(1/E118*F118^0.5,G118*F118^0.5)))/E118/G118)),1-((1/E118+G118)*EXP((1/E118+G118)^2*F118)*ERFC((1/E118+G118)*F118^0.5)-(1/E118-G118)*EXP((1/E118-G118)^2*F118)*ERFC((1/E118-G118)*F118^0.5))/2/G118),1) -> 0.707983329
A119: PCB 83 | B119: 6.26 | C119: 5.91122 | D119: 5.708008177 | E119: 0.3699008871 | F119: 0.06128717185 | G119: 2.145947344 | H119: =IFERROR(IF(E119>1,1-(EXP((1/E119^2-G119^2)*F119)*((COS(G119/E119*F119*2)*(1-erfzR(1/E119*F119^0.5,G119*F119^0.5))-SIN(G119/E119*F119*2)*(-erfzI(1/E119*F119^0.5,G119*F119^0.5)))+(COS(G119/E119*F119*2)*(-erfzI(1/E119*F119^0.5,G119*F119^0.5))+SIN(G119/E119*F119*2)*(1-erfzR(1/E119*F119^0.5,G119*F119^0.5)))/E119/G119)),1-((1/E119+G119)*EXP((1/E119+G119)^2*F119)*ERFC((1/E119+G119)*F119^0.5)-(1/E119-G119)*EXP((1/E119-G119)^2*F119)*ERFC((1/E119-G119)*F119^0.5))/2/G119),1) -> 0.6843261728
A120: PCB 84 | B120: 6.04 | C120: 5.70288 | D120: 5.582573624 | E120: 0.3056187017 | F120: 0.08180957465 | G120: 2.726585252 | H120: =IFERROR(IF(E120>1,1-(EXP((1/E120^2-G120^2)*F120)*((COS(G120/E120*F120*2)*(1-erfzR(1/E120*F120^0.5,G120*F120^0.5))-SIN(G120/E120*F120*2)*(-erfzI(1/E120*F120^0.5,G120*F120^0.5)))+(COS(G120/E120*F120*2)*(-erfzI(1/E120*F120^0.5,G120*F120^0.5))+SIN(G120/E120*F120*2)*(1-erfzR(1/E120*F120^0.5,G120*F120^0.5)))/E120/G120)),1-((1/E120+G120)*EXP((1/E120+G120)^2*F120)*ERFC((1/E120+G120)*F120^0.5)-(1/E120-G120)*EXP((1/E120-G120)^2*F120)*ERFC((1/E120-G120)*F120^0.5))/2/G120),1) -> 0.7661095314
A121: PCB 85 | B121: 6.3 | C121: 5.9491 | D121: 5.73081446 | E121: 0.382965005 | F121: 0.05815181824 | G121: 2.051142378 | H121: =IFERROR(IF(E121>1,1-(EXP((1/E121^2-G121^2)*F121)*((COS(G121/E121*F121*2)*(1-erfzR(1/E121*F121^0.5,G121*F121^0.5))-SIN(G121/E121*F121*2)*(-erfzI(1/E121*F121^0.5,G121*F121^0.5)))+(COS(G121/E121*F121*2)*(-erfzI(1/E121*F121^0.5,G121*F121^0.5))+SIN(G121/E121*F121*2)*(1-erfzR(1/E121*F121^0.5,G121*F121^0.5)))/E121/G121)),1-((1/E121+G121)*EXP((1/E121+G121)^2*F121)*ERFC((1/E121+G121)*F121^0.5)-(1/E121-G121)*EXP((1/E121-G121)^2*F121)*ERFC((1/E121-G121)*F121^0.5))/2/G121),1) -> 0.6680697898
A122: PCB 86 | B122: 6.23 | C122: 5.88281 | D122: 5.690903466 | E122: 0.3603961017 | F122: 0.06374913449 | G122: 2.21909281 | H122: =IFERROR(IF(E122>1,1-(EXP((1/E122^2-G122^2)*F122)*((COS(G122/E122*F122*2)*(1-erfzR(1/E122*F122^0.5,G122*F122^0.5))-SIN(G122/E122*F122*2)*(-erfzI(1/E122*F122^0.5,G122*F122^0.5)))+(COS(G122/E122*F122*2)*(-erfzI(1/E122*F122^0.5,G122*F122^0.5))+SIN(G122/E122*F122*2)*(1-erfzR(1/E122*F122^0.5,G122*F122^0.5)))/E122/G122)),1-((1/E122+G122)*EXP((1/E122+G122)^2*F122)*ERFC((1/E122+G122)*F122^0.5)-(1/E122-G122)*EXP((1/E122-G122)^2*F122)*ERFC((1/E122-G122)*F122^0.5))/2/G122),1) -> 0.6962693574
A123: PCB 87 | B123: 6.29 | C123: 5.93963 | D123: 5.725112889 | E123: 0.3796563437 | F123: 0.0589202891 | G123: 2.074557668 | H123: =IFERROR(IF(E123>1,1-(EXP((1/E123^2-G123^2)*F123)*((COS(G123/E123*F123*2)*(1-erfzR(1/E123*F123^0.5,G123*F123^0.5))-SIN(G123/E123*F123*2)*(-erfzI(1/E123*F123^0.5,G123*F123^0.5)))+(COS(G123/E123*F123*2)*(-erfzI(1/E123*F123^0.5,G123*F123^0.5))+SIN(G123/E123*F123*2)*(1-erfzR(1/E123*F123^0.5,G123*F123^0.5)))/E123/G123)),1-((1/E123+G123)*EXP((1/E123+G123)^2*F123)*ERFC((1/E123+G123)*F123^0.5)-(1/E123-G123)*EXP((1/E123-G123)^2*F123)*ERFC((1/E123-G123)*F123^0.5))/2/G123),1) -> 0.6721678117
A124: PCB 88 | B124: 6.07 | C124: 5.73129 | D124: 5.599678336 | E124: 0.3136788338 | F124: 0.07865012601 | G124: 2.641061302 | H124: =IFERROR(IF(E124>1,1-(EXP((1/E124^2-G124^2)*F124)*((COS(G124/E124*F124*2)*(1-erfzR(1/E124*F124^0.5,G124*F124^0.5))-SIN(G124/E124*F124*2)*(-erfzI(1/E124*F124^0.5,G124*F124^0.5)))+(COS(G124/E124*F124*2)*(-erfzI(1/E124*F124^0.5,G124*F124^0.5))+SIN(G124/E124*F124*2)*(1-erfzR(1/E124*F124^0.5,G124*F124^0.5)))/E124/G124)),1-((1/E124+G124)*EXP((1/E124+G124)^2*F124)*ERFC((1/E124+G124)*F124^0.5)-(1/E124-G124)*EXP((1/E124-G124)^2*F124)*ERFC((1/E124-G124)*F124^0.5))/2/G124),1) -> 0.7558055809
A125: PCB 89 | B125: 6.07 | C125: 5.73129 | D125: 5.599678336 | E125: 0.3136788338 | F125: 0.07865012601 | G125: 2.641061302 | H125: =IFERROR(IF(E125>1,1-(EXP((1/E125^2-G125^2)*F125)*((COS(G125/E125*F125*2)*(1-erfzR(1/E125*F125^0.5,G125*F125^0.5))-SIN(G125/E125*F125*2)*(-erfzI(1/E125*F125^0.5,G125*F125^0.5)))+(COS(G125/E125*F125*2)*(-erfzI(1/E125*F125^0.5,G125*F125^0.5))+SIN(G125/E125*F125*2)*(1-erfzR(1/E125*F125^0.5,G125*F125^0.5)))/E125/G125)),1-((1/E125+G125)*EXP((1/E125+G125)^2*F125)*ERFC((1/E125+G125)*F125^0.5)-(1/E125-G125)*EXP((1/E125-G125)^2*F125)*ERFC((1/E125-G125)*F125^0.5))/2/G125),1) -> 0.7558055809
A126: PCB 90 | B126: 6.36 | C126: 6.00592 | D126: 5.765023884 | E126: 0.4034313714 | F126: 0.05374695625 | G126: 1.914522785 | H126: =IFERROR(IF(E126>1,1-(EXP((1/E126^2-G126^2)*F126)*((COS(G126/E126*F126*2)*(1-erfzR(1/E126*F126^0.5,G126*F126^0.5))-SIN(G126/E126*F126*2)*(-erfzI(1/E126*F126^0.5,G126*F126^0.5)))+(COS(G126/E126*F126*2)*(-erfzI(1/E126*F126^0.5,G126*F126^0.5))+SIN(G126/E126*F126*2)*(1-erfzR(1/E126*F126^0.5,G126*F126^0.5)))/E126/G126)),1-((1/E126+G126)*EXP((1/E126+G126)^2*F126)*ERFC((1/E126+G126)*F126^0.5)-(1/E126-G126)*EXP((1/E126-G126)^2*F126)*ERFC((1/E126-G126)*F126^0.5))/2/G126),1) -> 0.6430482203
A127: PCB 91 | B127: 6.13 | C127: 5.78811 | D127: 5.633887759 | E127: 0.3304424176 | F127: 0.07269256593 | G127: 2.476271022 | H127: =IFERROR(IF(E127>1,1-(EXP((1/E127^2-G127^2)*F127)*((COS(G127/E127*F127*2)*(1-erfzR(1/E127*F127^0.5,G127*F127^0.5))-SIN(G127/E127*F127*2)*(-erfzI(1/E127*F127^0.5,G127*F127^0.5)))+(COS(G127/E127*F127*2)*(-erfzI(1/E127*F127^0.5,G127*F127^0.5))+SIN(G127/E127*F127*2)*(1-erfzR(1/E127*F127^0.5,G127*F127^0.5)))/E127/G127)),1-((1/E127+G127)*EXP((1/E127+G127)^2*F127)*ERFC((1/E127+G127)*F127^0.5)-(1/E127-G127)*EXP((1/E127-G127)^2*F127)*ERFC((1/E127-G127)*F127^0.5))/2/G127),1) -> 0.7343543899
A128: PCB 92 | B128: 6.35 | C128: 5.99645 | D128: 5.759322313 | E128: 0.3999458891 | F128: 0.05445721726 | G128: 1.936841003 | H128: =IFERROR(IF(E128>1,1-(EXP((1/E128^2-G128^2)*F128)*((COS(G128/E128*F128*2)*(1-erfzR(1/E128*F128^0.5,G128*F128^0.5))-SIN(G128/E128*F128*2)*(-erfzI(1/E128*F128^0.5,G128*F128^0.5)))+(COS(G128/E128*F128*2)*(-erfzI(1/E128*F128^0.5,G128*F128^0.5))+SIN(G128/E128*F128*2)*(1-erfzR(1/E128*F128^0.5,G128*F128^0.5)))/E128/G128)),1-((1/E128+G128)*EXP((1/E128+G128)^2*F128)*ERFC((1/E128+G128)*F128^0.5)-(1/E128-G128)*EXP((1/E128-G128)^2*F128)*ERFC((1/E128-G128)*F128^0.5))/2/G128),1) -> 0.6472669876
A129: PCB 93 | B129: 6.04 | C129: 5.70288 | D129: 5.582573624 | E129: 0.3056187017 | F129: 0.08180957465 | G129: 2.726585252 | H129: =IFERROR(IF(E129>1,1-(EXP((1/E129^2-G129^2)*F129)*((COS(G129/E129*F129*2)*(1-erfzR(1/E129*F129^0.5,G129*F129^0.5))-SIN(G129/E129*F129*2)*(-erfzI(1/E129*F129^0.5,G129*F129^0.5)))+(COS(G129/E129*F129*2)*(-erfzI(1/E129*F129^0.5,G129*F129^0.5))+SIN(G129/E129*F129*2)*(1-erfzR(1/E129*F129^0.5,G129*F129^0.5)))/E129/G129)),1-((1/E129+G129)*EXP((1/E129+G129)^2*F129)*ERFC((1/E129+G129)*F129^0.5)-(1/E129-G129)*EXP((1/E129-G129)^2*F129)*ERFC((1/E129-G129)*F129^0.5))/2/G129),1) -> 0.7661095314
A130: PCB 94 | B130: 6.13 | C130: 5.78811 | D130: 5.633887759 | E130: 0.3304424176 | F130: 0.07269256593 | G130: 2.476271022 | H130: =IFERROR(IF(E130>1,1-(EXP((1/E130^2-G130^2)*F130)*((COS(G130/E130*F130*2)*(1-erfzR(1/E130*F130^0.5,G130*F130^0.5))-SIN(G130/E130*F130*2)*(-erfzI(1/E130*F130^0.5,G130*F130^0.5)))+(COS(G130/E130*F130*2)*(-erfzI(1/E130*F130^0.5,G130*F130^0.5))+SIN(G130/E130*F130*2)*(1-erfzR(1/E130*F130^0.5,G130*F130^0.5)))/E130/G130)),1-((1/E130+G130)*EXP((1/E130+G130)^2*F130)*ERFC((1/E130+G130)*F130^0.5)-(1/E130-G130)*EXP((1/E130-G130)^2*F130)*ERFC((1/E130-G130)*F130^0.5))/2/G130),1) -> 0.7343543899
A131: PCB 95 | B131: 6.13 | C131: 5.78811 | D131: 5.633887759 | E131: 0.3304424176 | F131: 0.07269256593 | G131: 2.476271022 | H131: =IFERROR(IF(E131>1,1-(EXP((1/E131^2-G131^2)*F131)*((COS(G131/E131*F131*2)*(1-erfzR(1/E131*F131^0.5,G131*F131^0.5))-SIN(G131/E131*F131*2)*(-erfzI(1/E131*F131^0.5,G131*F131^0.5)))+(COS(G131/E131*F131*2)*(-erfzI(1/E131*F131^0.5,G131*F131^0.5))+SIN(G131/E131*F131*2)*(1-erfzR(1/E131*F131^0.5,G131*F131^0.5)))/E131/G131)),1-((1/E131+G131)*EXP((1/E131+G131)^2*F131)*ERFC((1/E131+G131)*F131^0.5)-(1/E131-G131)*EXP((1/E131-G131)^2*F131)*ERFC((1/E131-G131)*F131^0.5))/2/G131),1) -> 0.7343543899
A132: PCB 96 | B132: 5.71 | C132: 5.39037 | D132: 5.394421793 | E132: 0.2295206457 | F132: 0.12616996 | G132: 3.824359813 | H132: =IFERROR(IF(E132>1,1-(EXP((1/E132^2-G132^2)*F132)*((COS(G132/E132*F132*2)*(1-erfzR(1/E132*F132^0.5,G132*F132^0.5))-SIN(G132/E132*F132*2)*(-erfzI(1/E132*F132^0.5,G132*F132^0.5)))+(COS(G132/E132*F132*2)*(-erfzI(1/E132*F132^0.5,G132*F132^0.5))+SIN(G132/E132*F132*2)*(1-erfzR(1/E132*F132^0.5,G132*F132^0.5)))/E132/G132)),1-((1/E132+G132)*EXP((1/E132+G132)^2*F132)*ERFC((1/E132+G132)*F132^0.5)-(1/E132-G132)*EXP((1/E132-G132)^2*F132)*ERFC((1/E132-G132)*F132^0.5))/2/G132),1) -> 0.8598569711
A133: PCB 97 | B133: 6.29 | C133: 5.93963 | D133: 5.725112889 | E133: 0.3796563437 | F133: 0.0589202891 | G133: 2.074557668 | H133: =IFERROR(IF(E133>1,1-(EXP((1/E133^2-G133^2)*F133)*((COS(G133/E133*F133*2)*(1-erfzR(1/E133*F133^0.5,G133*F133^0.5))-SIN(G133/E133*F133*2)*(-erfzI(1/E133*F133^0.5,G133*F133^0.5)))+(COS(G133/E133*F133*2)*(-erfzI(1/E133*F133^0.5,G133*F133^0.5))+SIN(G133/E133*F133*2)*(1-erfzR(1/E133*F133^0.5,G133*F133^0.5)))/E133/G133)),1-((1/E133+G133)*EXP((1/E133+G133)^2*F133)*ERFC((1/E133+G133)*F133^0.5)-(1/E133-G133)*EXP((1/E133-G133)^2*F133)*ERFC((1/E133-G133)*F133^0.5))/2/G133),1) -> 0.6721678117
A134: PCB 98 | B134: 6.13 | C134: 5.78811 | D134: 5.633887759 | E134: 0.3304424176 | F134: 0.07269256593 | G134: 2.476271022 | H134: =IFERROR(IF(E134>1,1-(EXP((1/E134^2-G134^2)*F134)*((COS(G134/E134*F134*2)*(1-erfzR(1/E134*F134^0.5,G134*F134^0.5))-SIN(G134/E134*F134*2)*(-erfzI(1/E134*F134^0.5,G134*F134^0.5)))+(COS(G134/E134*F134*2)*(-erfzI(1/E134*F134^0.5,G134*F134^0.5))+SIN(G134/E134*F134*2)*(1-erfzR(1/E134*F134^0.5,G134*F134^0.5)))/E134/G134)),1-((1/E134+G134)*EXP((1/E134+G134)^2*F134)*ERFC((1/E134+G134)*F134^0.5)-(1/E134-G134)*EXP((1/E134-G134)^2*F134)*ERFC((1/E134-G134)*F134^0.5))/2/G134),1) -> 0.7343543899
A135: PCB 99 | B135: 6.39 | C135: 6.03433 | D135: 5.782128596 | E135: 0.414071133 | F135: 0.0516712732 | G135: 1.848619342 | H135: =IFERROR(IF(E135>1,1-(EXP((1/E135^2-G135^2)*F135)*((COS(G135/E135*F135*2)*(1-erfzR(1/E135*F135^0.5,G135*F135^0.5))-SIN(G135/E135*F135*2)*(-erfzI(1/E135*F135^0.5,G135*F135^0.5)))+(COS(G135/E135*F135*2)*(-erfzI(1/E135*F135^0.5,G135*F135^0.5))+SIN(G135/E135*F135*2)*(1-erfzR(1/E135*F135^0.5,G135*F135^0.5)))/E135/G135)),1-((1/E135+G135)*EXP((1/E135+G135)^2*F135)*ERFC((1/E135+G135)*F135^0.5)-(1/E135-G135)*EXP((1/E135-G135)^2*F135)*ERFC((1/E135-G135)*F135^0.5))/2/G135),1) -> 0.6302871062
A136: PCB 100 | B136: 6.23 | C136: 5.88281 | D136: 5.690903466 | E136: 0.3603961017 | F136: 0.06374913449 | G136: 2.21909281 | H136: =IFERROR(IF(E136>1,1-(EXP((1/E136^2-G136^2)*F136)*((COS(G136/E136*F136*2)*(1-erfzR(1/E136*F136^0.5,G136*F136^0.5))-SIN(G136/E136*F136*2)*(-erfzI(1/E136*F136^0.5,G136*F136^0.5)))+(COS(G136/E136*F136*2)*(-erfzI(1/E136*F136^0.5,G136*F136^0.5))+SIN(G136/E136*F136*2)*(1-erfzR(1/E136*F136^0.5,G136*F136^0.5)))/E136/G136)),1-((1/E136+G136)*EXP((1/E136+G136)^2*F136)*ERFC((1/E136+G136)*F136^0.5)-(1/E136-G136)*EXP((1/E136-G136)^2*F136)*ERFC((1/E136-G136)*F136^0.5))/2/G136),1) -> 0.6962693574
A137: PCB 101 | B137: 6.38 | C137: 6.02486 | D137: 5.776427025 | E137: 0.4104937275 | F137: 0.05235410425 | G137: 1.870413765 | H137: =IFERROR(IF(E137>1,1-(EXP((1/E137^2-G137^2)*F137)*((COS(G137/E137*F137*2)*(1-erfzR(1/E137*F137^0.5,G137*F137^0.5))-SIN(G137/E137*F137*2)*(-erfzI(1/E137*F137^0.5,G137*F137^0.5)))+(COS(G137/E137*F137*2)*(-erfzI(1/E137*F137^0.5,G137*F137^0.5))+SIN(G137/E137*F137*2)*(1-erfzR(1/E137*F137^0.5,G137*F137^0.5)))/E137/G137)),1-((1/E137+G137)*EXP((1/E137+G137)^2*F137)*ERFC((1/E137+G137)*F137^0.5)-(1/E137-G137)*EXP((1/E137-G137)^2*F137)*ERFC((1/E137-G137)*F137^0.5))/2/G137),1) -> 0.634557616
A138: PCB 102 | B138: 6.16 | C138: 5.81652 | D138: 5.650992471 | E138: 0.3391572296 | F138: 0.06988521203 | G138: 2.396889388 | H138: =IFERROR(IF(E138>1,1-(EXP((1/E138^2-G138^2)*F138)*((COS(G138/E138*F138*2)*(1-erfzR(1/E138*F138^0.5,G138*F138^0.5))-SIN(G138/E138*F138*2)*(-erfzI(1/E138*F138^0.5,G138*F138^0.5)))+(COS(G138/E138*F138*2)*(-erfzI(1/E138*F138^0.5,G138*F138^0.5))+SIN(G138/E138*F138*2)*(1-erfzR(1/E138*F138^0.5,G138*F138^0.5)))/E138/G138)),1-((1/E138+G138)*EXP((1/E138+G138)^2*F138)*ERFC((1/E138+G138)*F138^0.5)-(1/E138-G138)*EXP((1/E138-G138)^2*F138)*ERFC((1/E138-G138)*F138^0.5))/2/G138),1) -> 0.7232232947
A139: PCB 103 | B139: 6.22 | C139: 5.87334 | D139: 5.685201895 | E139: 0.3572824265 | F139: 0.06459157335 | G139: 2.243873823 | H139: =IFERROR(IF(E139>1,1-(EXP((1/E139^2-G139^2)*F139)*((COS(G139/E139*F139*2)*(1-erfzR(1/E139*F139^0.5,G139*F139^0.5))-SIN(G139/E139*F139*2)*(-erfzI(1/E139*F139^0.5,G139*F139^0.5)))+(COS(G139/E139*F139*2)*(-erfzI(1/E139*F139^0.5,G139*F139^0.5))+SIN(G139/E139*F139*2)*(1-erfzR(1/E139*F139^0.5,G139*F139^0.5)))/E139/G139)),1-((1/E139+G139)*EXP((1/E139+G139)^2*F139)*ERFC((1/E139+G139)*F139^0.5)-(1/E139-G139)*EXP((1/E139-G139)^2*F139)*ERFC((1/E139-G139)*F139^0.5))/2/G139),1) -> 0.7002001435
A140: PCB 104 | B140: 5.81 | C140: 5.48507 | D140: 5.451437499 | E140: 0.2503260525 | F140: 0.1106471569 | G140: 3.458837497 | H140: =IFERROR(IF(E140>1,1-(EXP((1/E140^2-G140^2)*F140)*((COS(G140/E140*F140*2)*(1-erfzR(1/E140*F140^0.5,G140*F140^0.5))-SIN(G140/E140*F140*2)*(-erfzI(1/E140*F140^0.5,G140*F140^0.5)))+(COS(G140/E140*F140*2)*(-erfzI(1/E140*F140^0.5,G140*F140^0.5))+SIN(G140/E140*F140*2)*(1-erfzR(1/E140*F140^0.5,G140*F140^0.5)))/E140/G140)),1-((1/E140+G140)*EXP((1/E140+G140)^2*F140)*ERFC((1/E140+G140)*F140^0.5)-(1/E140-G140)*EXP((1/E140-G140)^2*F140)*ERFC((1/E140-G140)*F140^0.5))/2/G140),1) -> 0.8352533799
A141: PCB 105 | B141: 6.65 | C141: 6.28055 | D141: 5.930369432 | E141: 0.5188646919 | F141: 0.03672893424 | G141: 1.336840198 | H141: =IFERROR(IF(E141>1,1-(EXP((1/E141^2-G141^2)*F141)*((COS(G141/E141*F141*2)*(1-erfzR(1/E141*F141^0.5,G141*F141^0.5))-SIN(G141/E141*F141*2)*(-erfzI(1/E141*F141^0.5,G141*F141^0.5)))+(COS(G141/E141*F141*2)*(-erfzI(1/E141*F141^0.5,G141*F141^0.5))+SIN(G141/E141*F141*2)*(1-erfzR(1/E141*F141^0.5,G141*F141^0.5)))/E141/G141)),1-((1/E141+G141)*EXP((1/E141+G141)^2*F141)*ERFC((1/E141+G141)*F141^0.5)-(1/E141-G141)*EXP((1/E141-G141)^2*F141)*ERFC((1/E141-G141)*F141^0.5))/2/G141),1) -> 0.5157611177
A142: PCB 106 | B142: 6.64 | C142: 6.27108 | D142: 5.924667861 | E142: 0.5143819128 | F142: 0.03721430368 | G142: 1.354758043 | H142: =IFERROR(IF(E142>1,1-(EXP((1/E142^2-G142^2)*F142)*((COS(G142/E142*F142*2)*(1-erfzR(1/E142*F142^0.5,G142*F142^0.5))-SIN(G142/E142*F142*2)*(-erfzI(1/E142*F142^0.5,G142*F142^0.5)))+(COS(G142/E142*F142*2)*(-erfzI(1/E142*F142^0.5,G142*F142^0.5))+SIN(G142/E142*F142*2)*(1-erfzR(1/E142*F142^0.5,G142*F142^0.5)))/E142/G142)),1-((1/E142+G142)*EXP((1/E142+G142)^2*F142)*ERFC((1/E142+G142)*F142^0.5)-(1/E142-G142)*EXP((1/E142-G142)^2*F142)*ERFC((1/E142-G142)*F142^0.5))/2/G142),1) -> 0.5202111712
A143: PCB 107 | B143: 6.71 | C143: 6.33737 | D143: 5.964578855 | E143: 0.5465937919 | F143: 0.03394680478 | G143: 1.231910158 | H143: =IFERROR(IF(E143>1,1-(EXP((1/E143^2-G143^2)*F143)*((COS(G143/E143*F143*2)*(1-erfzR(1/E143*F143^0.5,G143*F143^0.5))-SIN(G143/E143*F143*2)*(-erfzI(1/E143*F143^0.5,G143*F143^0.5)))+(COS(G143/E143*F143*2)*(-erfzI(1/E143*F143^0.5,G143*F143^0.5))+SIN(G143/E143*F143*2)*(1-erfzR(1/E143*F143^0.5,G143*F143^0.5)))/E143/G143)),1-((1/E143+G143)*EXP((1/E143+G143)^2*F143)*ERFC((1/E143+G143)*F143^0.5)-(1/E143-G143)*EXP((1/E143-G143)^2*F143)*ERFC((1/E143-G143)*F143^0.5))/2/G143),1) -> 0.4891477594
A144: PCB 108 | B144: 6.71 | C144: 6.33737 | D144: 5.964578855 | E144: 0.5465937919 | F144: 0.03394680478 | G144: 1.231910158 | H144: =IFERROR(IF(E144>1,1-(EXP((1/E144^2-G144^2)*F144)*((COS(G144/E144*F144*2)*(1-erfzR(1/E144*F144^0.5,G144*F144^0.5))-SIN(G144/E144*F144*2)*(-erfzI(1/E144*F144^0.5,G144*F144^0.5)))+(COS(G144/E144*F144*2)*(-erfzI(1/E144*F144^0.5,G144*F144^0.5))+SIN(G144/E144*F144*2)*(1-erfzR(1/E144*F144^0.5,G144*F144^0.5)))/E144/G144)),1-((1/E144+G144)*EXP((1/E144+G144)^2*F144)*ERFC((1/E144+G144)*F144^0.5)-(1/E144-G144)*EXP((1/E144-G144)^2*F144)*ERFC((1/E144-G144)*F144^0.5))/2/G144),1) -> 0.4891477594
A145: PCB 109 | B145: 6.48 | C145: 6.11956 | D145: 5.833442731 | E145: 0.4477038397 | F145: 0.04591293195 | G145: 1.659950712 | H145: =IFERROR(IF(E145>1,1-(EXP((1/E145^2-G145^2)*F145)*((COS(G145/E145*F145*2)*(1-erfzR(1/E145*F145^0.5,G145*F145^0.5))-SIN(G145/E145*F145*2)*(-erfzI(1/E145*F145^0.5,G145*F145^0.5)))+(COS(G145/E145*F145*2)*(-erfzI(1/E145*F145^0.5,G145*F145^0.5))+SIN(G145/E145*F145*2)*(1-erfzR(1/E145*F145^0.5,G145*F145^0.5)))/E145/G145)),1-((1/E145+G145)*EXP((1/E145+G145)^2*F145)*ERFC((1/E145+G145)*F145^0.5)-(1/E145-G145)*EXP((1/E145-G145)^2*F145)*ERFC((1/E145-G145)*F145^0.5))/2/G145),1) -> 0.5912202758
A146: PCB 110 | B146: 6.48 | C146: 6.11956 | D146: 5.833442731 | E146: 0.4477038397 | F146: 0.04591293195 | G146: 1.659950712 | H146: =IFERROR(IF(E146>1,1-(EXP((1/E146^2-G146^2)*F146)*((COS(G146/E146*F146*2)*(1-erfzR(1/E146*F146^0.5,G146*F146^0.5))-SIN(G146/E146*F146*2)*(-erfzI(1/E146*F146^0.5,G146*F146^0.5)))+(COS(G146/E146*F146*2)*(-erfzI(1/E146*F146^0.5,G146*F146^0.5))+SIN(G146/E146*F146*2)*(1-erfzR(1/E146*F146^0.5,G146*F146^0.5)))/E146/G146)),1-((1/E146+G146)*EXP((1/E146+G146)^2*F146)*ERFC((1/E146+G146)*F146^0.5)-(1/E146-G146)*EXP((1/E146-G146)^2*F146)*ERFC((1/E146-G146)*F146^0.5))/2/G146),1) -> 0.5912202758
A147: PCB 111 | B147: 6.76 | C147: 6.38472 | D147: 5.993086709 | E147: 0.5708300686 | F147: 0.0317900382 | G147: 1.147645615 | H147: =IFERROR(IF(E147>1,1-(EXP((1/E147^2-G147^2)*F147)*((COS(G147/E147*F147*2)*(1-erfzR(1/E147*F147^0.5,G147*F147^0.5))-SIN(G147/E147*F147*2)*(-erfzI(1/E147*F147^0.5,G147*F147^0.5)))+(COS(G147/E147*F147*2)*(-erfzI(1/E147*F147^0.5,G147*F147^0.5))+SIN(G147/E147*F147*2)*(1-erfzR(1/E147*F147^0.5,G147*F147^0.5)))/E147/G147)),1-((1/E147+G147)*EXP((1/E147+G147)^2*F147)*ERFC((1/E147+G147)*F147^0.5)-(1/E147-G147)*EXP((1/E147-G147)^2*F147)*ERFC((1/E147-G147)*F147^0.5))/2/G147),1) -> 0.4671597237
A148: PCB 112 | B148: 6.45 | C148: 6.09115 | D148: 5.816338019 | E148: 0.4361998691 | F148: 0.04775729708 | G148: 1.721381199 | H148: =IFERROR(IF(E148>1,1-(EXP((1/E148^2-G148^2)*F148)*((COS(G148/E148*F148*2)*(1-erfzR(1/E148*F148^0.5,G148*F148^0.5))-SIN(G148/E148*F148*2)*(-erfzI(1/E148*F148^0.5,G148*F148^0.5)))+(COS(G148/E148*F148*2)*(-erfzI(1/E148*F148^0.5,G148*F148^0.5))+SIN(G148/E148*F148*2)*(1-erfzR(1/E148*F148^0.5,G148*F148^0.5)))/E148/G148)),1-((1/E148+G148)*EXP((1/E148+G148)^2*F148)*ERFC((1/E148+G148)*F148^0.5)-(1/E148-G148)*EXP((1/E148-G148)^2*F148)*ERFC((1/E148-G148)*F148^0.5))/2/G148),1) -> 0.6043542134
A149: PCB 113 | B149: 6.54 | C149: 6.17638 | D149: 5.867652155 | E149: 0.4716299706 | F149: 0.0424351365 | G149: 1.541230846 | H149: =IFERROR(IF(E149>1,1-(EXP((1/E149^2-G149^2)*F149)*((COS(G149/E149*F149*2)*(1-erfzR(1/E149*F149^0.5,G149*F149^0.5))-SIN(G149/E149*F149*2)*(-erfzI(1/E149*F149^0.5,G149*F149^0.5)))+(COS(G149/E149*F149*2)*(-erfzI(1/E149*F149^0.5,G149*F149^0.5))+SIN(G149/E149*F149*2)*(1-erfzR(1/E149*F149^0.5,G149*F149^0.5)))/E149/G149)),1-((1/E149+G149)*EXP((1/E149+G149)^2*F149)*ERFC((1/E149+G149)*F149^0.5)-(1/E149-G149)*EXP((1/E149-G149)^2*F149)*ERFC((1/E149-G149)*F149^0.5))/2/G149),1) -> 0.5647151679
A150: PCB 114 | B150: 6.65 | C150: 6.28055 | D150: 5.930369432 | E150: 0.5188646919 | F150: 0.03672893424 | G150: 1.336840198 | H150: =IFERROR(IF(E150>1,1-(EXP((1/E150^2-G150^2)*F150)*((COS(G150/E150*F150*2)*(1-erfzR(1/E150*F150^0.5,G150*F150^0.5))-SIN(G150/E150*F150*2)*(-erfzI(1/E150*F150^0.5,G150*F150^0.5)))+(COS(G150/E150*F150*2)*(-erfzI(1/E150*F150^0.5,G150*F150^0.5))+SIN(G150/E150*F150*2)*(1-erfzR(1/E150*F150^0.5,G150*F150^0.5)))/E150/G150)),1-((1/E150+G150)*EXP((1/E150+G150)^2*F150)*ERFC((1/E150+G150)*F150^0.5)-(1/E150-G150)*EXP((1/E150-G150)^2*F150)*ERFC((1/E150-G150)*F150^0.5))/2/G150),1) -> 0.5157611177
A151: PCB 115 | B151: 6.49 | C151: 6.12903 | D151: 5.839144302 | E151: 0.451605527 | F151: 0.04531411021 | G151: 1.639786422 | H151: =IFERROR(IF(E151>1,1-(EXP((1/E151^2-G151^2)*F151)*((COS(G151/E151*F151*2)*(1-erfzR(1/E151*F151^0.5,G151*F151^0.5))-SIN(G151/E151*F151*2)*(-erfzI(1/E151*F151^0.5,G151*F151^0.5)))+(COS(G151/E151*F151*2)*(-erfzI(1/E151*F151^0.5,G151*F151^0.5))+SIN(G151/E151*F151*2)*(1-erfzR(1/E151*F151^0.5,G151*F151^0.5)))/E151/G151)),1-((1/E151+G151)*EXP((1/E151+G151)^2*F151)*ERFC((1/E151+G151)*F151^0.5)-(1/E151-G151)*EXP((1/E151-G151)^2*F151)*ERFC((1/E151-G151)*F151^0.5))/2/G151),1) -> 0.5868222783
A152: PCB 116 | B152: 6.33 | C152: 5.97751 | D152: 5.747919172 | E152: 0.3930650037 | F152: 0.05590602142 | G152: 1.982013971 | H152: =IFERROR(IF(E152>1,1-(EXP((1/E152^2-G152^2)*F152)*((COS(G152/E152*F152*2)*(1-erfzR(1/E152*F152^0.5,G152*F152^0.5))-SIN(G152/E152*F152*2)*(-erfzI(1/E152*F152^0.5,G152*F152^0.5)))+(COS(G152/E152*F152*2)*(-erfzI(1/E152*F152^0.5,G152*F152^0.5))+SIN(G152/E152*F152*2)*(1-erfzR(1/E152*F152^0.5,G152*F152^0.5)))/E152/G152)),1-((1/E152+G152)*EXP((1/E152+G152)^2*F152)*ERFC((1/E152+G152)*F152^0.5)-(1/E152-G152)*EXP((1/E152-G152)^2*F152)*ERFC((1/E152-G152)*F152^0.5))/2/G152),1) -> 0.6556482043
A153: PCB 117 | B153: 6.46 | C153: 6.10062 | D153: 5.82203959 | E153: 0.4400013007 | F153: 0.04713442012 | G153: 1.700746355 | H153: =IFERROR(IF(E153>1,1-(EXP((1/E153^2-G153^2)*F153)*((COS(G153/E153*F153*2)*(1-erfzR(1/E153*F153^0.5,G153*F153^0.5))-SIN(G153/E153*F153*2)*(-erfzI(1/E153*F153^0.5,G153*F153^0.5)))+(COS(G153/E153*F153*2)*(-erfzI(1/E153*F153^0.5,G153*F153^0.5))+SIN(G153/E153*F153*2)*(1-erfzR(1/E153*F153^0.5,G153*F153^0.5)))/E153/G153)),1-((1/E153+G153)*EXP((1/E153+G153)^2*F153)*ERFC((1/E153+G153)*F153^0.5)-(1/E153-G153)*EXP((1/E153-G153)^2*F153)*ERFC((1/E153-G153)*F153^0.5))/2/G153),1) -> 0.5999869709
A154: PCB 118 | B154: 6.74 | C154: 6.36578 | D154: 5.981683567 | E154: 0.5610091994 | F154: 0.03263579459 | G154: 1.181021291 | H154: =IFERROR(IF(E154>1,1-(EXP((1/E154^2-G154^2)*F154)*((COS(G154/E154*F154*2)*(1-erfzR(1/E154*F154^0.5,G154*F154^0.5))-SIN(G154/E154*F154*2)*(-erfzI(1/E154*F154^0.5,G154*F154^0.5)))+(COS(G154/E154*F154*2)*(-erfzI(1/E154*F154^0.5,G154*F154^0.5))+SIN(G154/E154*F154*2)*(1-erfzR(1/E154*F154^0.5,G154*F154^0.5)))/E154/G154)),1-((1/E154+G154)*EXP((1/E154+G154)^2*F154)*ERFC((1/E154+G154)*F154^0.5)-(1/E154-G154)*EXP((1/E154-G154)^2*F154)*ERFC((1/E154-G154)*F154^0.5))/2/G154),1) -> 0.4759281861
A155: PCB 119 | B155: 6.58 | C155: 6.21426 | D155: 5.890458437 | E155: 0.4882869448 | F155: 0.04026422284 | G155: 1.465001724 | H155: =IFERROR(IF(E155>1,1-(EXP((1/E155^2-G155^2)*F155)*((COS(G155/E155*F155*2)*(1-erfzR(1/E155*F155^0.5,G155*F155^0.5))-SIN(G155/E155*F155*2)*(-erfzI(1/E155*F155^0.5,G155*F155^0.5)))+(COS(G155/E155*F155*2)*(-erfzI(1/E155*F155^0.5,G155*F155^0.5))+SIN(G155/E155*F155*2)*(1-erfzR(1/E155*F155^0.5,G155*F155^0.5)))/E155/G155)),1-((1/E155+G155)*EXP((1/E155+G155)^2*F155)*ERFC((1/E155+G155)*F155^0.5)-(1/E155-G155)*EXP((1/E155-G155)^2*F155)*ERFC((1/E155-G155)*F155^0.5))/2/G155),1) -> 0.5469333161
A156: PCB 120 | B156: 6.79 | C156: 6.41313 | D156: 6.01019142 | E156: 0.5858846635 | F156: 0.03056232135 | G156: 1.098369659 | H156: =IFERROR(IF(E156>1,1-(EXP((1/E156^2-G156^2)*F156)*((COS(G156/E156*F156*2)*(1-erfzR(1/E156*F156^0.5,G156*F156^0.5))-SIN(G156/E156*F156*2)*(-erfzI(1/E156*F156^0.5,G156*F156^0.5)))+(COS(G156/E156*F156*2)*(-erfzI(1/E156*F156^0.5,G156*F156^0.5))+SIN(G156/E156*F156*2)*(1-erfzR(1/E156*F156^0.5,G156*F156^0.5)))/E156/G156)),1-((1/E156+G156)*EXP((1/E156+G156)^2*F156)*ERFC((1/E156+G156)*F156^0.5)-(1/E156-G156)*EXP((1/E156-G156)^2*F156)*ERFC((1/E156-G156)*F156^0.5))/2/G156),1) -> 0.4540867884
A157: PCB 121 | B157: 6.64 | C157: 6.27108 | D157: 5.924667861 | E157: 0.5143819128 | F157: 0.03721430368 | G157: 1.354758043 | H157: =IFERROR(IF(E157>1,1-(EXP((1/E157^2-G157^2)*F157)*((COS(G157/E157*F157*2)*(1-erfzR(1/E157*F157^0.5,G157*F157^0.5))-SIN(G157/E157*F157*2)*(-erfzI(1/E157*F157^0.5,G157*F157^0.5)))+(COS(G157/E157*F157*2)*(-erfzI(1/E157*F157^0.5,G157*F157^0.5))+SIN(G157/E157*F157*2)*(1-erfzR(1/E157*F157^0.5,G157*F157^0.5)))/E157/G157)),1-((1/E157+G157)*EXP((1/E157+G157)^2*F157)*ERFC((1/E157+G157)*F157^0.5)-(1/E157-G157)*EXP((1/E157-G157)^2*F157)*ERFC((1/E157-G157)*F157^0.5))/2/G157),1) -> 0.5202111712
A158: PCB 122 | B158: 6.64 | C158: 6.27108 | D158: 5.924667861 | E158: 0.5143819128 | F158: 0.03721430368 | G158: 1.354758043 | H158: =IFERROR(IF(E158>1,1-(EXP((1/E158^2-G158^2)*F158)*((COS(G158/E158*F158*2)*(1-erfzR(1/E158*F158^0.5,G158*F158^0.5))-SIN(G158/E158*F158*2)*(-erfzI(1/E158*F158^0.5,G158*F158^0.5)))+(COS(G158/E158*F158*2)*(-erfzI(1/E158*F158^0.5,G158*F158^0.5))+SIN(G158/E158*F158*2)*(1-erfzR(1/E158*F158^0.5,G158*F158^0.5)))/E158/G158)),1-((1/E158+G158)*EXP((1/E158+G158)^2*F158)*ERFC((1/E158+G158)*F158^0.5)-(1/E158-G158)*EXP((1/E158-G158)^2*F158)*ERFC((1/E158-G158)*F158^0.5))/2/G158),1) -> 0.5202111712
A159: PCB 123 | B159: 6.74 | C159: 6.36578 | D159: 5.981683567 | E159: 0.5610091994 | F159: 0.03263579459 | G159: 1.181021291 | H159: =IFERROR(IF(E159>1,1-(EXP((1/E159^2-G159^2)*F159)*((COS(G159/E159*F159*2)*(1-erfzR(1/E159*F159^0.5,G159*F159^0.5))-SIN(G159/E159*F159*2)*(-erfzI(1/E159*F159^0.5,G159*F159^0.5)))+(COS(G159/E159*F159*2)*(-erfzI(1/E159*F159^0.5,G159*F159^0.5))+SIN(G159/E159*F159*2)*(1-erfzR(1/E159*F159^0.5,G159*F159^0.5)))/E159/G159)),1-((1/E159+G159)*EXP((1/E159+G159)^2*F159)*ERFC((1/E159+G159)*F159^0.5)-(1/E159-G159)*EXP((1/E159-G159)^2*F159)*ERFC((1/E159-G159)*F159^0.5))/2/G159),1) -> 0.4759281861
A160: PCB 124 | B160: 6.73 | C160: 6.35631 | D160: 5.975981997 | E160: 0.556162309 | F160: 0.03306707357 | G160: 1.197872339 | H160: =IFERROR(IF(E160>1,1-(EXP((1/E160^2-G160^2)*F160)*((COS(G160/E160*F160*2)*(1-erfzR(1/E160*F160^0.5,G160*F160^0.5))-SIN(G160/E160*F160*2)*(-erfzI(1/E160*F160^0.5,G160*F160^0.5)))+(COS(G160/E160*F160*2)*(-erfzI(1/E160*F160^0.5,G160*F160^0.5))+SIN(G160/E160*F160*2)*(1-erfzR(1/E160*F160^0.5,G160*F160^0.5)))/E160/G160)),1-((1/E160+G160)*EXP((1/E160+G160)^2*F160)*ERFC((1/E160+G160)*F160^0.5)-(1/E160-G160)*EXP((1/E160-G160)^2*F160)*ERFC((1/E160-G160)*F160^0.5))/2/G160),1) -> 0.4803264501
A161: PCB 125 | B161: 6.51 | C161: 6.14797 | D161: 5.850547443 | E161: 0.4595112063 | F161: 0.04413979536 | G161: 1.599916214 | H161: =IFERROR(IF(E161>1,1-(EXP((1/E161^2-G161^2)*F161)*((COS(G161/E161*F161*2)*(1-erfzR(1/E161*F161^0.5,G161*F161^0.5))-SIN(G161/E161*F161*2)*(-erfzI(1/E161*F161^0.5,G161*F161^0.5)))+(COS(G161/E161*F161*2)*(-erfzI(1/E161*F161^0.5,G161*F161^0.5))+SIN(G161/E161*F161*2)*(1-erfzR(1/E161*F161^0.5,G161*F161^0.5)))/E161/G161)),1-((1/E161+G161)*EXP((1/E161+G161)^2*F161)*ERFC((1/E161+G161)*F161^0.5)-(1/E161-G161)*EXP((1/E161-G161)^2*F161)*ERFC((1/E161-G161)*F161^0.5))/2/G161),1) -> 0.5780006459
A162: PCB 126 | B162: 6.89 | C162: 6.50783 | D162: 6.067207127 | E162: 0.6389934751 | F162: 0.02680221161 | G162: 0.9402884516 | H162: =IFERROR(IF(E162>1,1-(EXP((1/E162^2-G162^2)*F162)*((COS(G162/E162*F162*2)*(1-erfzR(1/E162*F162^0.5,G162*F162^0.5))-SIN(G162/E162*F162*2)*(-erfzI(1/E162*F162^0.5,G162*F162^0.5)))+(COS(G162/E162*F162*2)*(-erfzI(1/E162*F162^0.5,G162*F162^0.5))+SIN(G162/E162*F162*2)*(1-erfzR(1/E162*F162^0.5,G162*F162^0.5)))/E162/G162)),1-((1/E162+G162)*EXP((1/E162+G162)^2*F162)*ERFC((1/E162+G162)*F162^0.5)-(1/E162-G162)*EXP((1/E162-G162)^2*F162)*ERFC((1/E162-G162)*F162^0.5))/2/G162),1) -> 0.4113969101
A163: PCB 127 | B163: 6.95 | C163: 6.56465 | D163: 6.10141655 | E163: 0.6731424821 | F163: 0.02477200779 | G163: 0.8493217374 | H163: =IFERROR(IF(E163>1,1-(EXP((1/E163^2-G163^2)*F163)*((COS(G163/E163*F163*2)*(1-erfzR(1/E163*F163^0.5,G163*F163^0.5))-SIN(G163/E163*F163*2)*(-erfzI(1/E163*F163^0.5,G163*F163^0.5)))+(COS(G163/E163*F163*2)*(-erfzI(1/E163*F163^0.5,G163*F163^0.5))+SIN(G163/E163*F163*2)*(1-erfzR(1/E163*F163^0.5,G163*F163^0.5)))/E163/G163)),1-((1/E163+G163)*EXP((1/E163+G163)^2*F163)*ERFC((1/E163+G163)*F163^0.5)-(1/E163-G163)*EXP((1/E163-G163)^2*F163)*ERFC((1/E163-G163)*F163^0.5))/2/G163),1) -> 0.3866034007
A164: PCB 128 | B164: 6.74 | C164: 6.36578 | D164: 5.981683567 | E164: 0.5610091994 | F164: 0.03263579459 | G164: 1.181021291 | H164: =IFERROR(IF(E164>1,1-(EXP((1/E164^2-G164^2)*F164)*((COS(G164/E164*F164*2)*(1-erfzR(1/E164*F164^0.5,G164*F164^0.5))-SIN(G164/E164*F164*2)*(-erfzI(1/E164*F164^0.5,G164*F164^0.5)))+(COS(G164/E164*F164*2)*(-erfzI(1/E164*F164^0.5,G164*F164^0.5))+SIN(G164/E164*F164*2)*(1-erfzR(1/E164*F164^0.5,G164*F164^0.5)))/E164/G164)),1-((1/E164+G164)*EXP((1/E164+G164)^2*F164)*ERFC((1/E164+G164)*F164^0.5)-(1/E164-G164)*EXP((1/E164-G164)^2*F164)*ERFC((1/E164-G164)*F164^0.5))/2/G164),1) -> 0.4759281861
A165: PCB 129 | B165: 6.73 | C165: 6.35631 | D165: 5.975981997 | E165: 0.556162309 | F165: 0.03306707357 | G165: 1.197872339 | H165: =IFERROR(IF(E165>1,1-(EXP((1/E165^2-G165^2)*F165)*((COS(G165/E165*F165*2)*(1-erfzR(1/E165*F165^0.5,G165*F165^0.5))-SIN(G165/E165*F165*2)*(-erfzI(1/E165*F165^0.5,G165*F165^0.5)))+(COS(G165/E165*F165*2)*(-erfzI(1/E165*F165^0.5,G165*F165^0.5))+SIN(G165/E165*F165*2)*(1-erfzR(1/E165*F165^0.5,G165*F165^0.5)))/E165/G165)),1-((1/E165+G165)*EXP((1/E165+G165)^2*F165)*ERFC((1/E165+G165)*F165^0.5)-(1/E165-G165)*EXP((1/E165-G165)^2*F165)*ERFC((1/E165-G165)*F165^0.5))/2/G165),1) -> 0.4803264501
A166: PCB 130 | B166: 6.8 | C166: =B166*0.947-0.017 -> 6.4226 | D166: =B166*$B$30+$B$31 -> 6.015892991 | E166: =10^C166*($C$8^2-$C$7^2)/10^D166/$C$8^2 -> 0.5909905807 | F166: =$B$29*$C$9*86400/10^D166/$C$8^2 -> 0.03016371073 | G166: =IF(E166>1,(1/E166-1/E166^2)^0.5,(1/E166^2-1/E166)^0.5) -> 1.082146591 | H166: =IFERROR(IF(E166>1,1-(EXP((1/E166^2-G166^2)*F166)*((COS(G166/E166*F166*2)*(1-erfzR(1/E166*F166^0.5,G166*F166^0.5))-SIN(G166/E166*F166*2)*(-erfzI(1/E166*F166^0.5,G166*F166^0.5)))+(COS(G166/E166*F166*2)*(-erfzI(1/E166*F166^0.5,G166*F166^0.5))+SIN(G166/E166*F166*2)*(1-erfzR(1/E166*F166^0.5,G166*F166^0.5)))/E166/G166)),1-((1/E166+G166)*EXP((1/E166+G166)^2*F166)*ERFC((1/E166+G166)*F166^0.5)-(1/E166-G166)*EXP((1/E166-G166)^2*F166)*ERFC((1/E166-G166)*F166^0.5))/2/G166),1) -> 0.4497529064
A167: PCB 131 | B167: 6.58 | C167: 6.21426 | D167: 5.890458437 | E167: 0.4882869448 | F167: 0.04026422284 | G167: 1.465001724 | H167: =IFERROR(IF(E167>1,1-(EXP((1/E167^2-G167^2)*F167)*((COS(G167/E167*F167*2)*(1-erfzR(1/E167*F167^0.5,G167*F167^0.5))-SIN(G167/E167*F167*2)*(-erfzI(1/E167*F167^0.5,G167*F167^0.5)))+(COS(G167/E167*F167*2)*(-erfzI(1/E167*F167^0.5,G167*F167^0.5))+SIN(G167/E167*F167*2)*(1-erfzR(1/E167*F167^0.5,G167*F167^0.5)))/E167/G167)),1-((1/E167+G167)*EXP((1/E167+G167)^2*F167)*ERFC((1/E167+G167)*F167^0.5)-(1/E167-G167)*EXP((1/E167-G167)^2*F167)*ERFC((1/E167-G167)*F167^0.5))/2/G167),1) -> 0.5469333161
A168: PCB 132 | B168: 6.58 | C168: 6.21426 | D168: 5.890458437 | E168: 0.4882869448 | F168: 0.04026422284 | G168: 1.465001724 | H168: =IFERROR(IF(E168>1,1-(EXP((1/E168^2-G168^2)*F168)*((COS(G168/E168*F168*2)*(1-erfzR(1/E168*F168^0.5,G168*F168^0.5))-SIN(G168/E168*F168*2)*(-erfzI(1/E168*F168^0.5,G168*F168^0.5)))+(COS(G168/E168*F168*2)*(-erfzI(1/E168*F168^0.5,G168*F168^0.5))+SIN(G168/E168*F168*2)*(1-erfzR(1/E168*F168^0.5,G168*F168^0.5)))/E168/G168)),1-((1/E168+G168)*EXP((1/E168+G168)^2*F168)*ERFC((1/E168+G168)*F168^0.5)-(1/E168-G168)*EXP((1/E168-G168)^2*F168)*ERFC((1/E168-G168)*F168^0.5))/2/G168),1) -> 0.5469333161
A169: PCB 133 | B169: 6.86 | C169: 6.47942 | D169: 6.050102415 | E169: 0.6225742232 | F169: 0.02787888135 | G169: 0.9867897811 | H169: =IFERROR(IF(E169>1,1-(EXP((1/E169^2-G169^2)*F169)*((COS(G169/E169*F169*2)*(1-erfzR(1/E169*F169^0.5,G169*F169^0.5))-SIN(G169/E169*F169*2)*(-erfzI(1/E169*F169^0.5,G169*F169^0.5)))+(COS(G169/E169*F169*2)*(-erfzI(1/E169*F169^0.5,G169*F169^0.5))+SIN(G169/E169*F169*2)*(1-erfzR(1/E169*F169^0.5,G169*F169^0.5)))/E169/G169)),1-((1/E169+G169)*EXP((1/E169+G169)^2*F169)*ERFC((1/E169+G169)*F169^0.5)-(1/E169-G169)*EXP((1/E169-G169)^2*F169)*ERFC((1/E169-G169)*F169^0.5))/2/G169),1) -> 0.4240407027
A170: PCB 134 | B170: 6.55 | C170: 6.18585 | D170: 5.873353725 | E170: 0.4757401714 | F170: 0.04188167408 | G170: 1.521960797 | H170: =IFERROR(IF(E170>1,1-(EXP((1/E170^2-G170^2)*F170)*((COS(G170/E170*F170*2)*(1-erfzR(1/E170*F170^0.5,G170*F170^0.5))-SIN(G170/E170*F170*2)*(-erfzI(1/E170*F170^0.5,G170*F170^0.5)))+(COS(G170/E170*F170*2)*(-erfzI(1/E170*F170^0.5,G170*F170^0.5))+SIN(G170/E170*F170*2)*(1-erfzR(1/E170*F170^0.5,G170*F170^0.5)))/E170/G170)),1-((1/E170+G170)*EXP((1/E170+G170)^2*F170)*ERFC((1/E170+G170)*F170^0.5)-(1/E170-G170)*EXP((1/E170-G170)^2*F170)*ERFC((1/E170-G170)*F170^0.5))/2/G170),1) -> 0.560275495
A171: PCB 135 | B171: 6.64 | C171: 6.27108 | D171: 5.924667861 | E171: 0.5143819128 | F171: 0.03721430368 | G171: 1.354758043 | H171: =IFERROR(IF(E171>1,1-(EXP((1/E171^2-G171^2)*F171)*((COS(G171/E171*F171*2)*(1-erfzR(1/E171*F171^0.5,G171*F171^0.5))-SIN(G171/E171*F171*2)*(-erfzI(1/E171*F171^0.5,G171*F171^0.5)))+(COS(G171/E171*F171*2)*(-erfzI(1/E171*F171^0.5,G171*F171^0.5))+SIN(G171/E171*F171*2)*(1-erfzR(1/E171*F171^0.5,G171*F171^0.5)))/E171/G171)),1-((1/E171+G171)*EXP((1/E171+G171)^2*F171)*ERFC((1/E171+G171)*F171^0.5)-(1/E171-G171)*EXP((1/E171-G171)^2*F171)*ERFC((1/E171-G171)*F171^0.5))/2/G171),1) -> 0.5202111712
A172: PCB 136 | B172: 6.22 | C172: 5.87334 | D172: 5.685201895 | E172: 0.3572824265 | F172: 0.06459157335 | G172: 2.243873823 | H172: =IFERROR(IF(E172>1,1-(EXP((1/E172^2-G172^2)*F172)*((COS(G172/E172*F172*2)*(1-erfzR(1/E172*F172^0.5,G172*F172^0.5))-SIN(G172/E172*F172*2)*(-erfzI(1/E172*F172^0.5,G172*F172^0.5)))+(COS(G172/E172*F172*2)*(-erfzI(1/E172*F172^0.5,G172*F172^0.5))+SIN(G172/E172*F172*2)*(1-erfzR(1/E172*F172^0.5,G172*F172^0.5)))/E172/G172)),1-((1/E172+G172)*EXP((1/E172+G172)^2*F172)*ERFC((1/E172+G172)*F172^0.5)-(1/E172-G172)*EXP((1/E172-G172)^2*F172)*ERFC((1/E172-G172)*F172^0.5))/2/G172),1) -> 0.7002001435
A173: PCB 137 | B173: 6.83 | C173: 6.45101 | D173: 6.032997703 | E173: 0.6065768721 | F173: 0.02899880191 | G173: 1.034056089 | H173: =IFERROR(IF(E173>1,1-(EXP((1/E173^2-G173^2)*F173)*((COS(G173/E173*F173*2)*(1-erfzR(1/E173*F173^0.5,G173*F173^0.5))-SIN(G173/E173*F173*2)*(-erfzI(1/E173*F173^0.5,G173*F173^0.5)))+(COS(G173/E173*F173*2)*(-erfzI(1/E173*F173^0.5,G173*F173^0.5))+SIN(G173/E173*F173*2)*(1-erfzR(1/E173*F173^0.5,G173*F173^0.5)))/E173/G173)),1-((1/E173+G173)*EXP((1/E173+G173)^2*F173)*ERFC((1/E173+G173)*F173^0.5)-(1/E173-G173)*EXP((1/E173-G173)^2*F173)*ERFC((1/E173-G173)*F173^0.5))/2/G173),1) -> 0.4368309733
A174: PCB 138 | B174: 6.83 | C174: 6.45101 | D174: 6.032997703 | E174: 0.6065768721 | F174: 0.02899880191 | G174: 1.034056089 | H174: =IFERROR(IF(E174>1,1-(EXP((1/E174^2-G174^2)*F174)*((COS(G174/E174*F174*2)*(1-erfzR(1/E174*F174^0.5,G174*F174^0.5))-SIN(G174/E174*F174*2)*(-erfzI(1/E174*F174^0.5,G174*F174^0.5)))+(COS(G174/E174*F174*2)*(-erfzI(1/E174*F174^0.5,G174*F174^0.5))+SIN(G174/E174*F174*2)*(1-erfzR(1/E174*F174^0.5,G174*F174^0.5)))/E174/G174)),1-((1/E174+G174)*EXP((1/E174+G174)^2*F174)*ERFC((1/E174+G174)*F174^0.5)-(1/E174-G174)*EXP((1/E174-G174)^2*F174)*ERFC((1/E174-G174)*F174^0.5))/2/G174),1) -> 0.4368309733
A175: PCB 139 | B175: 6.67 | C175: 6.29949 | D175: 5.941772573 | E175: 0.5279477912 | F175: 0.03577710416 | G175: 1.301379736 | H175: =IFERROR(IF(E175>1,1-(EXP((1/E175^2-G175^2)*F175)*((COS(G175/E175*F175*2)*(1-erfzR(1/E175*F175^0.5,G175*F175^0.5))-SIN(G175/E175*F175*2)*(-erfzI(1/E175*F175^0.5,G175*F175^0.5)))+(COS(G175/E175*F175*2)*(-erfzI(1/E175*F175^0.5,G175*F175^0.5))+SIN(G175/E175*F175*2)*(1-erfzR(1/E175*F175^0.5,G175*F175^0.5)))/E175/G175)),1-((1/E175+G175)*EXP((1/E175+G175)^2*F175)*ERFC((1/E175+G175)*F175^0.5)-(1/E175-G175)*EXP((1/E175-G175)^2*F175)*ERFC((1/E175-G175)*F175^0.5))/2/G175),1) -> 0.5068706161
A176: PCB 140 | B176: 6.67 | C176: 6.29949 | D176: 5.941772573 | E176: 0.5279477912 | F176: 0.03577710416 | G176: 1.301379736 | H176: =IFERROR(IF(E176>1,1-(EXP((1/E176^2-G176^2)*F176)*((COS(G176/E176*F176*2)*(1-erfzR(1/E176*F176^0.5,G176*F176^0.5))-SIN(G176/E176*F176*2)*(-erfzI(1/E176*F176^0.5,G176*F176^0.5)))+(COS(G176/E176*F176*2)*(-erfzI(1/E176*F176^0.5,G176*F176^0.5))+SIN(G176/E176*F176*2)*(1-erfzR(1/E176*F176^0.5,G176*F176^0.5)))/E176/G176)),1-((1/E176+G176)*EXP((1/E176+G176)^2*F176)*ERFC((1/E176+G176)*F176^0.5)-(1/E176-G176)*EXP((1/E176-G176)^2*F176)*ERFC((1/E176-G176)*F176^0.5))/2/G176),1) -> 0.5068706161
A177: PCB 141 | B177: 6.82 | C177: 6.44154 | D177: 6.027296132 | E177: 0.6013362956 | F177: 0.02938201838 | G177: 1.049991857 | H177: =IFERROR(IF(E177>1,1-(EXP((1/E177^2-G177^2)*F177)*((COS(G177/E177*F177*2)*(1-erfzR(1/E177*F177^0.5,G177*F177^0.5))-SIN(G177/E177*F177*2)*(-erfzI(1/E177*F177^0.5,G177*F177^0.5)))+(COS(G177/E177*F177*2)*(-erfzI(1/E177*F177^0.5,G177*F177^0.5))+SIN(G177/E177*F177*2)*(1-erfzR(1/E177*F177^0.5,G177*F177^0.5)))/E177/G177)),1-((1/E177+G177)*EXP((1/E177+G177)^2*F177)*ERFC((1/E177+G177)*F177^0.5)-(1/E177-G177)*EXP((1/E177-G177)^2*F177)*ERFC((1/E177-G177)*F177^0.5))/2/G177),1) -> 0.4411244124
A178: PCB 142 | B178: 6.51 | C178: 6.14797 | D178: 5.850547443 | E178: 0.4595112063 | F178: 0.04413979536 | G178: 1.599916214 | H178: =IFERROR(IF(E178>1,1-(EXP((1/E178^2-G178^2)*F178)*((COS(G178/E178*F178*2)*(1-erfzR(1/E178*F178^0.5,G178*F178^0.5))-SIN(G178/E178*F178*2)*(-erfzI(1/E178*F178^0.5,G178*F178^0.5)))+(COS(G178/E178*F178*2)*(-erfzI(1/E178*F178^0.5,G178*F178^0.5))+SIN(G178/E178*F178*2)*(1-erfzR(1/E178*F178^0.5,G178*F178^0.5)))/E178/G178)),1-((1/E178+G178)*EXP((1/E178+G178)^2*F178)*ERFC((1/E178+G178)*F178^0.5)-(1/E178-G178)*EXP((1/E178-G178)^2*F178)*ERFC((1/E178-G178)*F178^0.5))/2/G178),1) -> 0.5780006459
A179: PCB 143 | B179: 6.6 | C179: 6.2332 | D179: 5.901861579 | E179: 0.4968347587 | F179: 0.03922077578 | G179: 1.42772099 | H179: =IFERROR(IF(E179>1,1-(EXP((1/E179^2-G179^2)*F179)*((COS(G179/E179*F179*2)*(1-erfzR(1/E179*F179^0.5,G179*F179^0.5))-SIN(G179/E179*F179*2)*(-erfzI(1/E179*F179^0.5,G179*F179^0.5)))+(COS(G179/E179*F179*2)*(-erfzI(1/E179*F179^0.5,G179*F179^0.5))+SIN(G179/E179*F179*2)*(1-erfzR(1/E179*F179^0.5,G179*F179^0.5)))/E179/G179)),1-((1/E179+G179)*EXP((1/E179+G179)^2*F179)*ERFC((1/E179+G179)*F179^0.5)-(1/E179-G179)*EXP((1/E179-G179)^2*F179)*ERFC((1/E179-G179)*F179^0.5))/2/G179),1) -> 0.5380266304
A180: PCB 144 | B180: 6.67 | C180: 6.29949 | D180: 5.941772573 | E180: 0.5279477912 | F180: 0.03577710416 | G180: 1.301379736 | H180: =IFERROR(IF(E180>1,1-(EXP((1/E180^2-G180^2)*F180)*((COS(G180/E180*F180*2)*(1-erfzR(1/E180*F180^0.5,G180*F180^0.5))-SIN(G180/E180*F180*2)*(-erfzI(1/E180*F180^0.5,G180*F180^0.5)))+(COS(G180/E180*F180*2)*(-erfzI(1/E180*F180^0.5,G180*F180^0.5))+SIN(G180/E180*F180*2)*(1-erfzR(1/E180*F180^0.5,G180*F180^0.5)))/E180/G180)),1-((1/E180+G180)*EXP((1/E180+G180)^2*F180)*ERFC((1/E180+G180)*F180^0.5)-(1/E180-G180)*EXP((1/E180-G180)^2*F180)*ERFC((1/E180-G180)*F180^0.5))/2/G180),1) -> 0.5068706161
A181: PCB 145 | B181: 6.25 | C181: 5.90175 | D181: 5.702306607 | E181: 0.3667050944 | F181: 0.06209707611 | G181: 2.170131515 | H181: =IFERROR(IF(E181>1,1-(EXP((1/E181^2-G181^2)*F181)*((COS(G181/E181*F181*2)*(1-erfzR(1/E181*F181^0.5,G181*F181^0.5))-SIN(G181/E181*F181*2)*(-erfzI(1/E181*F181^0.5,G181*F181^0.5)))+(COS(G181/E181*F181*2)*(-erfzI(1/E181*F181^0.5,G181*F181^0.5))+SIN(G181/E181*F181*2)*(1-erfzR(1/E181*F181^0.5,G181*F181^0.5)))/E181/G181)),1-((1/E181+G181)*EXP((1/E181+G181)^2*F181)*ERFC((1/E181+G181)*F181^0.5)-(1/E181-G181)*EXP((1/E181-G181)^2*F181)*ERFC((1/E181-G181)*F181^0.5))/2/G181),1) -> 0.6883318588
A182: PCB 146 | B182: 6.89 | C182: 6.50783 | D182: 6.067207127 | E182: 0.6389934751 | F182: 0.02680221161 | G182: 0.9402884516 | H182: =IFERROR(IF(E182>1,1-(EXP((1/E182^2-G182^2)*F182)*((COS(G182/E182*F182*2)*(1-erfzR(1/E182*F182^0.5,G182*F182^0.5))-SIN(G182/E182*F182*2)*(-erfzI(1/E182*F182^0.5,G182*F182^0.5)))+(COS(G182/E182*F182*2)*(-erfzI(1/E182*F182^0.5,G182*F182^0.5))+SIN(G182/E182*F182*2)*(1-erfzR(1/E182*F182^0.5,G182*F182^0.5)))/E182/G182)),1-((1/E182+G182)*EXP((1/E182+G182)^2*F182)*ERFC((1/E182+G182)*F182^0.5)-(1/E182-G182)*EXP((1/E182-G182)^2*F182)*ERFC((1/E182-G182)*F182^0.5))/2/G182),1) -> 0.4113969101
A183: PCB 147 | B183: 6.64 | C183: 6.27108 | D183: 5.924667861 | E183: 0.5143819128 | F183: 0.03721430368 | G183: 1.354758043 | H183: =IFERROR(IF(E183>1,1-(EXP((1/E183^2-G183^2)*F183)*((COS(G183/E183*F183*2)*(1-erfzR(1/E183*F183^0.5,G183*F183^0.5))-SIN(G183/E183*F183*2)*(-erfzI(1/E183*F183^0.5,G183*F183^0.5)))+(COS(G183/E183*F183*2)*(-erfzI(1/E183*F183^0.5,G183*F183^0.5))+SIN(G183/E183*F183*2)*(1-erfzR(1/E183*F183^0.5,G183*F183^0.5)))/E183/G183)),1-((1/E183+G183)*EXP((1/E183+G183)^2*F183)*ERFC((1/E183+G183)*F183^0.5)-(1/E183-G183)*EXP((1/E183-G183)^2*F183)*ERFC((1/E183-G183)*F183^0.5))/2/G183),1) -> 0.5202111712
A184: PCB 148 | B184: 6.73 | C184: 6.35631 | D184: 5.975981997 | E184: 0.556162309 | F184: 0.03306707357 | G184: 1.197872339 | H184: =IFERROR(IF(E184>1,1-(EXP((1/E184^2-G184^2)*F184)*((COS(G184/E184*F184*2)*(1-erfzR(1/E184*F184^0.5,G184*F184^0.5))-SIN(G184/E184*F184*2)*(-erfzI(1/E184*F184^0.5,G184*F184^0.5)))+(COS(G184/E184*F184*2)*(-erfzI(1/E184*F184^0.5,G184*F184^0.5))+SIN(G184/E184*F184*2)*(1-erfzR(1/E184*F184^0.5,G184*F184^0.5)))/E184/G184)),1-((1/E184+G184)*EXP((1/E184+G184)^2*F184)*ERFC((1/E184+G184)*F184^0.5)-(1/E184-G184)*EXP((1/E184-G184)^2*F184)*ERFC((1/E184-G184)*F184^0.5))/2/G184),1) -> 0.4803264501
A185: PCB 149 | B185: 6.67 | C185: 6.29949 | D185: 5.941772573 | E185: 0.5279477912 | F185: 0.03577710416 | G185: 1.301379736 | H185: =IFERROR(IF(E185>1,1-(EXP((1/E185^2-G185^2)*F185)*((COS(G185/E185*F185*2)*(1-erfzR(1/E185*F185^0.5,G185*F185^0.5))-SIN(G185/E185*F185*2)*(-erfzI(1/E185*F185^0.5,G185*F185^0.5)))+(COS(G185/E185*F185*2)*(-erfzI(1/E185*F185^0.5,G185*F185^0.5))+SIN(G185/E185*F185*2)*(1-erfzR(1/E185*F185^0.5,G185*F185^0.5)))/E185/G185)),1-((1/E185+G185)*EXP((1/E185+G185)^2*F185)*ERFC((1/E185+G185)*F185^0.5)-(1/E185-G185)*EXP((1/E185-G185)^2*F185)*ERFC((1/E185-G185)*F185^0.5))/2/G185),1) -> 0.5068706161
A186: PCB 150 | B186: 6.32 | C186: 5.96804 | D186: 5.742217601 | E186: 0.3896690826 | F186: 0.05664481428 | G186: 2.004872395 | H186: =IFERROR(IF(E186>1,1-(EXP((1/E186^2-G186^2)*F186)*((COS(G186/E186*F186*2)*(1-erfzR(1/E186*F186^0.5,G186*F186^0.5))-SIN(G186/E186*F186*2)*(-erfzI(1/E186*F186^0.5,G186*F186^0.5)))+(COS(G186/E186*F186*2)*(-erfzI(1/E186*F186^0.5,G186*F186^0.5))+SIN(G186/E186*F186*2)*(1-erfzR(1/E186*F186^0.5,G186*F186^0.5)))/E186/G186)),1-((1/E186+G186)*EXP((1/E186+G186)^2*F186)*ERFC((1/E186+G186)*F186^0.5)-(1/E186-G186)*EXP((1/E186-G186)^2*F186)*ERFC((1/E186-G186)*F186^0.5))/2/G186),1) -> 0.6598093838
A187: PCB 151 | B187: 6.64 | C187: 6.27108 | D187: 5.924667861 | E187: 0.5143819128 | F187: 0.03721430368 | G187: 1.354758043 | H187: =IFERROR(IF(E187>1,1-(EXP((1/E187^2-G187^2)*F187)*((COS(G187/E187*F187*2)*(1-erfzR(1/E187*F187^0.5,G187*F187^0.5))-SIN(G187/E187*F187*2)*(-erfzI(1/E187*F187^0.5,G187*F187^0.5)))+(COS(G187/E187*F187*2)*(-erfzI(1/E187*F187^0.5,G187*F187^0.5))+SIN(G187/E187*F187*2)*(1-erfzR(1/E187*F187^0.5,G187*F187^0.5)))/E187/G187)),1-((1/E187+G187)*EXP((1/E187+G187)^2*F187)*ERFC((1/E187+G187)*F187^0.5)-(1/E187-G187)*EXP((1/E187-G187)^2*F187)*ERFC((1/E187-G187)*F187^0.5))/2/G187),1) -> 0.5202111712
A188: PCB 152 | B188: 6.22 | C188: 5.87334 | D188: 5.685201895 | E188: 0.3572824265 | F188: 0.06459157335 | G188: 2.243873823 | H188: =IFERROR(IF(E188>1,1-(EXP((1/E188^2-G188^2)*F188)*((COS(G188/E188*F188*2)*(1-erfzR(1/E188*F188^0.5,G188*F188^0.5))-SIN(G188/E188*F188*2)*(-erfzI(1/E188*F188^0.5,G188*F188^0.5)))+(COS(G188/E188*F188*2)*(-erfzI(1/E188*F188^0.5,G188*F188^0.5))+SIN(G188/E188*F188*2)*(1-erfzR(1/E188*F188^0.5,G188*F188^0.5)))/E188/G188)),1-((1/E188+G188)*EXP((1/E188+G188)^2*F188)*ERFC((1/E188+G188)*F188^0.5)-(1/E188-G188)*EXP((1/E188-G188)^2*F188)*ERFC((1/E188-G188)*F188^0.5))/2/G188),1) -> 0.7002001435
A189: PCB 153 | B189: 6.92 | C189: 6.53624 | D189: 6.084311839 | E189: 0.6558457546 | F189: 0.02576712236 | G189: 0.8944886906 | H189: =IFERROR(IF(E189>1,1-(EXP((1/E189^2-G189^2)*F189)*((COS(G189/E189*F189*2)*(1-erfzR(1/E189*F189^0.5,G189*F189^0.5))-SIN(G189/E189*F189*2)*(-erfzI(1/E189*F189^0.5,G189*F189^0.5)))+(COS(G189/E189*F189*2)*(-erfzI(1/E189*F189^0.5,G189*F189^0.5))+SIN(G189/E189*F189*2)*(1-erfzR(1/E189*F189^0.5,G189*F189^0.5)))/E189/G189)),1-((1/E189+G189)*EXP((1/E189+G189)^2*F189)*ERFC((1/E189+G189)*F189^0.5)-(1/E189-G189)*EXP((1/E189-G189)^2*F189)*ERFC((1/E189-G189)*F189^0.5))/2/G189),1) -> 0.3989134937
A190: PCB 154 | B190: 6.76 | C190: 6.38472 | D190: 5.993086709 | E190: 0.5708300686 | F190: 0.0317900382 | G190: 1.147645615 | H190: =IFERROR(IF(E190>1,1-(EXP((1/E190^2-G190^2)*F190)*((COS(G190/E190*F190*2)*(1-erfzR(1/E190*F190^0.5,G190*F190^0.5))-SIN(G190/E190*F190*2)*(-erfzI(1/E190*F190^0.5,G190*F190^0.5)))+(COS(G190/E190*F190*2)*(-erfzI(1/E190*F190^0.5,G190*F190^0.5))+SIN(G190/E190*F190*2)*(1-erfzR(1/E190*F190^0.5,G190*F190^0.5)))/E190/G190)),1-((1/E190+G190)*EXP((1/E190+G190)^2*F190)*ERFC((1/E190+G190)*F190^0.5)-(1/E190-G190)*EXP((1/E190-G190)^2*F190)*ERFC((1/E190-G190)*F190^0.5))/2/G190),1) -> 0.4671597237
A191: PCB 155 | B191: 6.41 | C191: 6.05327 | D191: 5.793531737 | E191: 0.4213197458 | F191: 0.05033221251 | G191: 1.80554168 | H191: =IFERROR(IF(E191>1,1-(EXP((1/E191^2-G191^2)*F191)*((COS(G191/E191*F191*2)*(1-erfzR(1/E191*F191^0.5,G191*F191^0.5))-SIN(G191/E191*F191*2)*(-erfzI(1/E191*F191^0.5,G191*F191^0.5)))+(COS(G191/E191*F191*2)*(-erfzI(1/E191*F191^0.5,G191*F191^0.5))+SIN(G191/E191*F191*2)*(1-erfzR(1/E191*F191^0.5,G191*F191^0.5)))/E191/G191)),1-((1/E191+G191)*EXP((1/E191+G191)^2*F191)*ERFC((1/E191+G191)*F191^0.5)-(1/E191-G191)*EXP((1/E191-G191)^2*F191)*ERFC((1/E191-G191)*F191^0.5))/2/G191),1) -> 0.621699052
A192: PCB 156 | B192: 7.18 | C192: 6.78246 | D192: 6.232552675 | E192: 0.8218278896 | F192: 0.01831576588 | G192: 0.5136165231 | H192: =IFERROR(IF(E192>1,1-(EXP((1/E192^2-G192^2)*F192)*((COS(G192/E192*F192*2)*(1-erfzR(1/E192*F192^0.5,G192*F192^0.5))-SIN(G192/E192*F192*2)*(-erfzI(1/E192*F192^0.5,G192*F192^0.5)))+(COS(G192/E192*F192*2)*(-erfzI(1/E192*F192^0.5,G192*F192^0.5))+SIN(G192/E192*F192*2)*(1-erfzR(1/E192*F192^0.5,G192*F192^0.5)))/E192/G192)),1-((1/E192+G192)*EXP((1/E192+G192)^2*F192)*ERFC((1/E192+G192)*F192^0.5)-(1/E192-G192)*EXP((1/E192-G192)^2*F192)*ERFC((1/E192-G192)*F192^0.5))/2/G192),1) -> 0.2990888933
A193: PCB 157 | B193: 7.18 | C193: 6.78246 | D193: 6.232552675 | E193: 0.8218278896 | F193: 0.01831576588 | G193: 0.5136165231 | H193: =IFERROR(IF(E193>1,1-(EXP((1/E193^2-G193^2)*F193)*((COS(G193/E193*F193*2)*(1-erfzR(1/E193*F193^0.5,G193*F193^0.5))-SIN(G193/E193*F193*2)*(-erfzI(1/E193*F193^0.5,G193*F193^0.5)))+(COS(G193/E193*F193*2)*(-erfzI(1/E193*F193^0.5,G193*F193^0.5))+SIN(G193/E193*F193*2)*(1-erfzR(1/E193*F193^0.5,G193*F193^0.5)))/E193/G193)),1-((1/E193+G193)*EXP((1/E193+G193)^2*F193)*ERFC((1/E193+G193)*F193^0.5)-(1/E193-G193)*EXP((1/E193-G193)^2*F193)*ERFC((1/E193-G193)*F193^0.5))/2/G193),1) -> 0.2990888933
A194: PCB 158 | B194: 7.02 | C194: 6.63094 | D194: 6.141327545 | E194: 0.7152963442 | F194: 0.02259697023 | G194: 0.7459513711 | H194: =IFERROR(IF(E194>1,1-(EXP((1/E194^2-G194^2)*F194)*((COS(G194/E194*F194*2)*(1-erfzR(1/E194*F194^0.5,G194*F194^0.5))-SIN(G194/E194*F194*2)*(-erfzI(1/E194*F194^0.5,G194*F194^0.5)))+(COS(G194/E194*F194*2)*(-erfzI(1/E194*F194^0.5,G194*F194^0.5))+SIN(G194/E194*F194*2)*(1-erfzR(1/E194*F194^0.5,G194*F194^0.5)))/E194/G194)),1-((1/E194+G194)*EXP((1/E194+G194)^2*F194)*ERFC((1/E194+G194)*F194^0.5)-(1/E194-G194)*EXP((1/E194-G194)^2*F194)*ERFC((1/E194-G194)*F194^0.5))/2/G194),1) -> 0.3586192805
A195: PCB 159 | B195: 7.24 | C195: 6.83928 | D195: 6.266762099 | E195: 0.8657479098 | F195: 0.01692839016 | G195: 0.4232228197 | H195: =IFERROR(IF(E195>1,1-(EXP((1/E195^2-G195^2)*F195)*((COS(G195/E195*F195*2)*(1-erfzR(1/E195*F195^0.5,G195*F195^0.5))-SIN(G195/E195*F195*2)*(-erfzI(1/E195*F195^0.5,G195*F195^0.5)))+(COS(G195/E195*F195*2)*(-erfzI(1/E195*F195^0.5,G195*F195^0.5))+SIN(G195/E195*F195*2)*(1-erfzR(1/E195*F195^0.5,G195*F195^0.5)))/E195/G195)),1-((1/E195+G195)*EXP((1/E195+G195)^2*F195)*ERFC((1/E195+G195)*F195^0.5)-(1/E195-G195)*EXP((1/E195-G195)^2*F195)*ERFC((1/E195-G195)*F195^0.5))/2/G195),1) -> 0.2785125858
A196: PCB 160 | B196: 6.93 | C196: 6.54571 | D196: 6.090013409 | E196: 0.6615613748 | F196: 0.02543105336 | G196: 0.879366304 | H196: =IFERROR(IF(E196>1,1-(EXP((1/E196^2-G196^2)*F196)*((COS(G196/E196*F196*2)*(1-erfzR(1/E196*F196^0.5,G196*F196^0.5))-SIN(G196/E196*F196*2)*(-erfzI(1/E196*F196^0.5,G196*F196^0.5)))+(COS(G196/E196*F196*2)*(-erfzI(1/E196*F196^0.5,G196*F196^0.5))+SIN(G196/E196*F196*2)*(1-erfzR(1/E196*F196^0.5,G196*F196^0.5)))/E196/G196)),1-((1/E196+G196)*EXP((1/E196+G196)^2*F196)*ERFC((1/E196+G196)*F196^0.5)-(1/E196-G196)*EXP((1/E196-G196)^2*F196)*ERFC((1/E196-G196)*F196^0.5))/2/G196),1) -> 0.3947902597
A197: PCB 161 | B197: 7.08 | C197: 6.68776 | D197: 6.175536969 | E197: 0.7535231192 | F197: 0.02088530346 | G197: 0.6588575287 | H197: =IFERROR(IF(E197>1,1-(EXP((1/E197^2-G197^2)*F197)*((COS(G197/E197*F197*2)*(1-erfzR(1/E197*F197^0.5,G197*F197^0.5))-SIN(G197/E197*F197*2)*(-erfzI(1/E197*F197^0.5,G197*F197^0.5)))+(COS(G197/E197*F197*2)*(-erfzI(1/E197*F197^0.5,G197*F197^0.5))+SIN(G197/E197*F197*2)*(1-erfzR(1/E197*F197^0.5,G197*F197^0.5)))/E197/G197)),1-((1/E197+G197)*EXP((1/E197+G197)^2*F197)*ERFC((1/E197+G197)*F197^0.5)-(1/E197-G197)*EXP((1/E197-G197)^2*F197)*ERFC((1/E197-G197)*F197^0.5))/2/G197),1) -> 0.3355343855
A198: PCB 162 | B198: 7.24 | C198: 6.83928 | D198: 6.266762099 | E198: 0.8657479098 | F198: 0.01692839016 | G198: 0.4232228197 | H198: =IFERROR(IF(E198>1,1-(EXP((1/E198^2-G198^2)*F198)*((COS(G198/E198*F198*2)*(1-erfzR(1/E198*F198^0.5,G198*F198^0.5))-SIN(G198/E198*F198*2)*(-erfzI(1/E198*F198^0.5,G198*F198^0.5)))+(COS(G198/E198*F198*2)*(-erfzI(1/E198*F198^0.5,G198*F198^0.5))+SIN(G198/E198*F198*2)*(1-erfzR(1/E198*F198^0.5,G198*F198^0.5)))/E198/G198)),1-((1/E198+G198)*EXP((1/E198+G198)^2*F198)*ERFC((1/E198+G198)*F198^0.5)-(1/E198-G198)*EXP((1/E198-G198)^2*F198)*ERFC((1/E198-G198)*F198^0.5))/2/G198),1) -> 0.2785125858
A199: PCB 163 | B199: 6.99 | C199: 6.60253 | D199: 6.124222833 | E199: 0.6969164525 | F199: 0.02350471152 | G199: 0.7899515647 | H199: =IFERROR(IF(E199>1,1-(EXP((1/E199^2-G199^2)*F199)*((COS(G199/E199*F199*2)*(1-erfzR(1/E199*F199^0.5,G199*F199^0.5))-SIN(G199/E199*F199*2)*(-erfzI(1/E199*F199^0.5,G199*F199^0.5)))+(COS(G199/E199*F199*2)*(-erfzI(1/E199*F199^0.5,G199*F199^0.5))+SIN(G199/E199*F199*2)*(1-erfzR(1/E199*F199^0.5,G199*F199^0.5)))/E199/G199)),1-((1/E199+G199)*EXP((1/E199+G199)^2*F199)*ERFC((1/E199+G199)*F199^0.5)-(1/E199-G199)*EXP((1/E199-G199)^2*F199)*ERFC((1/E199-G199)*F199^0.5))/2/G199),1) -> 0.3704801075
A200: PCB 164 | B200: 7.02 | C200: 6.63094 | D200: 6.141327545 | E200: 0.7152963442 | F200: 0.02259697023 | G200: 0.7459513711 | H200: =IFERROR(IF(E200>1,1-(EXP((1/E200^2-G200^2)*F200)*((COS(G200/E200*F200*2)*(1-erfzR(1/E200*F200^0.5,G200*F200^0.5))-SIN(G200/E200*F200*2)*(-erfzI(1/E200*F200^0.5,G200*F200^0.5)))+(COS(G200/E200*F200*2)*(-erfzI(1/E200*F200^0.5,G200*F200^0.5))+SIN(G200/E200*F200*2)*(1-erfzR(1/E200*F200^0.5,G200*F200^0.5)))/E200/G200)),1-((1/E200+G200)*EXP((1/E200+G200)^2*F200)*ERFC((1/E200+G200)*F200^0.5)-(1/E200-G200)*EXP((1/E200-G200)^2*F200)*ERFC((1/E200-G200)*F200^0.5))/2/G200),1) -> 0.3586192805
A201: PCB 165 | B201: 7.05 | C201: 6.65935 | D201: 6.158432257 | E201: 0.7341609717 | F201: 0.0217242855 | G201: 0.702292575 | H201: =IFERROR(IF(E201>1,1-(EXP((1/E201^2-G201^2)*F201)*((COS(G201/E201*F201*2)*(1-erfzR(1/E201*F201^0.5,G201*F201^0.5))-SIN(G201/E201*F201*2)*(-erfzI(1/E201*F201^0.5,G201*F201^0.5)))+(COS(G201/E201*F201*2)*(-erfzI(1/E201*F201^0.5,G201*F201^0.5))+SIN(G201/E201*F201*2)*(1-erfzR(1/E201*F201^0.5,G201*F201^0.5)))/E201/G201)),1-((1/E201+G201)*EXP((1/E201+G201)^2*F201)*ERFC((1/E201+G201)*F201^0.5)-(1/E201-G201)*EXP((1/E201-G201)^2*F201)*ERFC((1/E201-G201)*F201^0.5))/2/G201),1) -> 0.3469678208
A202: PCB 166 | B202: 6.93 | C202: 6.54571 | D202: 6.090013409 | E202: 0.6615613748 | F202: 0.02543105336 | G202: 0.879366304 | H202: =IFERROR(IF(E202>1,1-(EXP((1/E202^2-G202^2)*F202)*((COS(G202/E202*F202*2)*(1-erfzR(1/E202*F202^0.5,G202*F202^0.5))-SIN(G202/E202*F202*2)*(-erfzI(1/E202*F202^0.5,G202*F202^0.5)))+(COS(G202/E202*F202*2)*(-erfzI(1/E202*F202^0.5,G202*F202^0.5))+SIN(G202/E202*F202*2)*(1-erfzR(1/E202*F202^0.5,G202*F202^0.5)))/E202/G202)),1-((1/E202+G202)*EXP((1/E202+G202)^2*F202)*ERFC((1/E202+G202)*F202^0.5)-(1/E202-G202)*EXP((1/E202-G202)^2*F202)*ERFC((1/E202-G202)*F202^0.5))/2/G202),1) -> 0.3947902597
A203: PCB 167 | B203: 7.27 | C203: 6.86769 | D203: 6.28386681 | E203: 0.8885804211 | F203: 0.01627462341 | G203: 0.3756505392 | H203: =IFERROR(IF(E203>1,1-(EXP((1/E203^2-G203^2)*F203)*((COS(G203/E203*F203*2)*(1-erfzR(1/E203*F203^0.5,G203*F203^0.5))-SIN(G203/E203*F203*2)*(-erfzI(1/E203*F203^0.5,G203*F203^0.5)))+(COS(G203/E203*F203*2)*(-erfzI(1/E203*F203^0.5,G203*F203^0.5))+SIN(G203/E203*F203*2)*(1-erfzR(1/E203*F203^0.5,G203*F203^0.5)))/E203/G203)),1-((1/E203+G203)*EXP((1/E203+G203)^2*F203)*ERFC((1/E203+G203)*F203^0.5)-(1/E203-G203)*EXP((1/E203-G203)^2*F203)*ERFC((1/E203-G203)*F203^0.5))/2/G203),1) -> 0.2685994506
A204: PCB 168 | B204: 7.11 | C204: 6.71617 | D204: 6.19264168 | E204: 0.7733959078 | F204: 0.02007872252 | G204: 0.6155055941 | H204: =IFERROR(IF(E204>1,1-(EXP((1/E204^2-G204^2)*F204)*((COS(G204/E204*F204*2)*(1-erfzR(1/E204*F204^0.5,G204*F204^0.5))-SIN(G204/E204*F204*2)*(-erfzI(1/E204*F204^0.5,G204*F204^0.5)))+(COS(G204/E204*F204*2)*(-erfzI(1/E204*F204^0.5,G204*F204^0.5))+SIN(G204/E204*F204*2)*(1-erfzR(1/E204*F204^0.5,G204*F204^0.5)))/E204/G204)),1-((1/E204+G204)*EXP((1/E204+G204)^2*F204)*ERFC((1/E204+G204)*F204^0.5)-(1/E204-G204)*EXP((1/E204-G204)^2*F204)*ERFC((1/E204-G204)*F204^0.5))/2/G204),1) -> 0.3243266486
... 41 more rows

Sheet Dioxins in PDMS
A1: Dioxins/Furans PRC CALIBRATION MODEL FOR PDMS SAMPLER
A2: Shen, X., & Reible, D. (2019). An analytical model for the fate and transport of performance reference compounds and target compounds around cylindrical passive samplers. Chemosphere.
A3: Version 1.7
A4: 2021-08-05 | G4: Brief techical note
G5: 1. The 'Fss' values refer to the fractional approach to steady state, which is the 1-C/C0 for PRCs and C/Ceq for target compounds
A6: Parameters | B6: Symbol | C6: Value | D6: Unit | G6: 2. The 'Kpw' values refer to the PDMS-water partition coefficients, and can be estimated from octanol-water coefficients Kow using the correlations
A7: Inner radius | B7: Li | C7: 0.02485 | D7: cm | H7: Log Kpw = 0.947 * Log Kow-0.017 | J7: (Ghosh et al., 2014)
A8: Outer radius | B8: Lo | C8: 0.02835 | D8: cm | G8: 3. The fitting process is to find parameters for the following correlation between sediment retardation factor R and Kow at given effective diffusivities D
A9: Sampling time | B9: t | C9: 14 | D9: days | H9: Log R = α * Log Kow + β
G10: 4. The fitted parameters (Row 28) is automatically derived by maximizing r2 from simulated results at different Ds
A11: Number of PRCs | B11: 4 | G11: 5. The ‘Nonlinear’ in 'Option' is set to minimize the difference in Fss from calibrated to measurements, 'Linearized' is to minimuze the calibrated R values
A12: PRC # | B12: =PRCNumber(1,$B$11) -> 1 | C12: =PRCNumber(2,$B$11) -> 2 | D12: =PRCNumber(3,$B$11) -> 3 | E12: =PRCNumber(4,$B$11) -> 4 | F12: =PRCNumber(5,$B$11) ->  | G12: 6. The alpha value of the above correlation could be fixed to a given constant | K12: =PRCNumber(13,$B$11) ->  | L12: =PRCNumber(14,$B$11) ->  | M12: =PRCNumber(15,$B$11) ->  | N12: =PRCNumber(16,$B$11) ->  | O12: =PRCNumber(14,$B$11) ->  | P12: =PRCNumber(15,$B$11) ->  | Q12: =PRCNumber(16,$B$11) ->  | R12: =PRCNumber(17,$B$11) ->  | S12: =PRCNumber(18,$B$11) ->  | T12: =PRCNumber(19,$B$11) ->  | U12: =PRCNumber(20,$B$11) ->  | V12: =PRCNumber(21,$B$11) ->  | W12: =PRCNumber(22,$B$11) ->  | X12: =PRCNumber(23,$B$11) ->  | Y12: =PRCNumber(24,$B$11) ->  | Z12: =PRCNumber(25,$B$11) -> 
A13: PRC name | B13: C13-1234-TCDD | C13: C13-123789-HxCDD | D13: C13-2,7/2,8 DiCDD | E13: C13-1234678 HpCDD
A14: Log Kow | B14: 6.53 | C14: 7.92 | D14: 5.19 | E14: 8.64 | G14: Procedure
A15: Log Kpw | B15: =B14*0.947-0.017 -> 6.16691 | C15: =C14*0.947-0.017 -> 7.48324 | D15: 4.89793 | E15: 8.16508 | G15: 1. Update the properties of sampler and PRCs on this sheet in Green
A16: Measured PRC Fss | B16: 0.7 | C16: 0.5 | D16: 0.8 | E16: 0.3 | G16: 2. Input a list of desired effective diffusivity (D) in column A starting row 33.
G17: 3. Start the fitting by clicking on "Fit fss Data"
G18: 4. Check the fitted results (parameters in Row 28, results in the following figure), if it is not desired, change the list of D
G19: 5. View model results in the following figure, the returned data are in cyl_fitted_plot
G21: Database of frequently used PRCs
G23: PRCs set 1
G24: PRC name | H24: C13-1234-TCDD | I24: C13-123789-HxCDD | J24: C13-2,7/2,8 DiCDD | K24: C13-1234678 HpCDD
G25: Log Kow | H25: 6.53 | I25: 7.92 | J25: 5.19 | K25: 8.64
G26: Log Kpw | H26: 6.16691 | I26: 7.48324 | J26: 4.89793 | K26: 8.16508
A27: Results
A28: Cylindrical diffusion model | B28: Log R = α * Log Kow + β
A29: D | B29: 3.740434344e-06
A30: α | B30: 1.393025855
A31: β | B31: -2.056210592
A32: r2 | B32: 0.9952056096
A35: Model prediction
A36: Target Compound | B36: Log Kow | C36: Log Kpw | D36: Log R | E36: ξ | F36: τ | G36: ω | H36: fss
A37: 2-MCDD | B37: 4.58 | C37: =B37*0.947-0.017 -> 4.32026 | D37: =B37*$B$30+$B$31 -> 4.323847823 | E37: =10^C37*($C$8^2-$C$7^2)/10^D37/$C$8^2 -> 0.2297659808 | F37: =$B$29*$C$9*86400/10^D37/$C$8^2 -> 0.2670606274 | G37: =IF(E37>1,(1/E37-1/E37^2)^0.5,(1/E37^2-1/E37)^0.5) -> 3.81966804 | H37: =IFERROR(IF(E37>1,1-(EXP((1/E37^2-G37^2)*F37)*((COS(G37/E37*F37*2)*(1-erfzR(1/E37*F37^0.5,G37*F37^0.5))-SIN(G37/E37*F37*2)*(-erfzI(1/E37*F37^0.5,G37*F37^0.5)))+(COS(G37/E37*F37*2)*(-erfzI(1/E37*F37^0.5,G37*F37^0.5))+SIN(G37/E37*F37*2)*(1-erfzR(1/E37*F37^0.5,G37*F37^0.5)))/E37/G37)),1-((1/E37+G37)*EXP((1/E37+G37)^2*F37)*ERFC((1/E37+G37)*F37^0.5)-(1/E37-G37)*EXP((1/E37-G37)^2*F37)*ERFC((1/E37-G37)*F37^0.5))/2/G37),1) -> 0.9132227596
A38: 2,3-DiCDD | B38: 5.23 | C38: =B38*0.947-0.017 -> 4.93581 | D38: 5.229314628 | E38: =10^C38*($C$8^2-$C$7^2)/10^D38/$C$8^2 -> 0.1178606744 | F38: 0.03320038037 | G38: =IF(E38>1,(1/E38-1/E38^2)^0.5,(1/E38^2-1/E38)^0.5) -> 7.968923723 | H38: =IFERROR(IF(E38>1,1-(EXP((1/E38^2-G38^2)*F38)*((COS(G38/E38*F38*2)*(1-erfzR(1/E38*F38^0.5,G38*F38^0.5))-SIN(G38/E38*F38*2)*(-erfzI(1/E38*F38^0.5,G38*F38^0.5)))+(COS(G38/E38*F38*2)*(-erfzI(1/E38*F38^0.5,G38*F38^0.5))+SIN(G38/E38*F38*2)*(1-erfzR(1/E38*F38^0.5,G38*F38^0.5)))/E38/G38)),1-((1/E38+G38)*EXP((1/E38+G38)^2*F38)*ERFC((1/E38+G38)*F38^0.5)-(1/E38-G38)*EXP((1/E38-G38)^2*F38)*ERFC((1/E38-G38)*F38^0.5))/2/G38),1) -> 0.8442857742
A39: 2,7/2,8-DiCDD | B39: 5.19 | C39: 4.89793 | D39: 5.173593594 | E39: 0.122803277 | F39: 0.03774540534 | G39: 7.626733029 | H39: =IFERROR(IF(E39>1,1-(EXP((1/E39^2-G39^2)*F39)*((COS(G39/E39*F39*2)*(1-erfzR(1/E39*F39^0.5,G39*F39^0.5))-SIN(G39/E39*F39*2)*(-erfzI(1/E39*F39^0.5,G39*F39^0.5)))+(COS(G39/E39*F39*2)*(-erfzI(1/E39*F39^0.5,G39*F39^0.5))+SIN(G39/E39*F39*2)*(1-erfzR(1/E39*F39^0.5,G39*F39^0.5)))/E39/G39)),1-((1/E39+G39)*EXP((1/E39+G39)^2*F39)*ERFC((1/E39+G39)*F39^0.5)-(1/E39-G39)*EXP((1/E39-G39)^2*F39)*ERFC((1/E39-G39)*F39^0.5))/2/G39),1) -> 0.8487966759
A40: 2,3,7-TrCDD | B40: 5.84 | C40: 5.51348 | D40: 6.0790604 | E40: 0.06299312453 | F40: 0.004692424438 | G40: 15.36661599 | H40: =IFERROR(IF(E40>1,1-(EXP((1/E40^2-G40^2)*F40)*((COS(G40/E40*F40*2)*(1-erfzR(1/E40*F40^0.5,G40*F40^0.5))-SIN(G40/E40*F40*2)*(-erfzI(1/E40*F40^0.5,G40*F40^0.5)))+(COS(G40/E40*F40*2)*(-erfzI(1/E40*F40^0.5,G40*F40^0.5))+SIN(G40/E40*F40*2)*(1-erfzR(1/E40*F40^0.5,G40*F40^0.5)))/E40/G40)),1-((1/E40+G40)*EXP((1/E40+G40)^2*F40)*ERFC((1/E40+G40)*F40^0.5)-(1/E40-G40)*EXP((1/E40-G40)^2*F40)*ERFC((1/E40-G40)*F40^0.5))/2/G40),1) -> 0.7706995525
A41: 2378-TCDF | B41: 6.46 | C41: 6.10062 | D41: 6.94273643 | E41: 0.03332399959 | F41: 0.0006422753552 | G41: 29.50416634 | H41: =IFERROR(IF(E41>1,1-(EXP((1/E41^2-G41^2)*F41)*((COS(G41/E41*F41*2)*(1-erfzR(1/E41*F41^0.5,G41*F41^0.5))-SIN(G41/E41*F41*2)*(-erfzI(1/E41*F41^0.5,G41*F41^0.5)))+(COS(G41/E41*F41*2)*(-erfzI(1/E41*F41^0.5,G41*F41^0.5))+SIN(G41/E41*F41*2)*(1-erfzR(1/E41*F41^0.5,G41*F41^0.5)))/E41/G41)),1-((1/E41+G41)*EXP((1/E41+G41)^2*F41)*ERFC((1/E41+G41)*F41^0.5)-(1/E41-G41)*EXP((1/E41-G41)^2*F41)*ERFC((1/E41-G41)*F41^0.5))/2/G41),1) -> 0.6854438551
A42: 2378-TCDD | B42: 6.49 | C42: 6.12903 | D42: 6.984527205 | E42: 0.03231293037 | F42: 0.0005833517195 | G42: 30.44325771 | H42: =IFERROR(IF(E42>1,1-(EXP((1/E42^2-G42^2)*F42)*((COS(G42/E42*F42*2)*(1-erfzR(1/E42*F42^0.5,G42*F42^0.5))-SIN(G42/E42*F42*2)*(-erfzI(1/E42*F42^0.5,G42*F42^0.5)))+(COS(G42/E42*F42*2)*(-erfzI(1/E42*F42^0.5,G42*F42^0.5))+SIN(G42/E42*F42*2)*(1-erfzR(1/E42*F42^0.5,G42*F42^0.5)))/E42/G42)),1-((1/E42+G42)*EXP((1/E42+G42)^2*F42)*ERFC((1/E42+G42)*F42^0.5)-(1/E42-G42)*EXP((1/E42-G42)^2*F42)*ERFC((1/E42-G42)*F42^0.5))/2/G42),1) -> 0.6810496761
A43: 12378-PeCDF | B43: 7.15 | C43: 6.75405 | D43: 7.903924269 | E43: 0.01640587056 | F43: 7.023173838e-05 | G43: 60.45172295 | H43: =IFERROR(IF(E43>1,1-(EXP((1/E43^2-G43^2)*F43)*((COS(G43/E43*F43*2)*(1-erfzR(1/E43*F43^0.5,G43*F43^0.5))-SIN(G43/E43*F43*2)*(-erfzI(1/E43*F43^0.5,G43*F43^0.5)))+(COS(G43/E43*F43*2)*(-erfzI(1/E43*F43^0.5,G43*F43^0.5))+SIN(G43/E43*F43*2)*(1-erfzR(1/E43*F43^0.5,G43*F43^0.5)))/E43/G43)),1-((1/E43+G43)*EXP((1/E43+G43)^2*F43)*ERFC((1/E43+G43)*F43^0.5)-(1/E43-G43)*EXP((1/E43-G43)^2*F43)*ERFC((1/E43-G43)*F43^0.5))/2/G43),1) -> 0.5795093682
A44: 23478-PeCDF | B44: 7.14 | C44: 6.74458 | D44: 7.889994011 | E44: 0.01657522908 | F44: 7.252098209e-05 | G44: 59.82890197 | H44: =IFERROR(IF(E44>1,1-(EXP((1/E44^2-G44^2)*F44)*((COS(G44/E44*F44*2)*(1-erfzR(1/E44*F44^0.5,G44*F44^0.5))-SIN(G44/E44*F44*2)*(-erfzI(1/E44*F44^0.5,G44*F44^0.5)))+(COS(G44/E44*F44*2)*(-erfzI(1/E44*F44^0.5,G44*F44^0.5))+SIN(G44/E44*F44*2)*(1-erfzR(1/E44*F44^0.5,G44*F44^0.5)))/E44/G44)),1-((1/E44+G44)*EXP((1/E44+G44)^2*F44)*ERFC((1/E44+G44)*F44^0.5)-(1/E44-G44)*EXP((1/E44-G44)^2*F44)*ERFC((1/E44-G44)*F44^0.5))/2/G44),1) -> 0.5811002215
A45: 12378-PeCDD | B45: 7.2 | C45: 6.8014 | D45: 7.973575562 | E45: 0.01558468354 | F45: 5.982491986e-05 | G45: 63.66360001 | H45: =IFERROR(IF(E45>1,1-(EXP((1/E45^2-G45^2)*F45)*((COS(G45/E45*F45*2)*(1-erfzR(1/E45*F45^0.5,G45*F45^0.5))-SIN(G45/E45*F45*2)*(-erfzI(1/E45*F45^0.5,G45*F45^0.5)))+(COS(G45/E45*F45*2)*(-erfzI(1/E45*F45^0.5,G45*F45^0.5))+SIN(G45/E45*F45*2)*(1-erfzR(1/E45*F45^0.5,G45*F45^0.5)))/E45/G45)),1-((1/E45+G45)*EXP((1/E45+G45)^2*F45)*ERFC((1/E45+G45)*F45^0.5)-(1/E45-G45)*EXP((1/E45-G45)^2*F45)*ERFC((1/E45-G45)*F45^0.5))/2/G45),1) -> 0.5715405794
A46: 123478-HxCDF | B46: 7.87 | C46: 7.43589 | D46: 8.906902885 | E46: 0.007831783353 | F46: 6.975170097e-06 | G46: 127.1838566 | H46: =IFERROR(IF(E46>1,1-(EXP((1/E46^2-G46^2)*F46)*((COS(G46/E46*F46*2)*(1-erfzR(1/E46*F46^0.5,G46*F46^0.5))-SIN(G46/E46*F46*2)*(-erfzI(1/E46*F46^0.5,G46*F46^0.5)))+(COS(G46/E46*F46*2)*(-erfzI(1/E46*F46^0.5,G46*F46^0.5))+SIN(G46/E46*F46*2)*(1-erfzR(1/E46*F46^0.5,G46*F46^0.5)))/E46/G46)),1-((1/E46+G46)*EXP((1/E46+G46)^2*F46)*ERFC((1/E46+G46)*F46^0.5)-(1/E46-G46)*EXP((1/E46-G46)^2*F46)*ERFC((1/E46-G46)*F46^0.5))/2/G46),1) -> 0.4642566217
A47: 123678-HxCDF | B47: 7.83 | C47: 7.39801 | D47: 8.851181851 | E47: 0.008160216843 | F47: 7.930048382e-06 | G47: 122.0447389 | H47: =IFERROR(IF(E47>1,1-(EXP((1/E47^2-G47^2)*F47)*((COS(G47/E47*F47*2)*(1-erfzR(1/E47*F47^0.5,G47*F47^0.5))-SIN(G47/E47*F47*2)*(-erfzI(1/E47*F47^0.5,G47*F47^0.5)))+(COS(G47/E47*F47*2)*(-erfzI(1/E47*F47^0.5,G47*F47^0.5))+SIN(G47/E47*F47*2)*(1-erfzR(1/E47*F47^0.5,G47*F47^0.5)))/E47/G47)),1-((1/E47+G47)*EXP((1/E47+G47)^2*F47)*ERFC((1/E47+G47)*F47^0.5)-(1/E47-G47)*EXP((1/E47-G47)^2*F47)*ERFC((1/E47-G47)*F47^0.5))/2/G47),1) -> 0.4705975181
A48: 234678-HxCDF | B48: 7.83 | C48: 7.39801 | D48: 8.851181851 | E48: 0.008160216843 | F48: 7.930048382e-06 | G48: 122.0447389 | H48: =IFERROR(IF(E48>1,1-(EXP((1/E48^2-G48^2)*F48)*((COS(G48/E48*F48*2)*(1-erfzR(1/E48*F48^0.5,G48*F48^0.5))-SIN(G48/E48*F48*2)*(-erfzI(1/E48*F48^0.5,G48*F48^0.5)))+(COS(G48/E48*F48*2)*(-erfzI(1/E48*F48^0.5,G48*F48^0.5))+SIN(G48/E48*F48*2)*(1-erfzR(1/E48*F48^0.5,G48*F48^0.5)))/E48/G48)),1-((1/E48+G48)*EXP((1/E48+G48)^2*F48)*ERFC((1/E48+G48)*F48^0.5)-(1/E48-G48)*EXP((1/E48-G48)^2*F48)*ERFC((1/E48-G48)*F48^0.5))/2/G48),1) -> 0.4705975181
A49: 123478-HxCDD | B49: 7.95 | C49: 7.51165 | D49: 9.018344953 | E49: 0.007214040845 | F49: 5.396506872e-06 | G49: 138.1176614 | H49: =IFERROR(IF(E49>1,1-(EXP((1/E49^2-G49^2)*F49)*((COS(G49/E49*F49*2)*(1-erfzR(1/E49*F49^0.5,G49*F49^0.5))-SIN(G49/E49*F49*2)*(-erfzI(1/E49*F49^0.5,G49*F49^0.5)))+(COS(G49/E49*F49*2)*(-erfzI(1/E49*F49^0.5,G49*F49^0.5))+SIN(G49/E49*F49*2)*(1-erfzR(1/E49*F49^0.5,G49*F49^0.5)))/E49/G49)),1-((1/E49+G49)*EXP((1/E49+G49)^2*F49)*ERFC((1/E49+G49)*F49^0.5)-(1/E49-G49)*EXP((1/E49-G49)^2*F49)*ERFC((1/E49-G49)*F49^0.5))/2/G49),1) -> 0.4516364844
A50: 123678-HxCDD | B50: 7.89 | C50: 7.45483 | D50: 8.934763402 | E50: 0.007672557436 | F50: 6.541755161e-06 | G50: 129.8336758 | H50: =IFERROR(IF(E50>1,1-(EXP((1/E50^2-G50^2)*F50)*((COS(G50/E50*F50*2)*(1-erfzR(1/E50*F50^0.5,G50*F50^0.5))-SIN(G50/E50*F50*2)*(-erfzI(1/E50*F50^0.5,G50*F50^0.5)))+(COS(G50/E50*F50*2)*(-erfzI(1/E50*F50^0.5,G50*F50^0.5))+SIN(G50/E50*F50*2)*(1-erfzR(1/E50*F50^0.5,G50*F50^0.5)))/E50/G50)),1-((1/E50+G50)*EXP((1/E50+G50)^2*F50)*ERFC((1/E50+G50)*F50^0.5)-(1/E50-G50)*EXP((1/E50-G50)^2*F50)*ERFC((1/E50-G50)*F50^0.5))/2/G50),1) -> 0.4610935239
A51: 123789-HxCDD | B51: 7.92 | C51: 7.48324 | D51: 8.976554178 | E51: 0.007439767653 | F51: 5.941601357e-06 | G51: 133.9118663 | H51: =IFERROR(IF(E51>1,1-(EXP((1/E51^2-G51^2)*F51)*((COS(G51/E51*F51*2)*(1-erfzR(1/E51*F51^0.5,G51*F51^0.5))-SIN(G51/E51*F51*2)*(-erfzI(1/E51*F51^0.5,G51*F51^0.5)))+(COS(G51/E51*F51*2)*(-erfzI(1/E51*F51^0.5,G51*F51^0.5))+SIN(G51/E51*F51*2)*(1-erfzR(1/E51*F51^0.5,G51*F51^0.5)))/E51/G51)),1-((1/E51+G51)*EXP((1/E51+G51)^2*F51)*ERFC((1/E51+G51)*F51^0.5)-(1/E51-G51)*EXP((1/E51-G51)^2*F51)*ERFC((1/E51-G51)*F51^0.5))/2/G51),1) -> 0.4563587357
A52: 123789-HxCDF | B52: 7.87 | C52: 7.43589 | D52: 8.906902885 | E52: 0.007831783353 | F52: 6.975170097e-06 | G52: 127.1838566 | H52: =IFERROR(IF(E52>1,1-(EXP((1/E52^2-G52^2)*F52)*((COS(G52/E52*F52*2)*(1-erfzR(1/E52*F52^0.5,G52*F52^0.5))-SIN(G52/E52*F52*2)*(-erfzI(1/E52*F52^0.5,G52*F52^0.5)))+(COS(G52/E52*F52*2)*(-erfzI(1/E52*F52^0.5,G52*F52^0.5))+SIN(G52/E52*F52*2)*(1-erfzR(1/E52*F52^0.5,G52*F52^0.5)))/E52/G52)),1-((1/E52+G52)*EXP((1/E52+G52)^2*F52)*ERFC((1/E52+G52)*F52^0.5)-(1/E52-G52)*EXP((1/E52-G52)^2*F52)*ERFC((1/E52-G52)*F52^0.5))/2/G52),1) -> 0.4642566217
A53: 1234678-HpCDF | B53: 8.55 | C53: 8.07985 | D53: 9.854160466 | E53: 0.003895498882 | F53: =$B$29*$C$9*86400/10^D53/$C$8^2 -> 7.875846109e-07 | G53: =IF(E53>1,(1/E53-1/E53^2)^0.5,(1/E53^2-1/E53)^0.5) -> 256.2060419 | H53: =IFERROR(IF(E53>1,1-(EXP((1/E53^2-G53^2)*F53)*((COS(G53/E53*F53*2)*(1-erfzR(1/E53*F53^0.5,G53*F53^0.5))-SIN(G53/E53*F53*2)*(-erfzI(1/E53*F53^0.5,G53*F53^0.5)))+(COS(G53/E53*F53*2)*(-erfzI(1/E53*F53^0.5,G53*F53^0.5))+SIN(G53/E53*F53*2)*(1-erfzR(1/E53*F53^0.5,G53*F53^0.5)))/E53/G53)),1-((1/E53+G53)*EXP((1/E53+G53)^2*F53)*ERFC((1/E53+G53)*F53^0.5)-(1/E53-G53)*EXP((1/E53-G53)^2*F53)*ERFC((1/E53-G53)*F53^0.5))/2/G53),1) -> 0.3609453171
A54: 1234678-HpCDD | B54: 8.64 | C54: 8.16508 | D54: 9.979532793 | E54: 0.003551573094 | F54: 5.900990217e-07 | G54: 281.0649275 | H54: =IFERROR(IF(E54>1,1-(EXP((1/E54^2-G54^2)*F54)*((COS(G54/E54*F54*2)*(1-erfzR(1/E54*F54^0.5,G54*F54^0.5))-SIN(G54/E54*F54*2)*(-erfzI(1/E54*F54^0.5,G54*F54^0.5)))+(COS(G54/E54*F54*2)*(-erfzI(1/E54*F54^0.5,G54*F54^0.5))+SIN(G54/E54*F54*2)*(1-erfzR(1/E54*F54^0.5,G54*F54^0.5)))/E54/G54)),1-((1/E54+G54)*EXP((1/E54+G54)^2*F54)*ERFC((1/E54+G54)*F54^0.5)-(1/E54-G54)*EXP((1/E54-G54)^2*F54)*ERFC((1/E54-G54)*F54^0.5))/2/G54),1) -> 0.348135308
A55: 1234789-HpCDF | B55: 8.56 | C55: 8.08932 | D55: 9.868090725 | E55: 0.003855696361 | F55: 7.627232112e-07 | G55: 258.8560396 | H55: =IFERROR(IF(E55>1,1-(EXP((1/E55^2-G55^2)*F55)*((COS(G55/E55*F55*2)*(1-erfzR(1/E55*F55^0.5,G55*F55^0.5))-SIN(G55/E55*F55*2)*(-erfzI(1/E55*F55^0.5,G55*F55^0.5)))+(COS(G55/E55*F55*2)*(-erfzI(1/E55*F55^0.5,G55*F55^0.5))+SIN(G55/E55*F55*2)*(1-erfzR(1/E55*F55^0.5,G55*F55^0.5)))/E55/G55)),1-((1/E55+G55)*EXP((1/E55+G55)^2*F55)*ERFC((1/E55+G55)*F55^0.5)-(1/E55-G55)*EXP((1/E55-G55)^2*F55)*ERFC((1/E55-G55)*F55^0.5))/2/G55),1) -> 0.3595100721
A56: OCDD | B56: 9.35 | C56: 8.83745 | D56: 10.96858115 | E56: 0.001712940983 | F56: 6.051688116e-08 | G56: 583.2910603 | H56: =IFERROR(IF(E56>1,1-(EXP((1/E56^2-G56^2)*F56)*((COS(G56/E56*F56*2)*(1-erfzR(1/E56*F56^0.5,G56*F56^0.5))-SIN(G56/E56*F56*2)*(-erfzI(1/E56*F56^0.5,G56*F56^0.5)))+(COS(G56/E56*F56*2)*(-erfzI(1/E56*F56^0.5,G56*F56^0.5))+SIN(G56/E56*F56*2)*(1-erfzR(1/E56*F56^0.5,G56*F56^0.5)))/E56/G56)),1-((1/E56+G56)*EXP((1/E56+G56)^2*F56)*ERFC((1/E56+G56)*F56^0.5)-(1/E56-G56)*EXP((1/E56-G56)^2*F56)*ERFC((1/E56-G56)*F56^0.5))/2/G56),1) -> 0.2565546411
A57: OCDF | B57: 9.27 | C57: 8.76169 | D57: 10.85713908 | E57: 0.001859621115 | F57: 7.822014311e-08 | G57: 537.2437153 | H57: =IFERROR(IF(E57>1,1-(EXP((1/E57^2-G57^2)*F57)*((COS(G57/E57*F57*2)*(1-erfzR(1/E57*F57^0.5,G57*F57^0.5))-SIN(G57/E57*F57*2)*(-erfzI(1/E57*F57^0.5,G57*F57^0.5)))+(COS(G57/E57*F57*2)*(-erfzI(1/E57*F57^0.5,G57*F57^0.5))+SIN(G57/E57*F57*2)*(1-erfzR(1/E57*F57^0.5,G57*F57^0.5)))/E57/G57)),1-((1/E57+G57)*EXP((1/E57+G57)^2*F57)*ERFC((1/E57+G57)*F57^0.5)-(1/E57-G57)*EXP((1/E57-G57)^2*F57)*ERFC((1/E57-G57)*F57^0.5))/2/G57),1) -> 0.2659718375
A97: =A96*10^0.02 -> 0 | B97: 1 | C97: 14.88303474 | D97: 0.9871031895
A98: 0 | B98: 1 | C98: -81.52211188 | D98: 0.9865915747
A99: 0 | B99: 1 | C99: 17.53485008 | D99: 0.9853833743

Sheet PAHs in PE
A1: PAH CALIBRATION MODEL FOR PE SAMPLER
A2: Shen, X., & Reible, D. (2019). An analytical model for the fate and transport of performance reference compounds and target compounds around cylindrical passive samplers. Chemosphere.
A3: Version 1.7
A4: 2021-08-05 | G4: Brief techical note
G5: 1. The 'Fss' values refer to the fractional approach to steady state, which is the 1-C/C0 for PRCs and C/Ceq for target compounds
A6: Parameters | B6: Symbol | C6: Value | D6: Unit | G6: 2. The 'Kpw' values refer to the polymer-water partition coefficients, and can be estimated from octanol-water coefficients Kow using the correlations
A7: Thickness | B7: L | C7: 0.00254 | D7: cm | H7: Log Kpw = 1.22 * Log Kow - 1.36 | J7: (Ghosh et al., 2014)
A8: Sampling time | B8: t | C8: 14 | D8: days | G8: 3. The fitting process is to find parameters for the following correlation between Kow and the product of retardation factor R and effective diffusivities D
H9: Log RD = a * Log Kow + b
G10: 4. The ‘Nonlinear’ in 'Option' is set to minimize the difference in Fss from calibrated to measurements, 'Linearized' is to minimuze the calibrated R values
A11: Number of PRCs | B11: 4 | G11: 5. The a value of the above correlation could be fixed to a given constant | K11: =PRCNumber(13,$B$11) -> 
A12: PRC # | B12: =PRCNumber(1,$B$11) -> 1 | C12: =PRCNumber(2,$B$11) -> 2 | D12: =PRCNumber(3,$B$11) -> 3 | E12: =PRCNumber(4,$B$11) -> 4
A13: PRC name | B13: C13-phenanthrene | C13: C13-fluoranthene | D13: C13-chrysene | E13: C13-indeno[1,2,3-CD]pyrene | G13: Procedure
A14: Log Kow | B14: 4.74 | C14: 5.29 | D14: 5.9 | E14: 7.09 | G14: 1. Update the properties of sampler and PRCs on this sheet in Green
A15: Log Kpw | B15: 4.4228 | C15: 5.0938 | D15: 5.838 | E15: 7.2898 | G15: 2. Start the fitting by clicking on "Fit fss Data"
A16: Measured PRC Fss | B16: 0.8 | C16: 0.7 | D16: 0.5 | E16: 0.3 | G16: 3. Check the fitted results (parameters in Row 25 results in the following figure)
G17: 4. View model results in the following figure, the returned data are in rec_fitted_plot
G19: Database of frequently used PRCs
G21: PRCs set 1
G22: PRC name | H22: C13-phenanthrene | I22: C13-fluoranthene | J22: C13-chrysene | K22: C13-indeno[1,2,3-CD]pyrene
G23: Log Kow | H23: 4.74 | I23: 5.29 | J23: 5.9 | K23: 7.09
G24: Log Kpw | H24: =H23*1.22-1.36 -> 4.4228 | I24: =I23*1.22-1.36 -> 5.0938 | J24: 5.838 | K24: 7.2898
A27: Results
A28: Cylindrical diffusion model | B28: Log RD = a * Log Kow + b
A30: a | B30: 1.700921685
A31: b | B31: -9.704869881
A32: r2 | B32: 0.9958362855
A35: Model prediction
A36: Target Compound | B36: Log Kow | C36: Log Kpw | D36: Log RD | E36: fss
A37: naphthalene | B37: 3.41 | C37: =B37*1.22 - 1.36 -> 2.8002 | D37: =B37*$B$30+$B$31 -> -3.904726936 | E37: =IF((10^D37)*$C$8*86400/$C$7^2/(10^C37)^2<700, 1-EXP((10^D37)*$C$8*86400/$C$7^2/(10^C37)^2)*ERFC((10^D37) ^ 0.5*($C$8*86400)^ 0.5/$C$7/(10^C37)), 1-1/((10^D37)*$C$8*86400/$C$7^2/(10^C37)^2*3.14)^0.5) -> 0.9269077604
A38: acenaphthylene | B38: 4 | C38: =B38*1.22 - 1.36 -> 3.52 | D38: =B38*$B$30+$B$31 -> -2.901183142 | E38: =IF((10^D38)*$C$8*86400/$C$7^2/(10^C38)^2<700, 1-EXP((10^D38)*$C$8*86400/$C$7^2/(10^C38)^2)*ERFC((10^D38) ^ 0.5*($C$8*86400)^ 0.5/$C$7/(10^C38)), 1-1/((10^D38)*$C$8*86400/$C$7^2/(10^C38)^2*3.14)^0.5) -> 0.8808908432
A39: acenaphthene | B39: 4.06 | C39: 3.5932 | D39: -2.799127841 | E39: 0.874932703
A40: fluorene | B40: 4.2 | C40: 3.764 | D40: -2.560998805 | E40: 0.8599668384
A41: phenanthrene | B41: 4.74 | C41: 4.4228 | D41: -1.642501095 | E41: 0.7868282051
A42: anthracene | B42: 4.69 | C42: 4.3618 | D42: -1.72754718 | E42: 0.7946898907
A43: fluoranthene | B43: 5.29 | C43: 5.0938 | D43: -0.7069941688 | E43: 0.6857724177
A44: pyrene | B44: 5.25 | C44: 5.045 | D44: -0.7750310362 | E44: 0.6939653988
A45: benz(a)anthracene | B45: 5.85 | C45: 5.777 | D45: 0.2455219747 | E45: 0.5612211959
A46: chrysene | B46: 5.9 | C46: 5.838 | D46: 0.3305680589 | E46: 0.5495187765
A47: benzo(b)fluoranthene | B47: 6.58 | C47: 6.6676 | D47: 1.487194805 | E47: 0.3923232281
A48: benzo(k)fluoranthene | B48: 6.5 | C48: 6.57 | D48: 1.35112107 | E48: 0.4100940044
A49: benzo(a)pyrene | B49: 6.54 | C49: 6.6188 | D49: 1.419157937 | E49: 0.4011688295
A50: indeno(123-cd)pyrene | B50: 7.09 | C50: 7.2898 | D50: 2.354664864 | E50: 0.2883197542
A51: dibenzo(ah)anthracene | B51: 7.39 | C51: 7.6558 | D51: 2.864941369 | E51: 0.2362332373
A52: benzo(ghi)perylene | B52: 7.04 | C52: 7.2288 | D52: 2.26961878 | E52: 0.2976972039

Sheet PCBs in PE
A1: PCB CALIBRATION MODEL FOR PE SAMPLER
A2: Shen, X., & Reible, D. (2019). An analytical model for the fate and transport of performance reference compounds and target compounds around cylindrical passive samplers. Chemosphere.
A3: Version 1.7
A4: 2021-08-05 | J4: Brief techical note
J5: 1. The 'Fss' values refer to the fractional approach to steady state, which is the 1-C/C0 for PRCs and C/Ceq for target compounds
A6: Parameters | B6: Symbol | C6: Value | D6: Unit | J6: 2. The 'Kpw' values refer to the polymer-water partition coefficients, and can be estimated from octanol-water coefficients Kow using the correlations
A7: Thickness | B7: L | C7: 0.003284 | D7: cm | K7: Log Kpw = 1.18 * Log Kow - 1.26 | M7: (Ghosh et al., 2014)
A8: Sampling time | B8: t | C8: 28 | D8: days | J8: 3. The fitting process is to find parameters for the following correlation between Kow and the product of retardation factor R and effective diffusivities D
K9: Log RD = a * Log Kow + b
J10: 4. The ‘Nonlinear’ in 'Option' is set to minimize the difference in Fss from calibrated to measurements, 'Linearized' is to minimuze the calibrated R values
A11: Number of PRCs | B11: 7 | J11: 5. The a value of the above correlation could be fixed to a given constant | N11: =PRCNumber(13,$B$11) -> 
A12: PRC # | B12: =PRCNumber(1,$B$11) -> 1 | C12: =PRCNumber(2,$B$11) -> 2 | D12: =PRCNumber(3,$B$11) -> 3 | E12: =PRCNumber(4,$B$11) -> 4 | F12: =PRCNumber(5,$B$11) -> 5 | G12: =PRCNumber(6,$B$11) -> 6 | H12: =PRCNumber(7,$B$11) -> 7 | O12: =PRCNumber(16,$B$11) ->  | P12: =PRCNumber(14,$B$11) ->  | Q12: =PRCNumber(15,$B$11) -> 
A13: PRC name | B13: 13C-PCB28 | C13: 13C-PCB47 | D13: 13C-PCB70 | E13: 13C-PCB80 | F13: 13C-PCB111 | G13: 13C-PCB141 | H13: 13C-PCB182 | J13: Procedure
A14: Log Kow | B14: 5.67 | C14: 5.85 | D14: 6.2 | E14: 6.48 | F14: 6.76 | G14: 6.82 | H14: 7.2 | J14: 1. Update the properties of sampler and PRCs on this sheet in Green
A15: Log Kpw | B15: =1.18*B14-1.26 -> 5.4306 | C15: =1.18*C14-1.26 -> 5.643 | D15: 6.056 | E15: 6.3864 | F15: 6.7168 | G15: 6.7876 | H15: 7.236 | J15: 2. Start the fitting by clicking on "Fit fss Data"
A16: Measured PRC Fss | B16: 0.9 | C16: 0.8 | D16: 0.7 | E16: 0.6 | F16: 0.5 | G16: 0.4 | H16: 0.3 | J16: 3. Check the fitted results (parameters in Row 25 results in the following figure)
J17: 4. View model results in the following figure, the returned data are in rec_fitted_plot
J19: Database of frequently used PRCs
J20: High sensitivity group
J21: PRC name | K21: 13C-PCB28 | L21: 13C-PCB47 | M21: 13C-PCB70 | N21: 13C-PCB80 | O21: 13C-PCB111 | P21: 13C-PCB141 | Q21: 13C-PCB182
J22: Log Kow | K22: 5.67 | L22: 5.85 | M22: 6.2 | N22: 6.48 | O22: 6.76 | P22: 6.82 | Q22: 7.2
J23: Log Kpw | K23: =1.18*K22-1.26 -> 5.4306 | L23: =1.18*L22-1.26 -> 5.643 | M23: 6.056 | N23: 6.3864 | O23: 6.7168 | P23: 6.7876 | Q23: 7.236
J25: Low sensitivity group
J26: PRC name | K26: 13C-PCB 37 | L26: 13C-PCB 47 | M26: 13C-PCB 54 | N26: 13C-PCB 111 | O26: 13C-PCB 138 | P26: 13C-PCB 178
A27: Results | J27: Log Kow | K27: 5.83 | L27: 5.85 | M27: 5.21 | N27: 6.76 | O27: 6.83 | P27: 7.14
A28: Rectangularl diffusion model | B28: Log RD = a * Log Kow + b | J28: Log Kpw | K28: =1.18*K27-1.26 -> 5.6194 | L28: =1.18*L27-1.26 -> 5.643 | M28: 4.8878 | N28: 6.7168 | O28: 6.7994 | P28: 7.1652
A30: a | B30: 0.8110473157
A31: b | B31: -3.738158539
A32: r2 | B32: 0.8804303007
A35: Model prediction
A36: Target Compound | B36: Log Kow | C36: Log Kpw | D36: Log RD | E36: fss
A37: PCB 1 | B37: 4.46 | C37: =1.18*B37-1.26 -> 4.0028 | D37: =B37*$B$30+$B$31 -> -0.1208875108 | E37: =IF((10^D37)*$C$8*86400/$C$7^2/(10^C37)^2<700, 1-EXP((10^D37)*$C$8*86400/$C$7^2/(10^C37)^2)*ERFC((10^D37) ^ 0.5*($C$8*86400)^ 0.5/$C$7/(10^C37)), 1-1/((10^D37)*$C$8*86400/$C$7^2/(10^C37)^2*3.14)^0.5) -> 0.9862169227
A38: PCB 2 | B38: 4.69 | C38: =1.18*B38-1.26 -> 4.2742 | D38: =B38*$B$30+$B$31 -> 0.06565337185 | E38: =IF((10^D38)*$C$8*86400/$C$7^2/(10^C38)^2<700, 1-EXP((10^D38)*$C$8*86400/$C$7^2/(10^C38)^2)*ERFC((10^D38) ^ 0.5*($C$8*86400)^ 0.5/$C$7/(10^C38)), 1-1/((10^D38)*$C$8*86400/$C$7^2/(10^C38)^2*3.14)^0.5) -> 0.9792281226
A39: PCB 3 | B39: 4.69 | C39: 4.2742 | D39: 0.06565337185 | E39: 0.9792281226
A40: PCB 4 | B40: 4.65 | C40: 4.227 | D40: 0.03321147922 | E40: 0.9806582085
A41: PCB 5 | B41: 4.97 | C41: 4.6046 | D41: 0.2927466202 | E41: 0.9658473797
A42: PCB 6 | B42: 5.06 | C42: 4.7108 | D42: 0.3657408786 | E42: 0.9599292126
A43: PCB 7 | B43: 5.07 | C43: 4.7226 | D43: 0.3738513518 | E43: 0.9592119284
A44: PCB 8 | B44: 5.07 | C44: 4.7226 | D44: 0.3738513518 | E44: 0.9592119284
A45: PCB 9 | B45: 5.06 | C45: 4.7108 | D45: 0.3657408786 | E45: 0.9599292126
A46: PCB 10 | B46: 4.84 | C46: 4.4512 | D46: 0.1873104692 | E46: 0.9728958235
A47: PCB 11 | B47: 5.28 | C47: 4.9704 | D47: 0.5441712881 | E47: 0.9408538433
A48: PCB 12 | B48: 5.22 | C48: 4.8996 | D48: 0.4955084491 | E48: 0.9468000145
A49: PCB 13 | B49: 5.29 | C49: 4.9822 | D49: 0.5522817612 | E49: 0.9398014452
A50: PCB 14 | B50: 5.28 | C50: 4.9704 | D50: 0.5441712881 | E50: 0.9408538433
A51: PCB 15 | B51: 5.3 | C51: 4.994 | D51: 0.5603922344 | E51: 0.938730746
A52: PCB 16 | B52: 5.16 | C52: 4.8288 | D52: 0.4468456102 | E52: 0.9521578356
A53: PCB 17 | B53: 5.25 | C53: 4.935 | D53: 0.5198398686 | E53: 0.9439041344
A54: PCB 18 | B54: 5.24 | C54: 4.9232 | D54: 0.5117293955 | E54: 0.9448862132
A55: PCB 19 | B55: 5.02 | C55: 4.6636 | D55: 0.333298986 | E55: 0.9626755437
A56: PCB 20 | B56: 5.57 | C56: 5.3126 | D56: 0.7793750096 | E56: 0.9017428822
A57: PCB 21 | B57: 5.51 | C57: 5.2418 | D57: 0.7307121707 | E57: 0.9114641286
A58: PCB 22 | B58: 5.58 | C58: 5.3244 | D58: 0.7874854828 | E58: 0.900027644
A59: PCB 23 | B59: 5.57 | C59: 5.3126 | D59: 0.7793750096 | E59: 0.9017428822
A60: PCB 24 | B60: 5.51 | C60: 5.2418 | D60: 0.7307121707 | E60: 0.9114641286
A61: PCB 25 | B61: 5.58 | C61: 5.3244 | D61: 0.7874854828 | E61: 0.900027644
A62: PCB 26 | B62: 5.57 | C62: 5.3126 | D62: 0.7793750096 | E62: 0.9017428822
A63: PCB 27 | B63: 5.35 | C63: 5.053 | D63: 0.6009446002 | E63: 0.9330922589
A64: PCB 28 | B64: 5.67 | C64: 5.4306 | D64: 0.8604797412 | E64: 0.8832799042
A65: PCB 29 | B65: 5.66 | C65: 5.4188 | D65: 0.852369268 | E65: 0.8852617086
A66: PCB 30 | B66: 5.44 | C66: 5.1592 | D66: 0.6739388586 | E66: 0.9216473262
A67: PCB 31 | B67: 5.67 | C67: 5.4306 | D67: 0.8604797412 | E67: 0.8832799042
A68: PCB 32 | B68: 5.44 | C68: 5.1592 | D68: 0.6739388586 | E68: 0.9216473262
A69: PCB 33 | B69: 5.6 | C69: 5.348 | D69: 0.8037064291 | E69: 0.8965123914
A70: PCB 34 | B70: 5.66 | C70: 5.4188 | D70: 0.852369268 | E70: 0.8852617086
A71: PCB 35 | B71: 5.82 | C71: 5.6076 | D71: 0.9821368385 | E71: 0.8495785367
A72: PCB 36 | B72: 5.88 | C72: 5.6784 | D72: 1.030799677 | E72: 0.8338585455
A73: PCB 37 | B73: 5.83 | C73: 5.6194 | D73: 0.9902473117 | E73: 0.8470514778
A74: PCB 38 | B74: 5.76 | C74: 5.5368 | D74: 0.9334739996 | E74: 0.8639845464
A75: PCB 39 | B75: 5.89 | C75: 5.6902 | D75: 1.038910151 | E75: 0.8311066094
A76: PCB 40 | B76: 5.66 | C76: 5.4188 | D76: 0.852369268 | E76: 0.8852617086
A77: PCB 41 | B77: 5.69 | C77: 5.4542 | D77: 0.8767006875 | E77: 0.8792215363
A78: PCB 42 | B78: 5.76 | C78: 5.5368 | D78: 0.9334739996 | E78: 0.8639845464
A79: PCB 43 | B79: 5.75 | C79: 5.525 | D79: 0.9253635264 | E79: 0.8662624293
A80: PCB 44 | B80: 5.75 | C80: 5.525 | D80: 0.9253635264 | E80: 0.8662624293
A81: PCB 45 | B81: 5.53 | C81: 5.2654 | D81: 0.746933117 | E81: 0.908329872
A82: PCB 46 | B82: 5.53 | C82: 5.2654 | D82: 0.746933117 | E82: 0.908329872
A83: PCB 47 | B83: 5.85 | C83: 5.643 | D83: 1.006468258 | E83: 0.8418866435
A84: PCB 48 | B84: 5.78 | C84: 5.5604 | D84: 0.9496949459 | E84: 0.8593245431
A85: PCB 49 | B85: 5.85 | C85: 5.643 | D85: 1.006468258 | E85: 0.8418866435
A86: PCB 50 | B86: 5.63 | C86: 5.3834 | D86: 0.8280378486 | E86: 0.8910220057
A87: PCB 51 | B87: 5.63 | C87: 5.3834 | D87: 0.8280378486 | E87: 0.8910220057
A88: PCB 52 | B88: 5.84 | C88: 5.6312 | D88: 0.9983577849 | E88: 0.8444876067
A89: PCB 53 | B89: 5.62 | C89: 5.3716 | D89: 0.8199273754 | E89: 0.8928816302
A90: PCB 54 | B90: 5.21 | C90: 4.8878 | D90: 0.487397976 | E90: 0.9477322813
A91: PCB 55 | B91: 6.11 | C91: 5.9498 | D91: 1.21734056 | E91: 0.7606106809
A92: PCB 56 | B92: 6.11 | C92: 5.9498 | D92: 1.21734056 | E92: 0.7606106809
A93: PCB 57 | B93: 6.17 | C93: 6.0206 | D93: 1.266003399 | E93: 0.738058996
A94: PCB 58 | B94: 6.17 | C94: 6.0206 | D94: 1.266003399 | E94: 0.738058996
A95: PCB 59 | B95: 5.95 | C95: 5.761 | D95: 1.08757299 | E95: 0.8137827166
A96: PCB 60 | B96: 6.11 | C96: 5.9498 | D96: 1.21734056 | E96: 0.7606106809
A97: PCB 61 | B97: 6.04 | C97: 5.8672 | D97: 1.160567248 | E97: 0.7851308967
A98: PCB 62 | B98: 5.89 | C98: 5.6902 | D98: 1.038910151 | E98: 0.8311066094
A99: PCB 63 | B99: 6.17 | C99: 6.0206 | D99: 1.266003399 | E99: 0.738058996
A100: PCB 64 | B100: 5.95 | C100: 5.761 | D100: 1.08757299 | E100: 0.8137827166
A101: PCB 65 | B101: 5.86 | C101: 5.6548 | D101: 1.014578731 | E101: 0.8392483177
A102: PCB 66 | B102: 6.2 | C102: =1.18*B102-1.26 -> 6.056 | D102: =B102*$B$30+$B$31 -> 1.290334818 | E102: =IF((10^D102)*$C$8*86400/$C$7^2/(10^C102)^2<700, 1-EXP((10^D102)*$C$8*86400/$C$7^2/(10^C102)^2)*ERFC((10^D102) ^ 0.5*($C$8*86400)^ 0.5/$C$7/(10^C102)), 1-1/((10^D102)*$C$8*86400/$C$7^2/(10^C102)^2*3.14)^0.5) -> 0.7262676183
A103: PCB 67 | B103: 6.2 | C103: 6.056 | D103: 1.290334818 | E103: 0.7262676183
A104: PCB 68 | B104: 6.26 | C104: 6.1268 | D104: 1.338997657 | E104: 0.7017006805
A105: PCB 69 | B105: 6.04 | C105: 5.8672 | D105: 1.160567248 | E105: 0.7851308967
A106: PCB 70 | B106: 6.2 | C106: 6.056 | D106: 1.290334818 | E106: 0.7262676183
A107: PCB 71 | B107: 5.98 | C107: 5.7964 | D107: 1.111904409 | E107: 0.8045906802
A108: PCB 72 | B108: 6.26 | C108: 6.1268 | D108: 1.338997657 | E108: 0.7017006805
A109: PCB 73 | B109: 6.04 | C109: 5.8672 | D109: 1.160567248 | E109: 0.7851308967
A110: PCB 74 | B110: 6.2 | C110: 6.056 | D110: 1.290334818 | E110: 0.7262676183
A111: PCB 75 | B111: 6.05 | C111: 5.879 | D111: 1.168677721 | E111: 0.7817476084
A112: PCB 76 | B112: 6.13 | C112: 5.9734 | D112: 1.233561506 | E112: 0.7532487133
A113: PCB 77 | B113: 6.36 | C113: 6.2448 | D113: 1.420102389 | E113: 0.6580923847
A114: PCB 78 | B114: 6.35 | C114: 6.233 | D114: 1.411991916 | E114: 0.6625894106
A115: PCB 79 | B115: 6.42 | C115: 6.3156 | D115: 1.468765228 | E115: 0.6305560975
A116: PCB 80 | B116: 6.48 | C116: 6.3864 | D116: 1.517428067 | E116: 0.6021999958
A117: PCB 81 | B117: 6.36 | C117: 6.2448 | D117: 1.420102389 | E117: 0.6580923847
A118: PCB 82 | B118: 6.2 | C118: 6.056 | D118: 1.290334818 | E118: 0.7262676183
A119: PCB 83 | B119: 6.26 | C119: 6.1268 | D119: 1.338997657 | E119: 0.7017006805
A120: PCB 84 | B120: 6.04 | C120: 5.8672 | D120: 1.160567248 | E120: 0.7851308967
A121: PCB 85 | B121: 6.3 | C121: 6.174 | D121: 1.37143955 | E121: 0.6846338133
A122: PCB 86 | B122: 6.23 | C122: 6.0914 | D122: 1.314666238 | E122: 0.714144397
A123: PCB 87 | B123: 6.29 | C123: 6.1622 | D123: 1.363329077 | E123: 0.6889497888
A124: PCB 88 | B124: 6.07 | C124: 5.9026 | D124: 1.184898667 | E124: 0.7748611276
A125: PCB 89 | B125: 6.07 | C125: 5.9026 | D125: 1.184898667 | E125: 0.7748611276
A126: PCB 90 | B126: 6.36 | C126: 6.2448 | D126: 1.420102389 | E126: 0.6580923847
A127: PCB 91 | B127: 6.13 | C127: 5.9734 | D127: 1.233561506 | E127: 0.7532487133
A128: PCB 92 | B128: 6.35 | C128: 6.233 | D128: 1.411991916 | E128: 0.6625894106
A129: PCB 93 | B129: 6.04 | C129: 5.8672 | D129: 1.160567248 | E129: 0.7851308967
A130: PCB 94 | B130: 6.13 | C130: 5.9734 | D130: 1.233561506 | E130: 0.7532487133
A131: PCB 95 | B131: 6.13 | C131: 5.9734 | D131: 1.233561506 | E131: 0.7532487133
A132: PCB 96 | B132: 5.71 | C132: 5.4778 | D132: 0.8929216338 | E132: 0.8750344032
A133: PCB 97 | B133: 6.29 | C133: 6.1622 | D133: 1.363329077 | E133: 0.6889497888
A134: PCB 98 | B134: 6.13 | C134: 5.9734 | D134: 1.233561506 | E134: 0.7532487133
A135: PCB 99 | B135: 6.39 | C135: 6.2802 | D135: 1.444433808 | E135: 0.6444382203
A136: PCB 100 | B136: 6.23 | C136: 6.0914 | D136: 1.314666238 | E136: 0.714144397
A137: PCB 101 | B137: 6.38 | C137: 6.2684 | D137: 1.436323335 | E137: 0.6490160148
A138: PCB 102 | B138: 6.16 | C138: 6.0088 | D138: 1.257892926 | E138: 0.7419140356
A139: PCB 103 | B139: 6.22 | C139: 6.0796 | D139: 1.306555765 | E139: 0.7182216825
A140: PCB 104 | B140: 5.81 | C140: 5.5958 | D140: 0.9740263654 | E140: 0.8520690719
A141: PCB 105 | B141: 6.65 | C141: 6.587 | D141: 1.655306111 | E141: 0.5191793229
A142: PCB 106 | B142: 6.64 | C142: 6.5752 | D142: 1.647195637 | E142: 0.5241137116
A143: PCB 107 | B143: 6.71 | C143: 6.6578 | D143: 1.703968949 | E143: 0.4896041655
A144: PCB 108 | B144: 6.71 | C144: 6.6578 | D144: 1.703968949 | E144: 0.4896041655
A145: PCB 109 | B145: 6.48 | C145: 6.3864 | D145: 1.517428067 | E145: 0.6021999958
A146: PCB 110 | B146: 6.48 | C146: 6.3864 | D146: 1.517428067 | E146: 0.6021999958
A147: PCB 111 | B147: 6.76 | C147: 6.7168 | D147: 1.744521315 | E147: 0.4651089534
A148: PCB 112 | B148: 6.45 | C148: 6.351 | D148: 1.493096647 | E148: 0.6164686867
A149: PCB 113 | B149: 6.54 | C149: 6.4572 | D149: 1.566090906 | E149: 0.5732203716
A150: PCB 114 | B150: 6.65 | C150: 6.587 | D150: 1.655306111 | E150: 0.5191793229
A151: PCB 115 | B151: 6.49 | C151: 6.3982 | D151: 1.52553854 | E151: 0.5974078004
A152: PCB 116 | B152: 6.33 | C152: 6.2094 | D152: 1.39577097 | E152: 0.6714974229
A153: PCB 117 | B153: 6.46 | C153: 6.3628 | D153: 1.501207121 | E153: 0.611731378
A154: PCB 118 | B154: 6.74 | C154: 6.6932 | D154: 1.728300369 | E154: 0.4748817701
A155: PCB 119 | B155: 6.58 | C155: 6.5044 | D155: 1.598532798 | E155: 0.5536582235
A156: PCB 120 | B156: 6.79 | C156: 6.7522 | D156: 1.768852735 | E156: 0.4505318125
A157: PCB 121 | B157: 6.64 | C157: 6.5752 | D157: 1.647195637 | E157: 0.5241137116
A158: PCB 122 | B158: 6.64 | C158: 6.5752 | D158: 1.647195637 | E158: 0.5241137116
A159: PCB 123 | B159: 6.74 | C159: 6.6932 | D159: 1.728300369 | E159: 0.4748817701
A160: PCB 124 | B160: 6.73 | C160: 6.6814 | D160: 1.720189896 | E160: 0.4797817747
A161: PCB 125 | B161: 6.51 | C161: 6.4218 | D161: 1.541759486 | E161: 0.5877751858
A162: PCB 126 | B162: 6.89 | C162: 6.8702 | D162: 1.849957466 | E162: 0.4029410466
A163: PCB 127 | B163: 6.95 | C163: 6.941 | D163: 1.898620305 | E163: 0.3753697284
A164: PCB 128 | B164: 6.74 | C164: 6.6932 | D164: 1.728300369 | E164: 0.4748817701
A165: PCB 129 | B165: 6.73 | C165: 6.6814 | D165: 1.720189896 | E165: 0.4797817747
A166: PCB 130 | B166: 6.8 | C166: =1.18*B166-1.26 -> 6.764 | D166: =B166*$B$30+$B$31 -> 1.776963208 | E166: =IF((10^D166)*$C$8*86400/$C$7^2/(10^C166)^2<700, 1-EXP((10^D166)*$C$8*86400/$C$7^2/(10^C166)^2)*ERFC((10^D166) ^ 0.5*($C$8*86400)^ 0.5/$C$7/(10^C166)), 1-1/((10^D166)*$C$8*86400/$C$7^2/(10^C166)^2*3.14)^0.5) -> 0.4456983298
A167: PCB 131 | B167: 6.58 | C167: 6.5044 | D167: 1.598532798 | E167: 0.5536582235
A168: PCB 132 | B168: 6.58 | C168: 6.5044 | D168: 1.598532798 | E168: 0.5536582235
A169: PCB 133 | B169: 6.86 | C169: 6.8348 | D169: 1.825626047 | E169: 0.4170272816
A170: PCB 134 | B170: 6.55 | C170: 6.469 | D170: 1.574201379 | E170: 0.5683445019
A171: PCB 135 | B171: 6.64 | C171: 6.5752 | D171: 1.647195637 | E171: 0.5241137116
A172: PCB 136 | B172: 6.22 | C172: 6.0796 | D172: 1.306555765 | E172: 0.7182216825
A173: PCB 137 | B173: 6.83 | C173: 6.7994 | D173: 1.801294627 | E173: 0.431287014
A174: PCB 138 | B174: 6.83 | C174: 6.7994 | D174: 1.801294627 | E174: 0.431287014
A175: PCB 139 | B175: 6.67 | C175: 6.6106 | D175: 1.671527057 | E175: 0.5093109429
A176: PCB 140 | B176: 6.67 | C176: 6.6106 | D176: 1.671527057 | E176: 0.5093109429
A177: PCB 141 | B177: 6.82 | C177: 6.7876 | D177: 1.793184154 | E177: 0.4360750635
A178: PCB 142 | B178: 6.51 | C178: 6.4218 | D178: 1.541759486 | E178: 0.5877751858
A179: PCB 143 | B179: 6.6 | C179: 6.528 | D179: 1.614753745 | E179: 0.5438286828
A180: PCB 144 | B180: 6.67 | C180: 6.6106 | D180: 1.671527057 | E180: 0.5093109429
A181: PCB 145 | B181: 6.25 | C181: 6.115 | D181: 1.330887184 | E181: 0.7058834147
A182: PCB 146 | B182: 6.89 | C182: 6.8702 | D182: 1.849957466 | E182: 0.4029410466
A183: PCB 147 | B183: 6.64 | C183: 6.5752 | D183: 1.647195637 | E183: 0.5241137116
A184: PCB 148 | B184: 6.73 | C184: 6.6814 | D184: 1.720189896 | E184: 0.4797817747
A185: PCB 149 | B185: 6.67 | C185: 6.6106 | D185: 1.671527057 | E185: 0.5093109429
A186: PCB 150 | B186: 6.32 | C186: 6.1976 | D186: 1.387660496 | E186: 0.6759069836
A187: PCB 151 | B187: 6.64 | C187: 6.5752 | D187: 1.647195637 | E187: 0.5241137116
A188: PCB 152 | B188: 6.22 | C188: 6.0796 | D188: 1.306555765 | E188: 0.7182216825
A189: PCB 153 | B189: 6.92 | C189: 6.9056 | D189: 1.874288886 | E189: 0.3890488399
A190: PCB 154 | B190: 6.76 | C190: 6.7168 | D190: 1.744521315 | E190: 0.4651089534
A191: PCB 155 | B191: 6.41 | C191: 6.3038 | D191: 1.460654755 | E191: 0.6352074303
A192: PCB 156 | B192: 7.18 | C192: 7.2124 | D192: 2.085161188 | E192: 0.2791722711
A193: PCB 157 | B193: 7.18 | C193: 7.2124 | D193: 2.085161188 | E193: 0.2791722711
A194: PCB 158 | B194: 7.02 | C194: 7.0236 | D194: 1.955393617 | E194: 0.3443761064
A195: PCB 159 | B195: 7.24 | C195: 7.2832 | D195: 2.133824027 | E195: 0.256957484
A196: PCB 160 | B196: 6.93 | C196: 6.9174 | D196: 1.882399359 | E196: 0.3844645607
A197: PCB 161 | B197: 7.08 | C197: 7.0944 | D197: 2.004056456 | E197: 0.318951914
A198: PCB 162 | B198: 7.24 | C198: 7.2832 | D198: 2.133824027 | E198: 0.256957484
A199: PCB 163 | B199: 6.99 | C199: 6.9882 | D199: 1.931062198 | E199: 0.3574924888
A200: PCB 164 | B200: 7.02 | C200: 7.0236 | D200: 1.955393617 | E200: 0.3443761064
A201: PCB 165 | B201: 7.05 | C201: 7.059 | D201: 1.979725037 | E201: 0.3315251618
A202: PCB 166 | B202: 6.93 | C202: 6.9174 | D202: 1.882399359 | E202: 0.3844645607
A203: PCB 167 | B203: 7.27 | C203: 7.3186 | D203: 2.158155446 | E203: 0.2463291059
A204: PCB 168 | B204: 7.11 | C204: 7.1298 | D204: 2.028387876 | E204: 0.306667043
A205: PCB 169 | B205: 7.42 | C205: 7.4956 | D205: 2.279812544 | E205: 0.1980158357
... 40 more rows

Sheet Dioxins in PE
A1: Dioxins/Furans CALIBRATION MODEL FOR PE SAMPLER
A2: Shen, X., & Reible, D. (2019). An analytical model for the fate and transport of performance reference compounds and target compounds around cylindrical passive samplers. Chemosphere.
A3: Version 1.7
A4: 2021-08-05 | G4: Brief techical note
G5: 1. The 'Fss' values refer to the fractional approach to steady state, which is the 1-C/C0 for PRCs and C/Ceq for target compounds
A6: Parameters | B6: Symbol | C6: Value | D6: Unit | G6: 2. The 'Kpw' values refer to the polymer-water partition coefficients, and can be estimated from octanol-water coefficients Kow using the correlations
A7: Thickness | B7: L | C7: 0.00254 | D7: cm | H7: Log Kpw = 1.18 * Log Kow - 1.26 | J7: (Ghosh et al., 2014)
A8: Sampling time | B8: t | C8: 14 | D8: days | G8: 3. The fitting process is to find parameters for the following correlation between Kow and the product of retardation factor R and effective diffusivities D
H9: Log RD = a * Log Kow + b
G10: 4. The ‘Nonlinear’ in 'Option' is set to minimize the difference in Fss from calibrated to measurements, 'Linearized' is to minimuze the calibrated R values
A11: Number of PRCs | B11: 4 | G11: 5. The a value of the above correlation could be fixed to a given constant | K11: =PRCNumber(13,$B$11) -> 
A12: PRC # | B12: =PRCNumber(1,$B$11) -> 1 | C12: =PRCNumber(2,$B$11) -> 2 | D12: =PRCNumber(3,$B$11) -> 3 | E12: =PRCNumber(4,$B$11) -> 4
A13: PRC name | B13: C13-1234-TCDD | C13: C13-123789-HxCDD | D13: C13-2,7/2,8 DiCDD | E13: C13-1234678 HpCDD | G13: Procedure
A14: Log Kow | B14: 6.53 | C14: 7.92 | D14: 5.19 | E14: 8.64 | G14: 1. Update the properties of sampler and PRCs on this sheet in Green
A15: Log Kpw | B15: =1.18*B14-1.26 -> 6.4454 | C15: =1.18*C14-1.26 -> 8.0856 | D15: 4.8642 | E15: 8.9352 | G15: 2. Start the fitting by clicking on "Fit fss Data"
A16: Measured PRC Fss | B16: 0.7 | C16: 0.5 | D16: 0.8 | E16: 0.3 | G16: 3. Check the fitted results (parameters in Row 25 results in the following figure)
G17: 4. View model results in the following figure, the returned data are in rec_fitted_plot
G19: Database of frequently used PRCs
G21: PRCs set 1
G22: PRC name | H22: C13-1234-TCDD | I22: C13-123789-HxCDD | J22: C13-2,7/2,8 DiCDD | K22: C13-1234678 HpCDD
G23: Log Kow | H23: 6.53 | I23: 7.92 | J23: 5.19 | K23: 8.64
G24: Log Kpw | H24: 6.4454 | I24: 8.0856 | J24: 4.8642 | K24: 8.9352
A27: Results
A28: Cylindrical diffusion model | B28: Log RD = a * Log Kow + b
A30: a | B30: 1.86767166
A31: b | B31: -10.27215863
A32: r2 | B32: 0.9968756498
A35: Model prediction
A36: Target Compound | B36: Log Kow | C36: Log Kpw | D36: Log RD | E36: fss
A37: 2-MCDD | B37: 4.58 | C37: =1.18*B37-1.26 -> 4.1444 | D37: =B37*$B$30+$B$31 -> -1.718222431 | E37: =IF((10^D37)*$C$8*86400/$C$7^2/(10^C37)^2<700, 1-EXP((10^D37)*$C$8*86400/$C$7^2/(10^C37)^2)*ERFC((10^D37) ^ 0.5*($C$8*86400)^ 0.5/$C$7/(10^C37)), 1-1/((10^D37)*$C$8*86400/$C$7^2/(10^C37)^2*3.14)^0.5) -> 0.8719481101
A38: 2,3-DiCDD | B38: 5.23 | C38: =1.18*B38-1.26 -> 4.9114 | D38: =B38*$B$30+$B$31 -> -0.5042358528 | E38: =IF((10^D38)*$C$8*86400/$C$7^2/(10^C38)^2<700, 1-EXP((10^D38)*$C$8*86400/$C$7^2/(10^C38)^2)*ERFC((10^D38) ^ 0.5*($C$8*86400)^ 0.5/$C$7/(10^C38)), 1-1/((10^D38)*$C$8*86400/$C$7^2/(10^C38)^2*3.14)^0.5) -> 0.8194337782
A39: 2,7/2,8-DiCDD | B39: 5.19 | C39: 4.8642 | D39: -0.5789427192 | E39: 0.8231271246
A40: 2,3,7-TrCDD | B40: 5.84 | C40: 5.6312 | D40: 0.6350438595 | E40: 0.755162763
A41: 2378-TCDF | B41: 6.46 | C41: 6.3628 | D41: 1.793000288 | E41: 0.6750691307
A42: 2378-TCDD | B42: 6.49 | C42: 6.3982 | D42: 1.849030438 | E42: 0.6708596351
A43: 12378-PeCDF | B43: 7.15 | C43: 7.177 | D43: 3.081693734 | E43: 0.5726265554
A44: 23478-PeCDF | B44: 7.14 | C44: 7.1652 | D44: 3.063017017 | E44: 0.5741744256
A45: 12378-PeCDD | B45: 7.2 | C45: 7.236 | D45: 3.175077317 | E45: 0.5648706637
A46: 123478-HxCDF | B46: 7.87 | C46: 8.0266 | D46: 4.426417328 | E46: 0.4602048672
A47: 123678-HxCDF | B47: 7.83 | C47: 7.9794 | D47: 4.351710462 | E47: 0.4663994553
A48: 234678-HxCDF | B48: 7.83 | C48: 7.9794 | D48: 4.351710462 | E48: 0.4663994553
A49: 123478-HxCDD | B49: 7.95 | C49: 8.121 | D49: 4.575831061 | E49: 0.4478736909
A50: 123678-HxCDD | B50: 7.89 | C50: 8.0502 | D50: 4.463770762 | E50: 0.4571144702
A51: 123789-HxCDD | B51: 7.92 | C51: 8.0856 | D51: 4.519800911 | E51: 0.45248816
A52: 123789-HxCDF | B52: 7.87 | C52: 8.0266 | D52: 4.426417328 | E52: 0.4602048672
A53: 1234678-HpCDF | B53: 8.55 | C53: 8.829 | D53: 5.696434057 | E53: 0.3591706423
A54: 1234678-HpCDD | B54: 8.64 | C54: 8.9352 | D54: 5.864524506 | E54: 0.3466268136
A55: 1234789-HpCDF | B55: 8.56 | C55: 8.8408 | D55: 5.715110774 | E55: 0.3577654357
A56: OCDD | B56: 9.35 | C56: 9.773 | D56: 7.190571385 | E56: 0.2567848376
A57: OCDF | B57: 9.27 | C57: 9.6786 | D57: 7.041157652 | E57: 0.2660399392
